{"text_format":"1","workbook":"xlsx","n_sheets":11,"sheets":["Readme First","Emergency Parameters","A.Ops","B.Staff","C.ABOD","D.Appeal (DER)","E. Positions (optional)","Summary","Emergency Standards","Unit Costs","2.Ops Staging for Appeal"],"not_rendered":{"charts":0,"images":1,"macros":1,"external_links":0,"defined_names":12,"comments":5,"pivot_tables":0},"unopened":[],"bounds":{"document_bytes":16777216,"sheet_cells":100000,"rows_first":2000,"rows_last":500,"rows_between":2000,"halvings":0,"cell_chars":16384,"cell_head_chars":4096},"cells_cut":0,"cells_raw":0,"read":"whole","date_system":"1900"}

{"sheet":"Readme First","index":0,"n_rows":0,"n_cols":0,"rows_kept":0,"cut":false,"hidden":false,"merged":[]}

{"sheet":"Emergency Parameters","index":1,"n_rows":263,"n_cols":6,"rows_kept":263,"cut":false,"hidden":false,"merged":[]}
["Emergency Response Budgeting Template"]
["Resource Requirements"]
[]
[]
[]
[]
[]
[]
[]
[null,null,null,"Emergency in:"]
[]
[]
[null,null,null,null,null,"Template version: Aug 2014"]
["I. Population Projection and Operational Setup"]
[1,"Projected number of population",null,null,null,20000]
[]
[2,"Projected duration of emergency (in months)",null,null,null,6]
[]
[3,"If the emergency is due to a new pillar, select one as appropriate."]
[]
[null,3.1,"Name of a proposed new Population Planning Group (PPG)"]
[]
[4,"If the emergency is to be absorbed into an existing PPG"]
[]
[null,4.0999999999999996,"Name of the existing PPG:"]
[]
[5,"If new office(s) are to be established:"]
[]
[null,5.0999999999999996,"Name of a new office:"]
[]
[null,5.2,"Name of a new office:"]
[]
[null,5.3,"Name of a new office:"]
[]
[6,"If new site (camps) are to be established:"]
[]
[null,6.1,"Name of a new site (camp):"]
[]
[null,6.2,"Name of a new site (camp):"]
[]
[null,6.3,"Name of a new site (camp):"]
[]
[null,6.4,"Name of a new site (camp):"]
[]
["II. Quick Assessments on the Needs of Population:"]
[null,"Rights Groups","Problems                                                                                                              (Impact Indicators/ Needs)",null,null,"% (Estimate)"]
[]
[7,"Basic Needs and Essential Services"]
[null,7.1,"Shelter or infrastructure is insufficient or needs improvement"]
[null,null,"% of households (NOT) living in adequate dwellings",null,null,1]
[null,7.2,"Basic and domestic items insufficient or need replenishment"]
[null,null,"% of households whose needs for basic and domestic items",null,null,1]
[null,7.3,"Health status of the population is unsatisfactory or needs constant attention"]
[null,null,"Extent persons of concern (LACK) access to primary health care",null,null,1]
[null,7.4,"Conditions of sanitation or hygiene are unsatisfactory or need constant attention"]
[null,null,"% of population who are (IN NEEDS) of sanitation assistance",null,null,1]
[null,7.5,"Access to education is insufficient or needs constant attention"]
[null,null,"% of primary school-aged children (NOT) enrolled in primary education",null,null,0.2]
[null,7.6,"Supply of potable water insufficient  or needs constant attention"]
[null,null,"% of population who are (IN NEEDS) of potable water",null,null,1]
[null,7.7,"Services for persons with specific needs are insufficient"]
[null,null,"% of PoC with psycho/ social needs (WITHOUT) access to services for their specific needs",null,null,0.2]
[null,7.8,"Food security insufficient or needs constant attention"]
[null,null,"Extent persons of concern are (NOT) food secure",null,null,1]
[null,7.9,"Access to energy is insufficient"]
[null,null,"% of household (WITHOUT) access to sustainable energy",null,null,1]
[null,"7.10","Nutritional well-being insufficient or needs constant attention"]
[null,null,"% of population who are (IN NEEDS) of nutritional services",null,null,0.2]
[]
[8,"Fair Protection Process and Documentation"]
[null,8.1,"Reception conditions are inadequate"]
[null,null,"Extent reception conditions (DOES NOT) meet minimum standards",null,null,1]
[null,8.1999999999999993,"Level of individual documentation insufficient"]
[null,null,"% of persons of concern who (DO NOT) have a valid identity document",null,null,1]
[]
[9,"Favourable Protection Environment"]
[null,9.1,"Access to legal remedies or legal assistance inadequate"]
[null,null,"Extent persons of concern (DO NOT) have access to legal assistance",null,null,1]
[null,9.1999999999999993,"Access to the territory is insufficient or refoulement is occurring"]
[null,null,"Extent border authorities (DO NOT) refer asylum seekers to competent authorities",null,null,1]
[]
[10,"Security from Violence and Exploitation"]
[null,10.1,"SGBV poses a risk and quality of response is inadequate or needs to be maintained"]
[null,null,"Extent known SGBV survivors (DO NOT) receive appropriate support",null,null,1]
[null,10.199999999999999,"Children face specific protection risks"]
[null,null,"% of identified children of concern with specific needs",null,null,0.3]
[null,10.3,"Effects of armed conflict pose protection risks "]
[null,null,"% of monitored sites where persons of concern and the civilian community are threatened by the presence of armed actors",null,null,1]
[]
["III. Defining Initial Staffing Requirements (temporary assistance upto 6 months)"]
[11,"Initial Staffing Requirements (temporary assistance)"]
[]
[]
[]
[]
[]
[]
[null,null,null,"Function Type","Grade","# of staff"]
[]
[]
[]
[]
[]
[]
[]
[]
[]
[]
[]
[]
[]
[]
[]
[]
[]
[]
[]
[]
[]
[]
[]
[]
[]
[]
[]
[]
[]
["Listings"]
[]
["Grade",null,"Situation/ Pillar",null,"Country Code"]
["D1",null,"Refugee, Pillar I",null,"Afghanistan"]
["FS4",null,"Stateless, Pillar II",null,"Albania"]
["FS5",null,"Returnee, Pillar III",null,"Algeria"]
["G1",null,"IDP, Pillar IV",null,"Angola"]
["G2",null,null,null,"Argentina"]
["G3",null,null,null,"Armenia"]
["G4",null,"Function",null,"Australia"]
["G5",null,"Administration/Finance",null,"Austria"]
["G6",null,"Community Services",null,"Azerbaijan"]
["G7",null,"Durable Solutions - Protection",null,"Bangladesh"]
["NA",null,"External Relations",null,"Belarus"]
["NB",null,"Field - Protection",null,"Belgium"]
["NC",null,"Safety",null,"Benin"]
["ND",null,"Finance",null,"Bosnia and Herzegovina"]
["P1",null,"Finance (Project Control)",null,"Botswana"]
["P2",null,"Human Resources",null,"Brazil"]
["P3",null,"Information Technology",null,"Bulgaria"]
["P4",null,"IPR Clearance Not Required",null,"Burkina Faso"]
["P5",null,"Legal - Protection",null,"Burundi"]
[null,null,"Programme",null,"Cameroon"]
["Y/N",null,"Protection",null,"Canada"]
["Y",null,"Public Information",null,"Central African Republic"]
["N",null,"Supply",null,"Chad"]
[null,null,"Telecommunications",null,"Chile"]
[null,null,null,null,"China"]
[null,null,"Site",null,"Colombia"]
[null,null,"New sites",null,"Congo"]
[null,null,"Existing sites",null,"Costa Rica"]
[null,null,"New and existing sites",null,"Cote d'Ivoire"]
[null,null,null,null,"Croatia"]
[null,null,"Diseases",null,"Cuba"]
[null,null,"Respiratory infections",null,"Cyprus"]
[null,null,"Malaria",null,"Czech Republic"]
[null,null,"Diarrhoea",null,"Democratic Republic of the Congo"]
[null,null,null,null,"Denmark"]
[null,null,null,null,"Djibouti"]
[null,null,null,null,"Dominican Republic"]
[null,null,null,null,"Ecuador"]
[null,null,null,null,"Egypt"]
[null,null,null,null,"Eritrea"]
[null,null,null,null,"Estonia"]
[null,null,null,null,"Ethiopia"]
[null,null,null,null,"France"]
[null,null,null,null,"Gabon"]
[null,null,null,null,"Gambia"]
[null,null,null,null,"Georgia"]
[null,null,null,null,"Germany"]
[null,null,null,null,"Ghana"]
[null,null,null,null,"Greece"]
[null,null,null,null,"Guatemala"]
[null,null,null,null,"Guinea"]
[null,null,null,null,"Guinea Bissau"]
[null,null,null,null,"Haiti"]
[null,null,null,null,"Honduras"]
[null,null,null,null,"Hong Kong, China"]
[null,null,null,null,"Hungary"]
[null,null,null,null,"India"]
[null,null,null,null,"Indonesia"]
[null,null,null,null,"Iran"]
[null,null,null,null,"Iraq"]
[null,null,null,null,"Ireland"]
[null,null,null,null,"Israel"]
[null,null,null,null,"Italy"]
[null,null,null,null,"Japan"]
[null,null,null,null,"Jordan"]
[null,null,null,null,"Kazakhstan"]
[null,null,null,null,"Kenya"]
[null,null,null,null,"Kosovo"]
[null,null,null,null,"Kuwait"]
[null,null,null,null,"Kyrgyzstan"]
[null,null,null,null,"Lebanon"]
[null,null,null,null,"Liberia"]
[null,null,null,null,"Libya Arab Jamahiriya"]
[null,null,null,null,"Malawi"]
[null,null,null,null,"Malaysia"]
[null,null,null,null,"Mali"]
[null,null,null,null,"Malta"]
[null,null,null,null,"Mauritania"]
[null,null,null,null,"Mexico"]
[null,null,null,null,"Moldova"]
[null,null,null,null,"Montenegro"]
[null,null,null,null,"Morocco"]
[null,null,null,null,"Mozambique"]
[null,null,null,null,"Myanmar"]
[null,null,null,null,"Namibia"]
[null,null,null,null,"Nepal"]
[null,null,null,null,"Netherlands"]
[null,null,null,null,"Nicaragua"]
[null,null,null,null,"Niger"]
[null,null,null,null,"Nigeria"]
[null,null,null,null,"Pakistan"]
[null,null,null,null,"Panama"]
[null,null,null,null,"Philippines"]
[null,null,null,null,"Poland"]
[null,null,null,null,"Republic of Korea"]
[null,null,null,null,"Republic of South Africa"]
[null,null,null,null,"Romania"]
[null,null,null,null,"Russian Federation"]
[null,null,null,null,"Rwanda"]
[null,null,null,null,"Saudi Arabia"]
[null,null,null,null,"Senegal"]
[null,null,null,null,"Serbia"]
[null,null,null,null,"Sierra Leone"]
[null,null,null,null,"Slovakia"]
[null,null,null,null,"Somalia"]
[null,null,null,null,"South Sudan"]
[null,null,null,null,"Spain"]
[null,null,null,null,"Sri Lanka"]
[null,null,null,null,"Sudan"]
[null,null,null,null,"Sweden"]
[null,null,null,null,"Switzerland"]
[null,null,null,null,"Syrian Arab Republic"]
[null,null,null,null,"Tajikistan"]
[null,null,null,null,"Tanzania"]
[null,null,null,null,"Thailand"]
[null,null,null,null,"The former Yug. Rep. of Macedonia"]
[null,null,null,null,"Togo"]
[null,null,null,null,"Trinidad and  Tobago"]
[null,null,null,null,"Tunisia"]
[null,null,null,null,"Turkey"]
[null,null,null,null,"Turkmenistan"]
[null,null,null,null,"Uganda"]
[null,null,null,null,"Ukraine"]
[null,null,null,null,"United Arab Emirates"]
[null,null,null,null,"United Kingdom"]
[null,null,null,null,"United States (Washington)"]
[null,null,null,null,"USA ( NY)"]
[null,null,null,null,"Uzbekistan"]
[null,null,null,null,"Venezuela"]
[null,null,null,null,"Western Sahara"]
[null,null,null,null,"Yemen"]
[null,null,null,null,"Zambia"]
[null,null,null,null,"Zimbabwe"]

{"sheet":"A.Ops","index":2,"n_rows":89,"n_cols":9,"rows_kept":89,"cut":false,"hidden":false,"merged":[[0,0,0,8]]}
["Annex II.A: Operations Budget (Based on Emergency Parameters* section I and II)"]
["Emergency in:",null,{"$f":"'Emergency Parameters'!E10","v":0}]
[]
["Rights Group","Objectives","Outputs / Budget Lines",null,"Qty (Target)","Unit","Unit Cost","Time","Amount (USD)"]
["Basic Needs and Essential Services",null,null,null,null,null,null,null,{"$f":"SUM(I6,I10,I13,I20,I24,I29,I33,I36,I39,I42)","v":10516488.800000001}]
[null,"Shelter and infrastructure established, improved and maintained",null,null,null,null,null,null,{"$f":"SUM(I7:I9)","v":3588525}]
[null,null,"Emergency shelter provided","(tent/materials/kit)",{"$f":"('Emergency Parameters'!F15/'Emergency Standards'!E3)*'Emergency Parameters'!F50","v":5000},"shelter",{"$f":"'Unit Costs'!F10","v":697.70500000000004},1,{"$f":"E7*G7*H7","v":3488525}]
[null,null,"Emergency shelter provided","(site preparation)",{"$f":"'Emergency Parameters'!F15/'Emergency Standards'!E7","v":2},"camp",50000,1,{"$f":"E8*G8*H8","v":100000}]
[null,null,"Unspecified output - Shelter and Infrastructure","(other - define)",1,"lumpsum",null,1,{"$f":"E9*G9*H9","v":0}]
[null,"Population has sufficient basic and domestic items",null,null,null,null,null,null,{"$f":"SUM(I11:I12)","v":605272}]
[null,null,"Household goods provided",null,{"$f":"('Emergency Parameters'!F15/'Emergency Standards'!E3)*'Emergency Parameters'!F52","v":5000},"family",{"$f":"'Unit Costs'!F25","v":121.0544},1,{"$f":"E11*G11*H11","v":605272}]
[null,null,"Unspecified output - Basic and Domestic Items",null,1,"lumpsum",null,1,{"$f":"E12*G12*H12","v":0}]
[null,"Health status of the population improved",null,null,null,null,null,null,{"$f":"SUM(I14:I19)","v":686095}]
[null,null,"Access to primary health care services provided or supported",null,{"$f":"'Emergency Parameters'!F15*'Emergency Parameters'!F54","v":20000},"person",5,{"$f":"'Emergency Parameters'!F17","v":6},{"$f":"E14*G14*H14","v":600000}]
[null,null,"Access to primary health care services provided or supported","(hospital tent)",{"$f":"IF('Emergency Parameters'!$F$54>0, 'Emergency Parameters'!$F$15/'Emergency Standards'!$E$32, \"0\")","v":1},"centre",2145,1,2145]
[null,null,"Access to primary health care services provided or supported","(ambulance)",{"$f":"IF('Emergency Parameters'!$F$54>0, 'Emergency Parameters'!$F$15/'Emergency Standards'!$E$32, \"0\")","v":1},"ambulance",41600,1,41600]
[null,null,"Access to essential drugs provided","(interagency reproductive health kit)",{"$f":"IF('Emergency Parameters'!$F$54>0, 'Emergency Parameters'!$F$15/'Emergency Standards'!$E$32, \"0\")","v":1},"kit",7350,1,7350]
[null,null,"Access to essential drugs provided","(interagency emergency and diarrea kits)",{"$f":"IF('Emergency Parameters'!$F$54>0, 'Emergency Parameters'!$F$15/'Emergency Standards'!$E$32, \"0\")","v":1},"kit",35000,1,35000]
[null,null,"Unspecified output - Health",null,1,"lumpsum",null,1,0]
[null,"Population lives in satisfactory conditions of sanitation and hygiene",null,null,null,null,null,null,{"$f":"SUM(I21:I23)","v":1200000}]
[null,null,"Community sanitary facilities/ latrines constructed",null,{"$f":"('Emergency Parameters'!F15/20)*'Emergency Parameters'!F56","v":1000},"latrine",300,1,{"$f":"E21*G21*H21","v":300000}]
[null,null,"Household sanitary facilities / latrines constructed",null,{"$f":"'Emergency Parameters'!F15/'Emergency Standards'!E3*'Emergency Parameters'!F56","v":5000},"latrine",180,1,{"$f":"E22*G22*H22","v":900000}]
[null,null,"Unspecified output - Sanitation and Hygiene",null,1,"lumpsum",null,1,{"$f":"E23*G23*H23","v":0}]
[null,"Population has optimal access to education",null,null,null,null,null,null,{"$f":"SUM(I25:I28)","v":624276.80000000005}]
[null,null,"Primary education provided","(misc.)",{"$f":"'Emergency Parameters'!$F$15*'Emergency Parameters'!$F$58","v":4000},"students",25,{"$f":"'Emergency Parameters'!F17","v":6},{"$f":"E25*G25*H25","v":600000}]
[null,null,"Primary education provided","(School block - tent)",{"$f":"IF('Emergency Parameters'!F58>0, ('Emergency Parameters'!F15/'Emergency Standards'!E34), \"0\")","v":4},"schools",1069.2,1,{"$f":"E26*G26*H26","v":4276.8}]
[null,null,"Primary education provided","(Child-friendly spaces)",{"$f":"'Emergency Parameters'!$F$15*'Emergency Parameters'!$F$58","v":4000},"students",5,1,{"$f":"E27*G27*H27","v":20000}]
[null,null,"Unspecified output - Education",null,1,"lumpsum",null,1,{"$f":"E28*G28*H28","v":0}]
[null,"Supply of potable water increased or maintained",null,null,null,null,null,null,{"$f":"SUM(I30:I32)","v":2428000}]
[null,null,"Water system constructed, expanded and/or upgraded","(Boreholes)",{"$f":"'Emergency Parameters'!F15/'Emergency Standards'!E21*'Emergency Parameters'!F60","v":100},"borehole",7000,1,{"$f":"E30*G30*H30","v":700000}]
[null,null,"Water system constructed, expanded and/or upgraded","(Trucking)",{"$f":"'Emergency Parameters'!F15*'Emergency Standards'!C20*'Emergency Parameters'!F60","v":400000},"litre",2.4E-2,{"$f":"'Emergency Parameters'!F17*30","v":180},{"$f":"E31*G31*H31","v":1728000}]
[null,null,"Unspecified output - Water",null,1,"lumpsum",null,1,{"$f":"E32*G32*H32","v":0}]
[null,"Services for persons with specific needs strengthened",null,null,null,null,null,null,{"$f":"SUM(I34:I35)","v":200000}]
[null,null,"Support to persons with specific needs provided",null,{"$f":"'Emergency Parameters'!F15*'Emergency Parameters'!F62","v":4000},"person",50,1,{"$f":"E34*G34*H34","v":200000}]
[null,null,"Unspecified output - Servs for PoC w Specific Needs",null,1,"lumpsum",null,1,{"$f":"E35*G35*H35","v":0}]
[null,"Food security improved",null,null,null,null,null,null,{"$f":"SUM(I37:I38)","v":750000}]
[null,null,"Adequate quantity and quality of food aid provided (<5,000 refugees)",null,{"$f":"IF('Emergency Parameters'!F64>0, (5000)/'Emergency Standards'!E3, \"0\")","v":1250},"family",100,{"$f":"'Emergency Parameters'!F17","v":6},{"$f":"E37*G37*H37","v":750000}]
[null,null,"Unspecified output - Food Security",null,1,"lumpsum",null,1,{"$f":"E38*G38*H38","v":0}]
[null,"Population has sufficient access to energy",null,null,null,null,null,null,{"$f":"SUM(I40:I41)","v":300000}]
[null,null,"Domestic fuel provided",null,{"$f":"('Emergency Parameters'!F15/'Emergency Standards'!E3)*'Emergency Parameters'!F66","v":5000},"family",10,{"$f":"'Emergency Parameters'!F17","v":6},{"$f":"E40*G40*H40","v":300000}]
[null,null,"Unspecified output - Energy",null,1,"lumpsum",null,1,{"$f":"E41*G41*H41","v":0}]
[null,"Nutritional well-being improved",null,null,null,null,null,null,{"$f":"SUM(I43:I46)","v":134320}]
[null,null,"Complementary food supplements provided and monitored","(feeding centre)",{"$f":"IF( 'Emergency Parameters'!F68>0, 'Emergency Parameters'!F15/'Emergency Standards'!E35, \"0\")","v":1},"centre",10000,1,{"$f":"E43*G43*H43","v":10000}]
[null,null,"Complementary food supplements provided and monitored","(Plumpynut)",{"$f":"('Emergency Parameters'!F15/50)*'Emergency Parameters'!F68","v":80},"box",54,1,{"$f":"E44*G44*H44","v":4320}]
[null,null,"Complementary food supplements provided and monitored (>5,000 refugees)",null,{"$f":"'Emergency Parameters'!F15*'Emergency Parameters'!F68","v":4000},"<5/month",5,{"$f":"'Emergency Parameters'!F17","v":6},{"$f":"E45*G45*H45","v":120000}]
[null,null,"Unspecified output - Nutrition",null,1,"lumpsum",null,1,{"$f":"E46*G46*H46","v":0}]
["Logistics and Operations Support",null,null,null,null,null,null,null,{"$f":"SUM(I48,I51)","v":1269892.8296000001}]
[null,"Logistics and supply optimized to serve operational needs",null,null,null,null,null,null,{"$f":"SUM(I49:I50)","v":293123.82}]
[null,null,"Inventory/distribution optimized (6% of total procurement costs)",null,1,"lumpsum",{"$f":"(I7+I11+I16+I37)*0.06","v":293123.82},1,{"$f":"E49*G49*H49","v":293123.82}]
[null,null,"Unspecified output - Supply Chain/ Logistics",null,1,"lumpsum",null,1,{"$f":"E50*G50*H50","v":0}]
[null,"Operations management, coordination and support strengthened and optimized",null,null,null,null,null,null,{"$f":"SUM(I52:I53)","v":976769.00960000011}]
[null,null,"General project management services provided (8% of total ops)",null,1,"lumpsum",{"$f":"(SUM(I5,I54,I65,I72,I80,I48,I53))*0.08","v":976769.00960000011},1,{"$f":"E52*G52*H52","v":976769.00960000011}]
[null,null,"Unspecified output - Operations Management",null,1,"lumpsum",null,1,{"$f":"E53*G53*H53","v":0}]
["Security from Violence and Exploitation",null,null,null,null,null,null,null,{"$f":"SUM(I55,I58,I61)","v":730000}]
[null,"Risk of SGBV is reduced and quality of response improved",null,null,null,null,null,null,{"$f":"SUM(I56:I57)","v":10000}]
[null,null,"Assessment and analysis undertaken",null,{"$f":"'Emergency Parameters'!F15/'Emergency Standards'!E7*'Emergency Parameters'!F84","v":2},"camp",5000,1,{"$f":"E56*G56*H56","v":10000}]
[null,null,"Unspecified output - SGBV Prevention and Response",null,1,"lumpsum",null,1,{"$f":"E57*G57*H57","v":0}]
[null,"Protection from effects of armed conflict strengthened",null,null,null,null,null,null,{"$f":"SUM(I59:I60)","v":600000}]
[null,null,"Protection by presence provided",null,{"$f":"'Emergency Parameters'!F15*'Emergency Parameters'!F88","v":20000},"person",5,{"$f":"'Emergency Parameters'!F17","v":6},{"$f":"E59*G59*H59","v":600000}]
[null,null,"Unspecified output - Effects of Armed Conflict",null,1,"lumpsum",null,1,{"$f":"E60*G60*H60","v":0}]
[null,"Protection of children strengthened",null,null,null,null,null,null,{"$f":"SUM(I62:I64)","v":120000}]
[null,null,"Prevention and response services for adolescents",null,{"$f":"'Emergency Parameters'!F15*'Emergency Parameters'!F86","v":6000},"children",10,1,{"$f":"E62*G62*H62","v":60000}]
[null,null,"Prevention and response services for children at risk",null,{"$f":"'Emergency Parameters'!F15*'Emergency Parameters'!F86","v":6000},"children",10,1,{"$f":"E63*G63*H63","v":60000}]
[null,null,"Unspecified output - Protection of Children",null,1,"lumpsum",null,1,{"$f":"E64*G64*H64","v":0}]
["Fair Protection Processes and Documentation",null,null,null,null,null,null,null,{"$f":"SUM(I66,I69)","v":280000}]
[null,"Reception conditions improved",null,null,null,null,null,null,{"$f":"SUM(I67:I68)","v":160000}]
[null,null,"Reception/transit centre infrastructure established and maintained",null,{"$f":"'Emergency Parameters'!F15*'Emergency Parameters'!F72","v":20000},"person",8,1,{"$f":"E67*G67*H67","v":160000}]
[null,null,"Unspecified output - Reception Conditions",null,1,"lumpsum",null,1,{"$f":"E68*G68*H68","v":0}]
[null,"Level of individual documentation increased",null,null,null,null,null,null,{"$f":"SUM(I70:I71)","v":120000}]
[null,null,"Issuance of ID & travel documents to persons of concern supported",null,{"$f":"'Emergency Parameters'!F15*'Emergency Parameters'!F74","v":20000},"person",6,1,{"$f":"E70*G70*H70","v":120000}]
[null,null,"Unspecified output - Individual Documentation",null,1,"lumpsum",null,1,{"$f":"E71*G71*H71","v":0}]
["Leadership, Coordination and Partnerships",null,null,null,null,null,null,null,{"$f":"SUM(I73,I77)","v":30000}]
[null,"Camp management and coordination refined and improved",null,null,null,null,null,null,{"$f":"SUM(I74:I76)","v":20000}]
[null,null,"Site selection, site planning and site monitoring/implementation conducted against UNHCR and/or SPHERE standards",null,{"$f":"'Emergency Parameters'!F15/'Emergency Standards'!E7","v":2},"camp",5000,1,{"$f":"E74*G74*H74","v":10000}]
[null,null,"Roles and responsibilities for camp managers and service providers defined and agreed",null,{"$f":"'Emergency Parameters'!F15/'Emergency Standards'!E7","v":2},"camp",5000,1,{"$f":"E75*G75*H75","v":10000}]
[null,null,"Unspecified output - Camp Mgmt. & Coordination",null,1,"lumpsum",null,1,{"$f":"E76*G76*H76","v":0}]
[null,"Emergency management strengthened",null,null,null,null,null,null,{"$f":"SUM(I78:I79)","v":10000}]
[null,null,"Advocacy conducted",null,{"$f":"'Emergency Parameters'!F15","v":20000},"person",0.5,1,{"$f":"E78*G78*H78","v":10000}]
[null,null,"Unspecified output - Emergency Management",null,1,"lumpsum",null,1,{"$f":"E79*G79*H79","v":0}]
["Favourable Protection Environment",null,null,null,null,null,null,null,{"$f":"SUM(I81,I84)","v":360000}]
[null,"Access to legal assistance and legal remedies improved",null,null,null,null,null,null,{"$f":"SUM(I82:I83)","v":240000}]
[null,null,"Legal services and clinics established or provided",null,{"$f":"'Emergency Parameters'!F15*'Emergency Parameters'!F78","v":20000},"person",2,{"$f":"'Emergency Parameters'!F17","v":6},{"$f":"E82*G82*H82","v":240000}]
[null,null,"Unspecified output - Legal Remedies & Assistance",null,1,"lumpsum",null,1,{"$f":"E83*G83*H83","v":0}]
[null,"Access to the territory improved and risk of refoulement reduced",null,null,null,null,null,null,{"$f":"SUM(I85:I86)","v":120000}]
[null,null,"Systematic and independent border monitoring established or conducted",null,{"$f":"'Emergency Parameters'!F15*'Emergency Parameters'!F80","v":20000},"person",1,{"$f":"'Emergency Parameters'!F17","v":6},{"$f":"E85*G85*H85","v":120000}]
[null,null,"Unspecified output - Access & Non Refoulement",null,1,"lumpsum",null,1,{"$f":"E86*G86*H86","v":0}]
["Grand Total",null,null,null,null,null,null,null,{"$f":"SUM(I5,I47,I54,I65,I72,I80,)","v":13186381.629600001}]
["* Quantity, Unit Cost and Time are automatically calculated based on the inputs in the Emergency Parameters sheet. However, these, especially unit cost could be adjusted reflecting "]
["  the local reality. In addition, unspecified output are only to be entered manually where applicable."]

{"sheet":"B.Staff","index":3,"n_rows":2678,"n_cols":7,"rows_kept":2678,"cut":false,"hidden":false,"merged":[[0,0,0,6]]}
["Annex II.B: Staffing Costs (included in ABOD as temporary assistance,\nbased on Emergency Parameters section III)"]
["Emergency in:",{"$f":"'Emergency Parameters'!E10","v":0}]
[]
[null,null,null,null,"Country Code:",null,{"$f":"'Emergency Parameters'!E10","v":0}]
["Function Type","Grade","Person","Amount*","Annual Salary*","Month","Amount**"]
[{"$f":"'Emergency Parameters'!D99","v":0},{"$f":"'Emergency Parameters'!E99","v":0},{"$f":"'Emergency Parameters'!F99","v":0},{"$f":"INDEX(E$37:E$3037,SUMPRODUCT(MATCH(B6&$G$4,C$37:C$3037&B$37:B$3037,0)))","v":{"$error":"#N/A"}},{"$f":"IF(ISNA(D6),0,D6)","v":0},{"$f":"'Emergency Parameters'!F$17","v":6},{"$f":"((C6*E6)/12)*F6","v":0}]
[{"$f":"'Emergency Parameters'!D100","v":0},{"$f":"'Emergency Parameters'!E100","v":0},{"$f":"'Emergency Parameters'!F100","v":0},{"$f":"INDEX(E$37:E$3037,SUMPRODUCT(MATCH(B7&$G$4,C$37:C$3037&B$37:B$3037,0)))","v":{"$error":"#N/A"}},{"$f":"IF(ISNA(D7),0,D7)","v":0},{"$f":"'Emergency Parameters'!F$17","v":6},{"$f":"((C7*E7)/12)*F7","v":0}]
[{"$f":"'Emergency Parameters'!D101","v":0},{"$f":"'Emergency Parameters'!E101","v":0},{"$f":"'Emergency Parameters'!F101","v":0},{"$error":"#N/A"},0,{"$f":"'Emergency Parameters'!F$17","v":6},0]
[{"$f":"'Emergency Parameters'!D102","v":0},{"$f":"'Emergency Parameters'!E102","v":0},{"$f":"'Emergency Parameters'!F102","v":0},{"$error":"#N/A"},0,{"$f":"'Emergency Parameters'!F$17","v":6},0]
[{"$f":"'Emergency Parameters'!D103","v":0},{"$f":"'Emergency Parameters'!E103","v":0},{"$f":"'Emergency Parameters'!F103","v":0},{"$error":"#N/A"},0,{"$f":"'Emergency Parameters'!F$17","v":6},0]
[{"$f":"'Emergency Parameters'!D104","v":0},{"$f":"'Emergency Parameters'!E104","v":0},{"$f":"'Emergency Parameters'!F104","v":0},{"$error":"#N/A"},0,{"$f":"'Emergency Parameters'!F$17","v":6},0]
[{"$f":"'Emergency Parameters'!D105","v":0},{"$f":"'Emergency Parameters'!E105","v":0},{"$f":"'Emergency Parameters'!F105","v":0},{"$error":"#N/A"},0,{"$f":"'Emergency Parameters'!F$17","v":6},0]
[{"$f":"'Emergency Parameters'!D106","v":0},{"$f":"'Emergency Parameters'!E106","v":0},{"$f":"'Emergency Parameters'!F106","v":0},{"$error":"#N/A"},0,{"$f":"'Emergency Parameters'!F$17","v":6},0]
[{"$f":"'Emergency Parameters'!D107","v":0},{"$f":"'Emergency Parameters'!E107","v":0},{"$f":"'Emergency Parameters'!F107","v":0},{"$error":"#N/A"},0,{"$f":"'Emergency Parameters'!F$17","v":6},0]
[{"$f":"'Emergency Parameters'!D108","v":0},{"$f":"'Emergency Parameters'!E108","v":0},{"$f":"'Emergency Parameters'!F108","v":0},{"$error":"#N/A"},0,{"$f":"'Emergency Parameters'!F$17","v":6},0]
[{"$f":"'Emergency Parameters'!D109","v":0},{"$f":"'Emergency Parameters'!E109","v":0},{"$f":"'Emergency Parameters'!F109","v":0},{"$error":"#N/A"},0,{"$f":"'Emergency Parameters'!F$17","v":6},0]
[{"$f":"'Emergency Parameters'!D110","v":0},{"$f":"'Emergency Parameters'!E110","v":0},{"$f":"'Emergency Parameters'!F110","v":0},{"$error":"#N/A"},0,{"$f":"'Emergency Parameters'!F$17","v":6},0]
[{"$f":"'Emergency Parameters'!D111","v":0},{"$f":"'Emergency Parameters'!E111","v":0},{"$f":"'Emergency Parameters'!F111","v":0},{"$error":"#N/A"},0,{"$f":"'Emergency Parameters'!F$17","v":6},0]
[{"$f":"'Emergency Parameters'!D112","v":0},{"$f":"'Emergency Parameters'!E112","v":0},{"$f":"'Emergency Parameters'!F112","v":0},{"$error":"#N/A"},0,{"$f":"'Emergency Parameters'!F$17","v":6},0]
[{"$f":"'Emergency Parameters'!D113","v":0},{"$f":"'Emergency Parameters'!E113","v":0},{"$f":"'Emergency Parameters'!F113","v":0},{"$error":"#N/A"},0,{"$f":"'Emergency Parameters'!F$17","v":6},0]
[{"$f":"'Emergency Parameters'!D114","v":0},{"$f":"'Emergency Parameters'!E114","v":0},{"$f":"'Emergency Parameters'!F114","v":0},{"$error":"#N/A"},0,{"$f":"'Emergency Parameters'!F$17","v":6},0]
[{"$f":"'Emergency Parameters'!D115","v":0},{"$f":"'Emergency Parameters'!E115","v":0},{"$f":"'Emergency Parameters'!F115","v":0},{"$error":"#N/A"},0,{"$f":"'Emergency Parameters'!F$17","v":6},0]
[{"$f":"'Emergency Parameters'!D116","v":0},{"$f":"'Emergency Parameters'!E116","v":0},{"$f":"'Emergency Parameters'!F116","v":0},{"$error":"#N/A"},0,{"$f":"'Emergency Parameters'!F$17","v":6},0]
[{"$f":"'Emergency Parameters'!D117","v":0},{"$f":"'Emergency Parameters'!E117","v":0},{"$f":"'Emergency Parameters'!F117","v":0},{"$error":"#N/A"},0,{"$f":"'Emergency Parameters'!F$17","v":6},0]
[{"$f":"'Emergency Parameters'!D118","v":0},{"$f":"'Emergency Parameters'!E118","v":0},{"$f":"'Emergency Parameters'!F118","v":0},{"$error":"#N/A"},0,{"$f":"'Emergency Parameters'!F$17","v":6},0]
[{"$f":"'Emergency Parameters'!D119","v":0},{"$f":"'Emergency Parameters'!E119","v":0},{"$f":"'Emergency Parameters'!F119","v":0},{"$error":"#N/A"},0,{"$f":"'Emergency Parameters'!F$17","v":6},0]
[{"$f":"'Emergency Parameters'!D120","v":0},{"$f":"'Emergency Parameters'!E120","v":0},{"$f":"'Emergency Parameters'!F120","v":0},{"$error":"#N/A"},0,{"$f":"'Emergency Parameters'!F$17","v":6},0]
[{"$f":"'Emergency Parameters'!D121","v":0},{"$f":"'Emergency Parameters'!E121","v":0},{"$f":"'Emergency Parameters'!F121","v":0},{"$error":"#N/A"},0,{"$f":"'Emergency Parameters'!F$17","v":6},0]
["TOTAL",null,null,null,null,null,{"$f":"SUM(G6:G28)","v":0}]
["* Annual salary scale for 2020 for a respective country."]
[]
[]
[]
[]
[null,"Salary Scale: updated Feb 2015"]
[null,"Country","Grade","USD","Amount"]
[null,"Afghanistan","D1","USD",299906]
[null,"Afghanistan","D2","USD",326847]
[null,"Afghanistan","FS4","USD",140040]
[null,"Afghanistan","FS5","USD",173598]
[null,"Afghanistan","G1A","USD",12233]
[null,"Afghanistan","G1B","USD",16023]
[null,"Afghanistan","G2","USD",20992]
[null,"Afghanistan","G3","USD",27047]
[null,"Afghanistan","G4","USD",34920]
[null,"Afghanistan","G5","USD",42581]
[null,"Afghanistan","G6","USD",51091]
[null,"Afghanistan","G7","USD",60291]
[null,"Afghanistan","NA","USD",72617]
[null,"Afghanistan","NB","USD",86567]
[null,"Afghanistan","NC","USD",103187]
[null,"Afghanistan","ND","USD",122999]
[null,"Afghanistan","P1","USD",120237]
[null,"Afghanistan","P2","USD",152399]
[null,"Afghanistan","P3","USD",190157]
[null,"Afghanistan","P4","USD",230112]
[null,"Afghanistan","P5","USD",265976]
[null,"Albania","D1","USD",189861]
[null,"Albania","D2","USD",206917]
[null,"Albania","FS4","USD",88655]
[null,"Albania","FS5","USD",109900]
[null,"Albania","G1","USD",16408]
[null,"Albania","G2","USD",18073]
[null,"Albania","G3","USD",19861]
[null,"Albania","G4","USD",21832]
[null,"Albania","G5","USD",24452]
[null,"Albania","G6","USD",27648]
[null,"Albania","G7","USD",31236]
[null,"Albania","NA","USD",39807]
[null,"Albania","NB","USD",47729]
[null,"Albania","NC","USD",60182]
[null,"Albania","ND","USD",75794]
[null,"Albania","P1","USD",76118]
[null,"Albania","P2","USD",96479]
[null,"Albania","P3","USD",120383]
[null,"Albania","P4","USD",145677]
[null,"Albania","P5","USD",168381]
[null,"Algeria","D1","USD",264761]
[null,"Algeria","D2","USD",288545]
[null,"Algeria","FS4","USD",123629]
[null,"Algeria","FS5","USD",153255]
[null,"Algeria","G2","USD",17968]
[null,"Algeria","G3","USD",20663]
[null,"Algeria","G4","USD",23762]
[null,"Algeria","G5","USD",27327]
[null,"Algeria","G6","USD",31426]
[null,"Algeria","G7","USD",36454]
[null,"Algeria","NA","USD",46830]
[null,"Algeria","NB","USD",56195]
[null,"Algeria","NC","USD",67435]
[null,"Algeria","ND","USD",80922]
[null,"Algeria","P1","USD",106146]
[null,"Algeria","P2","USD",134539]
[null,"Algeria","P3","USD",167873]
[null,"Algeria","P4","USD",203146]
[null,"Algeria","P5","USD",234807]
[null,"Angola","D1","USD",322742]
[null,"Angola","D2","USD",351735]
[null,"Angola","FS4","USD",150704]
[null,"Angola","FS5","USD",186817]
[null,"Angola","G1","USD",32576]
[null,"Angola","G2","USD",38442]
[null,"Angola","G3","USD",45361]
[null,"Angola","G4","USD",53532]
[null,"Angola","G5","USD",63165]
[null,"Angola","G6","USD",75163]
[null,"Angola","G7","USD",90195]
[null,"Angola","NA","USD",109763]
[null,"Angola","NB","USD",136108]
[null,"Angola","NC","USD",171492]
[null,"Angola","ND","USD",216079]
[null,"Angola","P1","USD",129392]
[null,"Angola","P2","USD",164003]
[null,"Angola","P3","USD",204636]
[null,"Angola","P4","USD",247634]
[null,"Angola","P5","USD",286228]
[null,"Argentina","D1","USD",212336]
[null,"Argentina","D2","USD",231411]
[null,"Argentina","FS4","USD",99150]
[null,"Argentina","FS5","USD",122909]
[null,"Argentina","G1","USD",20355]
[null,"Argentina","G2","USD",24023]
[null,"Argentina","G3","USD",28345]
[null,"Argentina","G4","USD",33448]
[null,"Argentina","G5","USD",39803]
[null,"Argentina","G6","USD",48957]
[null,"Argentina","G7","USD",60219]
[null,"Argentina","NA","USD",66841]
[null,"Argentina","NB","USD",87563]
[null,"Argentina","NC","USD",117333]
[null,"Argentina","ND","USD",157226]
[null,"Argentina","P1","USD",85129]
[null,"Argentina","P2","USD",107900]
[null,"Argentina","P3","USD",134633]
[null,"Argentina","P4","USD",162922]
[null,"Argentina","P5","USD",188313]
[null,"Armenia","D1","USD",254278]
[null,"Armenia","D2","USD",277120]
[null,"Armenia","FS4","USD",118734]
[null,"Armenia","FS5","USD",147187]
[null,"Armenia","G1","USD",11393]
[null,"Armenia","G2","USD",13574]
[null,"Armenia","G3","USD",16146]
[null,"Armenia","G4","USD",19218]
[null,"Armenia","G5","USD",23241]
[null,"Armenia","G6","USD",28130]
[null,"Armenia","G7","USD",34044]
[null,"Armenia","NA","USD",45855]
[null,"Armenia","NB","USD",55917]
[null,"Armenia","NC","USD",67668]
[null,"Armenia","ND","USD",77143]
[null,"Armenia","P1","USD",101944]
[null,"Armenia","P2","USD",129213]
[null,"Armenia","P3","USD",161226]
[null,"Armenia","P4","USD",195103]
[null,"Armenia","P5","USD",225510]
[null,"Australia","D1","USD",231541]
[null,"Australia","D2","USD",252340]
[null,"Australia","FS4","USD",108117]
[null,"Australia","FS5","USD",134025]
[null,"Australia","G1","USD",48160]
[null,"Australia","G2","USD",52974]
[null,"Australia","G3","USD",58270]
[null,"Australia","G4","USD",64104]
[null,"Australia","G5","USD",71147]
[null,"Australia","G6","USD",79689]
[null,"Australia","G7","USD",89250]
[null,"Australia","NA","USD",112291]
[null,"Australia","NB","USD",128572]
[null,"Australia","NC","USD",149142]
[null,"Australia","ND","USD",173005]
[null,"Australia","P1","USD",92828]
[null,"Australia","P2","USD",117658]
[null,"Australia","P3","USD",146809]
[null,"Australia","P4","USD",177657]
[null,"Australia","P5","USD",205345]
[null,"Austria","D1","USD",265900]
[null,"Austria","D2","USD",289787]
[null,"Austria","FS4","USD",124161]
[null,"Austria","FS5","USD",153914]
[null,"Austria","G1","USD",54790]
[null,"Austria","G2","USD",63392]
[null,"Austria","G3","USD",73369]
[null,"Austria","G4","USD",84893]
[null,"Austria","G5","USD",98204]
[null,"Austria","G6","USD",113613]
[null,"Austria","G7","USD",131480]
[null,"Austria","P1","USD",106603]
[null,"Austria","P2","USD",135118]
[null,"Austria","P3","USD",168595]
[null,"Austria","P4","USD",204020]
[null,"Austria","P5","USD",235817]
[null,"Azerbaijan","D1","USD",289797]
[null,"Azerbaijan","D2","USD",315830]
[null,"Azerbaijan","FS4","USD",135320]
[null,"Azerbaijan","FS5","USD",167746]
[null,"Azerbaijan","G1","USD",23037]
[null,"Azerbaijan","G2","USD",26499]
[null,"Azerbaijan","G3","USD",30482]
[null,"Azerbaijan","G4","USD",35051]
[null,"Azerbaijan","G5","USD",41012]
[null,"Azerbaijan","G6","USD",49217]
[null,"Azerbaijan","G7","USD",59051]
[null,"Azerbaijan","NA","USD",73332]
[null,"Azerbaijan","NB","USD",88733]
[null,"Azerbaijan","NC","USD",107373]
[null,"Azerbaijan","ND","USD",125631]
[null,"Azerbaijan","P1","USD",116184]
[null,"Azerbaijan","P2","USD",147262]
[null,"Azerbaijan","P3","USD",183747]
[null,"Azerbaijan","P4","USD",222356]
[null,"Azerbaijan","P5","USD",257010]
[null,"Bangladesh","D1","USD",259023]
[null,"Bangladesh","D2","USD",282292]
[null,"Bangladesh","FS4","USD",120950]
[null,"Bangladesh","FS5","USD",149934]
[null,"Bangladesh","G1","USD",9562]
[null,"Bangladesh","G2","USD",12430]
[null,"Bangladesh","G3","USD",15662]
[null,"Bangladesh","G4","USD",19578]
[null,"Bangladesh","G5","USD",24472]
[null,"Bangladesh","G6","USD",30346]
[null,"Bangladesh","G7","USD",37629]
[null,"Bangladesh","NA","USD",49415]
[null,"Bangladesh","NB","USD",69675]
[null,"Bangladesh","NC","USD",95942]
[null,"Bangladesh","ND","USD",121846]
[null,"Bangladesh","P1","USD",103846]
[null,"Bangladesh","P2","USD",131624]
[null,"Bangladesh","P3","USD",164235]
[null,"Bangladesh","P4","USD",198744]
[null,"Bangladesh","P5","USD",229718]
[null,"Belarus","D1","USD",269052]
[null,"Belarus","D2","USD",293222]
[null,"Belarus","FS4","USD",125633]
[null,"Belarus","FS5","USD",155739]
[null,"Belarus","G1","USD",18032]
[null,"Belarus","G2","USD",20921]
[null,"Belarus","G3","USD",24265]
[null,"Belarus","G4","USD",28143]
[null,"Belarus","G5","USD",32647]
[null,"Belarus","G6","USD",38527]
[null,"Belarus","G7","USD",45458]
[null,"Belarus","NA","USD",58342]
[null,"Belarus","NB","USD",71177]
[null,"Belarus","NC","USD",88258]
[null,"Belarus","P1","USD",107867]
[null,"Belarus","P2","USD",136720]
[null,"Belarus","P3","USD",170594]
[null,"Belarus","P4","USD",206439]
[null,"Belarus","P5","USD",238613]
[null,"Belgium","D1","USD",248603]
[null,"Belgium","D2","USD",270936]
[null,"Belgium","FS4","USD",116085]
[null,"Belgium","FS5","USD",143902]
[null,"Belgium","G1","USD",67406]
[null,"Belgium","G2","USD",74807]
[null,"Belgium","G3","USD",83037]
[null,"Belgium","G4","USD",92179]
[null,"Belgium","G5","USD",101395]
[null,"Belgium","G6","USD",111538]
[null,"Belgium","G7","USD",122692]
[null,"Belgium","NA","USD",128440]
[null,"Belgium","NB","USD",140002]
[null,"Belgium","NC","USD",152601]
[null,"Belgium","P1","USD",99669]
[null,"Belgium","P2","USD",126329]
[null,"Belgium","P3","USD",157628]
[null,"Belgium","P4","USD",190749]
[null,"Belgium","P5","USD",220477]
[null,"Benin","D1","USD",226837]
[null,"Benin","D2","USD",247215]
[null,"Benin","FS4","USD",105921]
[null,"Benin","FS5","USD",131303]
[null,"Benin","G1","USD",10547]
[null,"Benin","G2","USD",13263]
[null,"Benin","G3","USD",16758]
[null,"Benin","G4","USD",21144]
[null,"Benin","G5","USD",26620]
[null,"Benin","G6","USD",33522]
[null,"Benin","G7","USD",41552]
[null,"Benin","NA","USD",43827]
[null,"Benin","NB","USD",55641]
[null,"Benin","NC","USD",70673]
[null,"Benin","ND","USD",77741]
[null,"Benin","P1","USD",90942]
[null,"Benin","P2","USD",115269]
[null,"Benin","P3","USD",143827]
[null,"Benin","P4","USD",174048]
[null,"Benin","P5","USD",201174]
[null,"Bosnia and Herzegovina","D1","USD",213689]
[null,"Bosnia and Herzegovina","D2","USD",232885]
[null,"Bosnia and Herzegovina","FS4","USD",99781]
[null,"Bosnia and Herzegovina","FS5","USD",123692]
[null,"Bosnia and Herzegovina","G1","USD",25870]
[null,"Bosnia and Herzegovina","G2","USD",28972]
[null,"Bosnia and Herzegovina","G3","USD",32448]
[null,"Bosnia and Herzegovina","G4","USD",36343]
[null,"Bosnia and Herzegovina","G5","USD",40701]
[null,"Bosnia and Herzegovina","G6","USD",45587]
[null,"Bosnia and Herzegovina","G7","USD",51057]
[null,"Bosnia and Herzegovina","NA","USD",55123]
[null,"Bosnia and Herzegovina","NB","USD",61732]
[null,"Bosnia and Herzegovina","NC","USD",69144]
[null,"Bosnia and Herzegovina","ND","USD",77446]
[null,"Bosnia and Herzegovina","P1","USD",85671]
[null,"Bosnia and Herzegovina","P2","USD",108587]
[null,"Bosnia and Herzegovina","P3","USD",135491]
[null,"Bosnia and Herzegovina","P4","USD",163960]
[null,"Bosnia and Herzegovina","P5","USD",189513]
[null,"Botswana","D1","USD",232707]
[null,"Botswana","D2","USD",253612]
[null,"Botswana","FS4","USD",108662]
[null,"Botswana","FS5","USD",134701]
[null,"Botswana","G1","USD",9834]
[null,"Botswana","G2","USD",12980]
[null,"Botswana","G3","USD",16875]
[null,"Botswana","G4","USD",21600]
[null,"Botswana","G5","USD",27432]
[null,"Botswana","G6","USD",34016]
[null,"Botswana","G7","USD",41500]
[null,"Botswana","NA","USD",52090]
[null,"Botswana","NB","USD",66154]
[null,"Botswana","NC","USD",84677]
[null,"Botswana","ND","USD",108386]
[null,"Botswana","P1","USD",93296]
[null,"Botswana","P2","USD",118251]
[null,"Botswana","P3","USD",147549]
[null,"Botswana","P4","USD",178552]
[null,"Botswana","P5","USD",206380]
[null,"Brazil","D1","USD",249235]
[null,"Brazil","D2","USD",271624]
[null,"Brazil","FS4","USD",116379]
[null,"Brazil","FS5","USD",144267]
[null,"Brazil","G1","USD",18021]
[null,"Brazil","G2","USD",22346]
[null,"Brazil","G3","USD",27696]
[null,"Brazil","G4","USD",34077]
[null,"Brazil","G5","USD",41574]
[null,"Brazil","G6","USD",50304]
[null,"Brazil","G7","USD",60867]
[null,"Brazil","NA","USD",72822]
[null,"Brazil","NB","USD",92485]
[null,"Brazil","NC","USD",122080]
[null,"Brazil","ND","USD",161143]
[null,"Brazil","NE","USD",212709]
[null,"Brazil","P1","USD",99922]
[null,"Brazil","P2","USD",126650]
[null,"Brazil","P3","USD",158028]
[null,"Brazil","P4","USD",191233]
[null,"Brazil","P5","USD",221037]
[null,"Bulgaria","D1","USD",241244]
[null,"Bulgaria","D2","USD",262915]
[null,"Bulgaria","FS4","USD",112648]
[null,"Bulgaria","FS5","USD",139642]
[null,"Bulgaria","G1","USD",20002]
[null,"Bulgaria","G2","USD",23605]
[null,"Bulgaria","G3","USD",27853]
[null,"Bulgaria","G4","USD",32863]
[null,"Bulgaria","G5","USD",38781]
[null,"Bulgaria","G6","USD",45760]
[null,"Bulgaria","G7","USD",53996]
[null,"Bulgaria","NA","USD",65581]
[null,"Bulgaria","NB","USD",80003]
[null,"Bulgaria","NC","USD",97606]
[null,"Bulgaria","ND","USD",117126]
[null,"Bulgaria","P1","USD",96718]
[null,"Bulgaria","P2","USD",122589]
[null,"Bulgaria","P3","USD",152962]
[null,"Bulgaria","P4","USD",185102]
[null,"Bulgaria","P5","USD",213950]
[null,"Burkina Faso","D1","USD",263268]
[null,"Burkina Faso","D2","USD",286918]
[null,"Burkina Faso","FS4","USD",122932]
[null,"Burkina Faso","FS5","USD",152390]
[null,"Burkina Faso","G1","USD",14047]
[null,"Burkina Faso","G2","USD",17706]
[null,"Burkina Faso","G3","USD",22318]
[null,"Burkina Faso","G4","USD",28124]
[null,"Burkina Faso","G5","USD",34864]
[null,"Burkina Faso","G6","USD",43237]
[null,"Burkina Faso","G7","USD",51226]
[null,"Burkina Faso","NA","USD",54790]
[null,"Burkina Faso","NB","USD",65729]
[null,"Burkina Faso","NC","USD",79547]
[null,"Burkina Faso","ND","USD",100226]
[null,"Burkina Faso","P1","USD",105548]
[null,"Burkina Faso","P2","USD",133781]
[null,"Burkina Faso","P3","USD",166926]
[null,"Burkina Faso","P4","USD",202001]
[null,"Burkina Faso","P5","USD",233483]
[null,"Burundi","D1","USD",273759]
[null,"Burundi","D2","USD",298351]
[null,"Burundi","FS4","USD",127831]
[null,"Burundi","FS5","USD",158463]
[null,"Burundi","G2","USD",10706]
[null,"Burundi","G3","USD",14559]
[null,"Burundi","G4","USD",19801]
[null,"Burundi","G5","USD",26335]
[null,"Burundi","G6","USD",35030]
[null,"Burundi","G7","USD",43084]
[null,"Burundi","NA","USD",40135]
[null,"Burundi","NB","USD",44154]
[null,"Burundi","NC","USD",48568]
[null,"Burundi","ND","USD",53416]
[null,"Burundi","P1","USD",109754]
[null,"Burundi","P2","USD",139112]
[null,"Burundi","P3","USD",173578]
[null,"Burundi","P4","USD",210051]
[null,"Burundi","P5","USD",242787]
[null,"Cameroon","D1","USD",265584]
[null,"Cameroon","D2","USD",289442]
[null,"Cameroon","FS4","USD",124014]
[null,"Cameroon","FS5","USD",153731]
[null,"Cameroon","G2","USD",17336]
[null,"Cameroon","G3","USD",21511]
[null,"Cameroon","G4","USD",26670]
[null,"Cameroon","G5","USD",33337]
[null,"Cameroon","G6","USD",41672]
[null,"Cameroon","G7","USD",52071]
[null,"Cameroon","NA","USD",73196]
[null,"Cameroon","NB","USD",91514]
[null,"Cameroon","NC","USD",114389]
[null,"Cameroon","ND","USD",138411]
[null,"Cameroon","P1","USD",106476]
[null,"Cameroon","P2","USD",134958]
[null,"Cameroon","P3","USD",168395]
[null,"Cameroon","P4","USD",203778]
[null,"Cameroon","P5","USD",235537]
[null,"Canada","D1","USD",230104]
[null,"Canada","D2","USD",250775]
[null,"Canada","G1","USD",38256]
[null,"Canada","G1","USD",39790]
[null,"Canada","G2","USD",41783]
[null,"Canada","G2","USD",43465]
[null,"Canada","G3","USD",45647]
[null,"Canada","G3","USD",47473]
[null,"Canada","G4","USD",49851]
[null,"Canada","G4","USD",51861]
[null,"Canada","G5","USD",54463]
[null,"Canada","G5","USD",56642]
[null,"Canada","G6","USD",59482]
[null,"Canada","G6","USD",61871]
[null,"Canada","G7","USD",64970]
[null,"Canada","G7","USD",67580]
[null,"Canada","NA","USD",73602]
[null,"Canada","NA","USD",78016]
[null,"Canada","NA","USD",84643]
[null,"Canada","NB","USD",80374]
[null,"Canada","NB","USD",85206]
[null,"Canada","NB","USD",92438]
[null,"Canada","NC","USD",87768]
[null,"Canada","NC","USD",93038]
[null,"Canada","NC","USD",100932]
[null,"Canada","ND","USD",95852]
[null,"Canada","ND","USD",101596]
[null,"Canada","ND","USD",110222]
[null,"Canada","P1","USD",92252]
[null,"Canada","P2","USD",116929]
[null,"Canada","P3","USD",145899]
[null,"Canada","P4","USD",176555]
[null,"Canada","P5","USD",204071]
[null,"Central African Republic","D1","USD",370923]
[null,"Central African Republic","D2","USD",404244]
[null,"Central African Republic","FS4","USD",173202]
[null,"Central African Republic","FS5","USD",214706]
[null,"Central African Republic","G1","USD",12516]
[null,"Central African Republic","G2","USD",16285]
[null,"Central African Republic","G3","USD",21167]
[null,"Central African Republic","G4","USD",27516]
[null,"Central African Republic","G5","USD",35781]
[null,"Central African Republic","G6","USD",46491]
[null,"Central African Republic","G7","USD",60442]
[null,"Central African Republic","NA","USD",66838]
[null,"Central African Republic","NB","USD",86861]
[null,"Central African Republic","NC","USD",112930]
[null,"Central African Republic","ND","USD",146861]
[null,"Central African Republic","P1","USD",148709]
[null,"Central African Republic","P2","USD",188487]
[null,"Central African Republic","P3","USD",235186]
[null,"Central African Republic","P4","USD",284603]
[null,"Central African Republic","P5","USD",328959]
[null,"Chad","D1","USD",326934]
[null,"Chad","D2","USD",356303]
[null,"Chad","FS4","USD",152661]
[null,"Chad","FS5","USD",189243]
[null,"Chad","G1","USD",8803]
[null,"Chad","G2","USD",12308]
[null,"Chad","G3","USD",16624]
[null,"Chad","G4","USD",22460]
[null,"Chad","G5","USD",29199]
[null,"Chad","G6","USD",36487]
[null,"Chad","G7","USD",43415]
[null,"Chad","NA","USD",44364]
[null,"Chad","NB","USD",57654]
[null,"Chad","NC","USD",74956]
[null,"Chad","P1","USD",131073]
[null,"Chad","P2","USD",166133]
[null,"Chad","P3","USD",207294]
[null,"Chad","P4","USD",250851]
[null,"Chad","P5","USD",289946]
[null,"Chile","D1","USD",225979]
[null,"Chile","D2","USD",246279]
[null,"Chile","FS4","USD",105520]
[null,"Chile","FS5","USD",130806]
[null,"Chile","G1","USD",21755]
[null,"Chile","G2","USD",28143]
[null,"Chile","G3","USD",36406]
[null,"Chile","G4","USD",46594]
[null,"Chile","G5","USD",59637]
[null,"Chile","G6","USD",76034]
[null,"Chile","G7","USD",97364]
[null,"Chile","NA","USD",118577]
[null,"Chile","NB","USD",136362]
[null,"Chile","NC","USD",156841]
[null,"Chile","ND","USD",180379]
[null,"Chile","P1","USD",90598]
[null,"Chile","P2","USD",114833]
[null,"Chile","P3","USD",143283]
[null,"Chile","P4","USD",173390]
[null,"Chile","P5","USD",200413]
[null,"China","D1","USD",305478]
[null,"China","D2","USD",332920]
[null,"China","FS4","USD",142642]
[null,"China","FS5","USD",176824]
[null,"China","G1","USD",25786]
[null,"China","G2","USD",30427]
[null,"China","G3","USD",35904]
[null,"China","G4","USD",42367]
[null,"China","G5","USD",50840]
[null,"China","G6","USD",63042]
[null,"China","G7","USD",81954]
[null,"China","NA","USD",94161]
[null,"China","NB","USD",122409]
[null,"China","NC","USD",159133]
[null,"China","ND","USD",186184]
[null,"China","P1","USD",122471]
[null,"China","P2","USD",155230]
[null,"China","P3","USD",193690]
[null,"China","P4","USD",234388]
[null,"China","P5","USD",270918]
[null,"Colombia","D1","USD",219604]
[null,"Colombia","D2","USD",239332]
[null,"Colombia","FS4","USD",102544]
[null,"Colombia","FS5","USD",127116]
[null,"Colombia","G1","USD",22167]
[null,"Colombia","G2","USD",26611]
[null,"Colombia","G3","USD",31933]
[null,"Colombia","G4","USD",38309]
[null,"Colombia","G5","USD",45982]
[null,"Colombia","G6","USD",55172]
[null,"Colombia","G7","USD",67303]
[null,"Colombia","NA","USD",77861]
[null,"Colombia","NB","USD",105902]
[null,"Colombia","NC","USD",143969]
[null,"Colombia","ND","USD",180001]
[null,"Colombia","P1","USD",88042]
[null,"Colombia","P2","USD",111593]
[null,"Colombia","P3","USD",139241]
[null,"Colombia","P4","USD",168498]
[null,"Colombia","P5","USD",194759]
[null,"Congo","D1","USD",305377]
[null,"Congo","D2","USD",332810]
[null,"Congo","FS4","USD",142595]
[null,"Congo","FS5","USD",176765]
[null,"Congo","G1","USD",15800]
[null,"Congo","G2","USD",20882]
[null,"Congo","G3","USD",26095]
[null,"Congo","G4","USD",32607]
[null,"Congo","G5","USD",41417]
[null,"Congo","G6","USD",52606]
[null,"Congo","G7","USD",66794]
[null,"Congo","NA","USD",75419]
[null,"Congo","NB","USD",91979]
[null,"Congo","NC","USD",112218]
[null,"Congo","ND","USD",136932]
[null,"Congo","P1","USD",122430]
[null,"Congo","P2","USD",155179]
[null,"Congo","P3","USD",193626]
[null,"Congo","P4","USD",234310]
[null,"Congo","P5","USD",270828]
[null,"Costa Rica","D1","USD",207961]
[null,"Costa Rica","D2","USD",226643]
[null,"Costa Rica","FS4","USD",97107]
[null,"Costa Rica","FS5","USD",120377]
[null,"Costa Rica","G1","USD",14145]
[null,"Costa Rica","G2","USD",17404]
[null,"Costa Rica","G3","USD",21404]
[null,"Costa Rica","G4","USD",26318]
[null,"Costa Rica","G5","USD",32899]
[null,"Costa Rica","G6","USD",41133]
[null,"Costa Rica","G7","USD",53479]
[null,"Costa Rica","NA","USD",71780]
[null,"Costa Rica","NB","USD",96904]
[null,"Costa Rica","NC","USD",130833]
[null,"Costa Rica","ND","USD",176610]
[null,"Costa Rica","P1","USD",83375]
[null,"Costa Rica","P2","USD",105677]
[null,"Costa Rica","P3","USD",131859]
[null,"Costa Rica","P4","USD",159565]
[null,"Costa Rica","P5","USD",184433]
[null,"Cote d'Ivoire","D1","USD",311359]
[null,"Cote d'Ivoire","D2","USD",339329]
[null,"Cote d'Ivoire","FS4","USD",145388]
[null,"Cote d'Ivoire","FS5","USD",180227]
[null,"Cote d'Ivoire","G2","USD",18799]
[null,"Cote d'Ivoire","G3","USD",23726]
[null,"Cote d'Ivoire","G4","USD",29955]
[null,"Cote d'Ivoire","G5","USD",37446]
[null,"Cote d'Ivoire","G6","USD",46814]
[null,"Cote d'Ivoire","G7","USD",58039]
[null,"Cote d'Ivoire","NA","USD",60698]
[null,"Cote d'Ivoire","NB","USD",77699]
[null,"Cote d'Ivoire","NC","USD",99449]
[null,"Cote d'Ivoire","ND","USD",127278]
[null,"Cote d'Ivoire","P1","USD",124828]
[null,"Cote d'Ivoire","P2","USD",158219]
[null,"Cote d'Ivoire","P3","USD",197419]
[null,"Cote d'Ivoire","P4","USD",238900]
[null,"Cote d'Ivoire","P5","USD",276133]
[null,"Croatia","D1","USD",242598]
[null,"Croatia","D2","USD",264392]
[null,"Croatia","FS4","USD",113281]
[null,"Croatia","FS5","USD",140426]
[null,"Croatia","G1","USD",24923]
[null,"Croatia","G2","USD",28662]
[null,"Croatia","G3","USD",32961]
[null,"Croatia","G4","USD",37904]
[null,"Croatia","G5","USD",43590]
[null,"Croatia","G6","USD",50129]
[null,"Croatia","G7","USD",57648]
[null,"Croatia","NA","USD",63133]
[null,"Croatia","NB","USD",69444]
[null,"Croatia","NC","USD",76389]
[null,"Croatia","ND","USD",84028]
[null,"Croatia","P1","USD",97261]
[null,"Croatia","P2","USD",123278]
[null,"Croatia","P3","USD",153821]
[null,"Croatia","P4","USD",186142]
[null,"Croatia","P5","USD",215152]
[null,"Cuba","D1","USD",256155]
[null,"Cuba","D2","USD",279166]
[null,"Cuba","FS4","USD",119611]
[null,"Cuba","FS5","USD",148273]
[null,"Cuba","G1","USD",13222]
[null,"Cuba","G2","USD",15737]
[null,"Cuba","G3","USD",18407]
[null,"Cuba","G4","USD",21538]
[null,"Cuba","G5","USD",24983]
[null,"Cuba","G6","USD",28731]
[null,"Cuba","G7","USD",33041]
[null,"Cuba","NA","USD",36036]
[null,"Cuba","NB","USD",38505]
[null,"Cuba","NC","USD",42535]
[null,"Cuba","ND","USD",46548]
[null,"Cuba","P1","USD",102696]
[null,"Cuba","P2","USD",130167]
[null,"Cuba","P3","USD",162416]
[null,"Cuba","P4","USD",196543]
[null,"Cuba","P5","USD",227175]
[null,"Cyprus","D1","USD",230984]
[null,"Cyprus","D2","USD",251734]
[null,"Cyprus","FS4","USD",107857]
[null,"Cyprus","FS5","USD",133703]
[null,"Cyprus","G1","USD",37339]
[null,"Cyprus","G2","USD",43671]
[null,"Cyprus","G3","USD",51065]
[null,"Cyprus","G4","USD",59741]
[null,"Cyprus","G5","USD",71686]
[null,"Cyprus","G6","USD",86816]
[null,"Cyprus","G7","USD",94626]
[null,"Cyprus","NA","USD",106382]
[null,"Cyprus","NB","USD",121364]
[null,"Cyprus","NC","USD",140675]
[null,"Cyprus","ND","USD",162097]
[null,"Cyprus","P1","USD",92605]
[null,"Cyprus","P2","USD",117376]
[null,"Cyprus","P3","USD",146456]
[null,"Cyprus","P4","USD",177230]
[null,"Cyprus","P5","USD",204851]
[null,"Czech Republic","D1","USD",224221]
[null,"Czech Republic","D2","USD",244363]
[null,"Czech Republic","FS4","USD",104699]
[null,"Czech Republic","FS5","USD",129788]
[null,"Czech Republic","G1","USD",18680]
[null,"Czech Republic","G2","USD",22603]
[null,"Czech Republic","G3","USD",27350]
[null,"Czech Republic","G4","USD",32546]
[null,"Czech Republic","G5","USD",38405]
[null,"Czech Republic","G6","USD",44549]
[null,"Czech Republic","G7","USD",51678]
[null,"Czech Republic","NA","USD",55243]
[null,"Czech Republic","NB","USD",64359]
[null,"Czech Republic","NC","USD",74978]
[null,"Czech Republic","ND","USD",87349]
[null,"Czech Republic","P1","USD",89893]
[null,"Czech Republic","P2","USD",113939]
[null,"Czech Republic","P3","USD",142168]
[null,"Czech Republic","P4","USD",172040]
[null,"Czech Republic","P5","USD",198853]
[null,"Democratic Republic of the Congo","D1","USD",333109]
[null,"Democratic Republic of the Congo","D2","USD",363033]
[null,"Democratic Republic of the Congo","FS4","USD",155544]
[null,"Democratic Republic of the Congo","FS5","USD",192817]
[null,"Democratic Republic of the Congo","G1","USD",26690]
[null,"Democratic Republic of the Congo","G2","USD",30688]
[null,"Democratic Republic of the Congo","G3","USD",35294]
[null,"Democratic Republic of the Congo","G4","USD",40592]
[null,"Democratic Republic of the Congo","G5","USD",46684]
[null,"Democratic Republic of the Congo","G6","USD",57886]
[null,"Democratic Republic of the Congo","G7","USD",71780]
[null,"Democratic Republic of the Congo","NA","USD",90987]
[null,"Democratic Republic of the Congo","NB","USD",128297]
[null,"Democratic Republic of the Congo","NC","USD",179607]
[null,"Democratic Republic of the Congo","ND","USD",251461]
[null,"Democratic Republic of the Congo","P1","USD",133548]
[null,"Democratic Republic of the Congo","P2","USD",169271]
[null,"Democratic Republic of the Congo","P3","USD",211210]
[null,"Democratic Republic of the Congo","P4","USD",255589]
[null,"Democratic Republic of the Congo","P5","USD",295422]
[null,"Denmark","D1","USD",284107]
[null,"Denmark","D2","USD",309629]
[null,"Denmark","G1","USD",60343]
[null,"Denmark","G2","USD",66981]
[null,"Denmark","G3","USD",74349]
[null,"Denmark","G4","USD",82528]
[null,"Denmark","G5","USD",91605]
[null,"Denmark","G6","USD",101682]
[null,"Denmark","G7","USD",111850]
[null,"Denmark","P1","USD",113902]
[null,"Denmark","P2","USD",144370]
[null,"Denmark","P3","USD",180139]
[null,"Denmark","P4","USD",217990]
[null,"Denmark","P5","USD",251964]
[null,"Djibouti","D1","USD",274408]
[null,"Djibouti","D2","USD",299058]
[null,"Djibouti","FS4","USD",128134]
[null,"Djibouti","FS5","USD",158839]
[null,"Djibouti","G1","USD",11374]
[null,"Djibouti","G2","USD",14796]
[null,"Djibouti","G3","USD",19216]
[null,"Djibouti","G4","USD",24811]
[null,"Djibouti","G5","USD",32005]
[null,"Djibouti","G6","USD",41281]
[null,"Djibouti","G7","USD",53284]
[null,"Djibouti","NA","USD",61514]
[null,"Djibouti","NB","USD",69504]
[null,"Djibouti","NC","USD",78548]
[null,"Djibouti","P1","USD",110014]
[null,"Djibouti","P2","USD",139442]
[null,"Djibouti","P3","USD",173990]
[null,"Djibouti","P4","USD",210548]
[null,"Djibouti","P5","USD",243362]
[null,"Dominican Republic","D1","USD",248083]
[null,"Dominican Republic","D2","USD",270368]
[null,"Dominican Republic","FS4","USD",115842]
[null,"Dominican Republic","FS5","USD",143601]
[null,"Dominican Republic","G1","USD",11931]
[null,"Dominican Republic","G2","USD",15391]
[null,"Dominican Republic","G3","USD",19701]
[null,"Dominican Republic","G4","USD",25020]
[null,"Dominican Republic","G5","USD",31525]
[null,"Dominican Republic","G6","USD",39722]
[null,"Dominican Republic","G7","USD",50050]
[null,"Dominican Republic","NA","USD",71858]
[null,"Dominican Republic","NB","USD",92697]
[null,"Dominican Republic","NC","USD",119578]
[null,"Dominican Republic","ND","USD",154256]
[null,"Dominican Republic","P1","USD",99460]
[null,"Dominican Republic","P2","USD",126064]
[null,"Dominican Republic","P3","USD",157298]
[null,"Dominican Republic","P4","USD",190349]
[null,"Dominican Republic","P5","USD",220015]
[null,"Ecuador","D1","USD",237579]
[null,"Ecuador","D2","USD",258921]
[null,"Ecuador","FS4","USD",110937]
[null,"Ecuador","FS5","USD",137521]
[null,"Ecuador","G1","USD",18267]
[null,"Ecuador","G2","USD",23390]
[null,"Ecuador","G3","USD",29936]
[null,"Ecuador","G4","USD",38310]
[null,"Ecuador","G5","USD",47511]
[null,"Ecuador","G6","USD",58915]
[null,"Ecuador","G7","USD",73054]
[null,"Ecuador","NA","USD",85525]
[null,"Ecuador","NB","USD",118010]
[null,"Ecuador","NC","USD",151051]
[null,"Ecuador","ND","USD",166143]
[null,"Ecuador","P1","USD",95249]
[null,"Ecuador","P2","USD",120727]
[null,"Ecuador","P3","USD",150638]
[null,"Ecuador","P4","USD",182290]
[null,"Ecuador","P5","USD",210700]
[null,"Egypt","D1","USD",250593]
[null,"Egypt","D2","USD",273104]
[null,"Egypt","FS4","USD",117014]
[null,"Egypt","FS5","USD",145054]
[null,"Egypt","G1","USD",11130]
[null,"Egypt","G2","USD",13795]
[null,"Egypt","G3","USD",17104]
[null,"Egypt","G4","USD",21210]
[null,"Egypt","G5","USD",26314]
[null,"Egypt","G6","USD",32888]
[null,"Egypt","G7","USD",41750]
[null,"Egypt","NA","USD",55604]
[null,"Egypt","NB","USD",70645]
[null,"Egypt","NC","USD",91794]
[null,"Egypt","ND","USD",119316]
[null,"Egypt","P1","USD",100466]
[null,"Egypt","P2","USD",127340]
[null,"Egypt","P3","USD",158890]
[null,"Egypt","P4","USD",192275]
[null,"Egypt","P5","USD",222242]
[null,"Eritrea","D1","USD",233733]
[null,"Eritrea","D2","USD",254730]
[null,"Eritrea","FS4","USD",109141]
[null,"Eritrea","FS5","USD",135294]
[null,"Eritrea","G1","USD",7280]
[null,"Eritrea","G2","USD",8737]
[null,"Eritrea","G3","USD",10483]
[null,"Eritrea","G4","USD",12581]
[null,"Eritrea","G5","USD",15346]
[null,"Eritrea","G6","USD",18724]
[null,"Eritrea","G7","USD",22842]
[null,"Eritrea","NA","USD",27720]
[null,"Eritrea","NB","USD",33541]
[null,"Eritrea","NC","USD",40250]
[null,"Eritrea","ND","USD",46287]
[null,"Eritrea","P1","USD",93707]
[null,"Eritrea","P2","USD",118773]
[null,"Eritrea","P3","USD",148200]
[null,"Eritrea","P4","USD",179339]
[null,"Eritrea","P5","USD",207289]
[null,"Estonia","D1","USD",234760]
[null,"Estonia","D2","USD",255849]
[null,"Estonia","FS4","USD",109621]
[null,"Estonia","FS5","USD",135889]
[null,"Estonia","G1","USD",15625]
[null,"Estonia","G2","USD",18124]
[null,"Estonia","G3","USD",21187]
[null,"Estonia","G4","USD",25001]
[null,"Estonia","G5","USD",29752]
[null,"Estonia","G6","USD",35404]
[null,"Estonia","G7","USD",42485]
[null,"Estonia","P1","USD",94119]
[null,"Estonia","P2","USD",119294]
[null,"Estonia","P3","USD",148851]
[null,"Estonia","P4","USD",180127]
[null,"Estonia","P5","USD",208200]
[null,"Ethiopia","D1","USD",271275]
[null,"Ethiopia","D2","USD",295644]
[null,"Ethiopia","FS4","USD",126671]
[null,"Ethiopia","FS5","USD",157025]
[null,"Ethiopia","G1","USD",9225]
[null,"Ethiopia","G2","USD",11905]
[null,"Ethiopia","G3","USD",15243]
[null,"Ethiopia","G4","USD",19196]
[null,"Ethiopia","G5","USD",24000]
[null,"Ethiopia","G6","USD",27839]
[null,"Ethiopia","G7","USD",32020]
[null,"Ethiopia","NA","USD",31237]
[null,"Ethiopia","NB","USD",35290]
[null,"Ethiopia","NC","USD",40938]
[null,"Ethiopia","ND","USD",47491]
[null,"Ethiopia","P1","USD",108758]
[null,"Ethiopia","P2","USD",137850]
[null,"Ethiopia","P3","USD",172003]
[null,"Ethiopia","P4","USD",208145]
[null,"Ethiopia","P5","USD",240584]
[null,"France","D1","USD",270119]
[null,"France","D2","USD",294384]
[null,"France","FS4","USD",126131]
[null,"France","FS5","USD",156356]
[null,"France","G1","USD",54942]
[null,"France","G2","USD",60947]
[null,"France","G3","USD",67606]
[null,"France","G4","USD",74998]
[null,"France","G5","USD",83224]
[null,"France","G6","USD",92331]
[null,"France","G7","USD",102443]
[null,"France","P1","USD",108295]
[null,"France","P2","USD",137262]
[null,"France","P3","USD",171270]
[null,"France","P4","USD",207258]
[null,"France","P5","USD",239559]
[null,"Gabon","D1","USD",287956]
[null,"Gabon","D2","USD",313824]
[null,"Gabon","FS4","USD",134461]
[null,"Gabon","FS5","USD",166681]
[null,"Gabon","G2","USD",25274]
[null,"Gabon","G3","USD",30069]
[null,"Gabon","G4","USD",36083]
[null,"Gabon","G5","USD",43317]
[null,"Gabon","G6","USD",52398]
[null,"Gabon","G7","USD",63925]
[null,"Gabon","NA","USD",77828]
[null,"Gabon","NB","USD",93398]
[null,"Gabon","NC","USD",113941]
[null,"Gabon","ND","USD",139026]
[null,"Gabon","P1","USD",115446]
[null,"Gabon","P2","USD",146327]
[null,"Gabon","P3","USD",182580]
[null,"Gabon","P4","USD",220944]
[null,"Gabon","P5","USD",255378]
[null,"Gambia","D1","USD",195294]
[null,"Gambia","D2","USD",212838]
[null,"Gambia","FS4","USD",91192]
[null,"Gambia","FS5","USD",113044]
[null,"Gambia","G1","USD",3428]
[null,"Gambia","G2","USD",4352]
[null,"Gambia","G3","USD",5529]
[null,"Gambia","G4","USD",7073]
[null,"Gambia","G5","USD",8771]
[null,"Gambia","G6","USD",10879]
[null,"Gambia","G7","USD",13169]
[null,"Gambia","NA","USD",16198]
[null,"Gambia","NB","USD",20899]
[null,"Gambia","NC","USD",25911]
[null,"Gambia","ND","USD",30057]
[null,"Gambia","P1","USD",78296]
[null,"Gambia","P2","USD",99240]
[null,"Gambia","P3","USD",123827]
[null,"Gambia","P4","USD",149846]
[null,"Gambia","P5","USD",173199]
[null,"Georgia","D1","USD",232613]
[null,"Georgia","D2","USD",253509]
[null,"Georgia","FS4","USD",108618]
[null,"Georgia","FS5","USD",134646]
[null,"Georgia","G1","USD",17069]
[null,"Georgia","G2","USD",19800]
[null,"Georgia","G3","USD",22954]
[null,"Georgia","G4","USD",26672]
[null,"Georgia","G5","USD",30936]
[null,"Georgia","G6","USD",36469]
[null,"Georgia","G7","USD",44530]
[null,"Georgia","NA","USD",47700]
[null,"Georgia","NB","USD",62006]
[null,"Georgia","NC","USD",80610]
[null,"Georgia","ND","USD",92621]
[null,"Georgia","P1","USD",93258]
[null,"Georgia","P2","USD",118204]
[null,"Georgia","P3","USD",147490]
[null,"Georgia","P4","USD",178480]
[null,"Georgia","P5","USD",206296]
[null,"Germany","D1","USD",237605]
[null,"Germany","D2","USD",258949]
[null,"Germany","FS4","USD",110949]
[null,"Germany","FS5","USD",137536]
[null,"Germany","G1","USD",55911]
[null,"Germany","G2","USD",59264]
[null,"Germany","G3","USD",64009]
[null,"Germany","G4","USD",71047]
[null,"Germany","G5","USD",79581]
[null,"Germany","G6","USD",89125]
[null,"Germany","G7","USD",99829]
[null,"Germany","P1","USD",95259]
[null,"Germany","P2","USD",120740]
[null,"Germany","P3","USD",150655]
[null,"Germany","P4","USD",182310]
[null,"Germany","P5","USD",210723]
[null,"Ghana","D1","USD",195829]
[null,"Ghana","D2","USD",213421]
[null,"Ghana","FS4","USD",91442]
[null,"Ghana","FS5","USD",113354]
[null,"Ghana","G1","USD",9257]
[null,"Ghana","G2","USD",11108]
[null,"Ghana","G3","USD",13329]
[null,"Ghana","G4","USD",15995]
[null,"Ghana","G5","USD",19194]
[null,"Ghana","G6","USD",23224]
[null,"Ghana","G7","USD",28100]
[null,"Ghana","NA","USD",30495]
[null,"Ghana","NB","USD",36899]
[null,"Ghana","NC","USD",44649]
[null,"Ghana","ND","USD",54025]
[null,"Ghana","P1","USD",78511]
[null,"Ghana","P2","USD",99512]
[null,"Ghana","P3","USD",124167]
[null,"Ghana","P4","USD",150256]
[null,"Ghana","P5","USD",173674]
[null,"Greece","D1","USD",212951]
[null,"Greece","D2","USD",232081]
[null,"Greece","FS4","USD",99437]
[null,"Greece","FS5","USD",123265]
[null,"Greece","G1","USD",42132]
[null,"Greece","G2","USD",46768]
[null,"Greece","G3","USD",51909]
[null,"Greece","G4","USD",57608]
[null,"Greece","G5","USD",66261]
[null,"Greece","G6","USD",76195]
[null,"Greece","G7","USD",87630]
[null,"Greece","NA","USD",95972]
[null,"Greece","NB","USD",113252]
[null,"Greece","NC","USD",135896]
[null,"Greece","ND","USD",165796]
[null,"Greece","P1","USD",85375]
[null,"Greece","P2","USD",108212]
[null,"Greece","P3","USD",135023]
[null,"Greece","P4","USD",163393]
[null,"Greece","P5","USD",188858]
[null,"Guatemala","D1","USD",238019]
[null,"Guatemala","D2","USD",259400]
[null,"Guatemala","FS4","USD",111142]
[null,"Guatemala","FS5","USD",137775]
[null,"Guatemala","G1","USD",1917]
[null,"Guatemala","G2","USD",19470]
[null,"Guatemala","G3","USD",24359]
[null,"Guatemala","G4","USD",30435]
[null,"Guatemala","G5","USD",38046]
[null,"Guatemala","G6","USD",47560]
[null,"Guatemala","G7","USD",58964]
[null,"Guatemala","NA","USD",77629]
[null,"Guatemala","NB","USD",97037]
[null,"Guatemala","NC","USD",121295]
[null,"Guatemala","ND","USD",144342]
[null,"Guatemala","P1","USD",95425]
[null,"Guatemala","P2","USD",120950]
[null,"Guatemala","P3","USD",150917]
[null,"Guatemala","P4","USD",182627]
[null,"Guatemala","P5","USD",211090]
[null,"Guinea","D1","USD",292662]
[null,"Guinea","D2","USD",318953]
[null,"Guinea","FS4","USD",136658]
[null,"Guinea","FS5","USD",169405]
[null,"Guinea","G1","USD",9867]
[null,"Guinea","G2","USD",11743]
[null,"Guinea","G3","USD",13975]
[null,"Guinea","G4","USD",16631]
[null,"Guinea","G5","USD",20457]
[null,"Guinea","G6","USD",25161]
[null,"Guinea","G7","USD",30946]
[null,"Guinea","NA","USD",32291]
[null,"Guinea","NB","USD",41655]
[null,"Guinea","NC","USD",53736]
[null,"Guinea","ND","USD",69318]
[null,"Guinea","P1","USD",117333]
[null,"Guinea","P2","USD",148718]
[null,"Guinea","P3","USD",185564]
[null,"Guinea","P4","USD",224555]
[null,"Guinea","P5","USD",259551]
[null,"Guinea Bissau","D1","USD",266589]
[null,"Guinea Bissau","D2","USD",290537]
[null,"Guinea Bissau","FS4","USD",124483]
[null,"Guinea Bissau","FS5","USD",154313]
[null,"Guinea Bissau","G1","USD",22705]
[null,"Guinea Bissau","G2","USD",26109]
[null,"Guinea Bissau","G3","USD",30044]
[null,"Guinea Bissau","G4","USD",34510]
[null,"Guinea Bissau","G5","USD",40381]
[null,"Guinea Bissau","G6","USD",47252]
[null,"Guinea Bissau","G7","USD",55716]
[null,"Guinea Bissau","NA","USD",52718]
[null,"Guinea Bissau","NB","USD",60681]
[null,"Guinea Bissau","NC","USD",69738]
[null,"Guinea Bissau","ND","USD",80232]
[null,"Guinea Bissau","P1","USD",106879]
[null,"Guinea Bissau","P2","USD",135468]
[null,"Guinea Bissau","P3","USD",169032]
[null,"Guinea Bissau","P4","USD",204549]
[null,"Guinea Bissau","P5","USD",236428]
[null,"Haiti","D1","USD",272395]
[null,"Haiti","D2","USD",296865]
[null,"Haiti","FS4","USD",127194]
[null,"Haiti","FS5","USD",157674]
[null,"Haiti","G1","USD",15199]
[null,"Haiti","G2","USD",17934]
[null,"Haiti","G3","USD",21163]
[null,"Haiti","G4","USD",25395]
[null,"Haiti","G5","USD",31236]
[null,"Haiti","G6","USD",39045]
[null,"Haiti","G7","USD",49978]
[null,"Haiti","NA","USD",54199]
[null,"Haiti","NB","USD",70458]
[null,"Haiti","NC","USD",88072]
[null,"Haiti","ND","USD",105687]
[null,"Haiti","P1","USD",109207]
[null,"Haiti","P2","USD",138419]
[null,"Haiti","P3","USD",172713]
[null,"Haiti","P4","USD",209004]
[null,"Haiti","P5","USD",241577]
[null,"Honduras","D1","USD",224663]
[null,"Honduras","D2","USD",244845]
[null,"Honduras","FS4","USD",104906]
[null,"Honduras","FS5","USD",130045]
[null,"Honduras","G1","USD",8032]
[null,"Honduras","G2","USD",11484]
[null,"Honduras","G3","USD",15618]
[null,"Honduras","G4","USD",20928]
[null,"Honduras","G5","USD",28044]
[null,"Honduras","G6","USD",37018]
[null,"Honduras","G7","USD",47383]
[null,"Honduras","NA","USD",61334]
[null,"Honduras","P1","USD",90071]
[null,"Honduras","P2","USD",114164]
[null,"Honduras","P3","USD",142449]
[null,"Honduras","P4","USD",172380]
[null,"Honduras","P5","USD",199246]
[null,"Hong Kong, China","D1","USD",302660]
[null,"Hong Kong, China","D2","USD",329849]
[null,"Hong Kong, China","FS4","USD",141327]
[null,"Hong Kong, China","FS5","USD",175193]
[null,"Hong Kong, China","G1","USD",25659]
[null,"Hong Kong, China","G2","USD",30277]
[null,"Hong Kong, China","G3","USD",35727]
[null,"Hong Kong, China","G4","USD",42158]
[null,"Hong Kong, China","G5","USD",53962]
[null,"Hong Kong, China","G6","USD",69072]
[null,"Hong Kong, China","G7","USD",88412]
[null,"Hong Kong, China","NA","USD",105604]
[null,"Hong Kong, China","NB","USD",126724]
[null,"Hong Kong, China","NC","USD",152069]
[null,"Hong Kong, China","P1","USD",121341]
[null,"Hong Kong, China","P2","USD",153798]
[null,"Hong Kong, China","P3","USD",191903]
[null,"Hong Kong, China","P4","USD",232226]
[null,"Hong Kong, China","P5","USD",268419]
[null,"Hungary","D1","USD",236719]
[null,"Hungary","D1","USD",236719]
[null,"Hungary","D2","USD",257984]
[null,"Hungary","D2","USD",257984]
[null,"Hungary","FS4","USD",110535]
[null,"Hungary","FS4","USD",110535]
[null,"Hungary","FS5","USD",137023]
[null,"Hungary","FS5","USD",137023]
[null,"Hungary","G1","USD",16571]
[null,"Hungary","G1","USD",16571]
[null,"Hungary","G2","USD",19060]
[null,"Hungary","G2","USD",19060]
[null,"Hungary","G3","USD",21922]
[null,"Hungary","G3","USD",21922]
[null,"Hungary","G4","USD",25223]
[null,"Hungary","G4","USD",25223]
[null,"Hungary","G5","USD",28996]
[null,"Hungary","G5","USD",28996]
[null,"Hungary","G6","USD",34342]
[null,"Hungary","G6","USD",34342]
[null,"Hungary","G7","USD",40719]
[null,"Hungary","G7","USD",40719]
[null,"Hungary","NA","USD",51466]
[null,"Hungary","NA","USD",51466]
[null,"Hungary","NB","USD",63332]
[null,"Hungary","NB","USD",63332]
[null,"Hungary","NC","USD",77890]
[null,"Hungary","NC","USD",77890]
[null,"Hungary","ND","USD",95777]
[null,"Hungary","ND","USD",95777]
[null,"Hungary","P1","USD",94904]
[null,"Hungary","P1","USD",94904]
[null,"Hungary","P2","USD",120290]
[null,"Hungary","P2","USD",120290]
[null,"Hungary","P3","USD",150093]
[null,"Hungary","P3","USD",150093]
[null,"Hungary","P4","USD",181630]
[null,"Hungary","P4","USD",181630]
[null,"Hungary","P5","USD",209937]
[null,"Hungary","P5","USD",209937]
[null,"India","D1","USD",249217]
[null,"India","D2","USD",271604]
[null,"India","FS4","USD",116371]
[null,"India","FS5","USD",144257]
[null,"India","G1","USD",11031]
[null,"India","G2","USD",12686]
[null,"India","G3","USD",14715]
[null,"India","G4","USD",18031]
[null,"India","G5","USD",23274]
[null,"India","G6","USD",30720]
[null,"India","G7","USD",40563]
[null,"India","NA","USD",43906]
[null,"India","NB","USD",61020]
[null,"India","NC","USD",85116]
[null,"India","ND","USD",118751]
[null,"India","NE","USD",130604]
[null,"India","P1","USD",99915]
[null,"India","P2","USD",126641]
[null,"India","P3","USD",158017]
[null,"India","P4","USD",191219]
[null,"India","P5","USD",221021]
[null,"Indonesia","D1","USD",224869]
[null,"Indonesia","D2","USD",245070]
[null,"Indonesia","FS4","USD",105002]
[null,"Indonesia","FS5","USD",130164]
[null,"Indonesia","G1","USD",7481]
[null,"Indonesia","G2","USD",9958]
[null,"Indonesia","G3","USD",13253]
[null,"Indonesia","G4","USD",17746]
[null,"Indonesia","G5","USD",23780]
[null,"Indonesia","G6","USD",31889]
[null,"Indonesia","G7","USD",42731]
[null,"Indonesia","NA","USD",49124]
[null,"Indonesia","NB","USD",65815]
[null,"Indonesia","NC","USD",86911]
[null,"Indonesia","ND","USD",107709]
[null,"Indonesia","P1","USD",90153]
[null,"Indonesia","P2","USD",114268]
[null,"Indonesia","P3","USD",142580]
[null,"Indonesia","P4","USD",172538]
[null,"Indonesia","P5","USD",199428]
[null,"Iran","D1","USD",243716]
[null,"Iran","D2","USD",265609]
[null,"Iran","FS4","USD",113802]
[null,"Iran","FS5","USD",141073]
[null,"Iran","G1","USD",18282]
[null,"Iran","G2","USD",22119]
[null,"Iran","G3","USD",26759]
[null,"Iran","G4","USD",32105]
[null,"Iran","G5","USD",38529]
[null,"Iran","G6","USD",46229]
[null,"Iran","G7","USD",55472]
[null,"Iran","NA","USD",51194]
[null,"Iran","NB","USD",62958]
[null,"Iran","NC","USD",78743]
[null,"Iran","ND","USD",98426]
[null,"Iran","P1","USD",97709]
[null,"Iran","P2","USD",123845]
[null,"Iran","P3","USD",154529]
[null,"Iran","P4","USD",186999]
[null,"Iran","P5","USD",216143]
[null,"Iraq","D1","USD",299627]
[null,"Iraq","D2","USD",326543]
[null,"Iraq","FS4","USD",139910]
[null,"Iraq","FS5","USD",173437]
[null,"Iraq","FS6","USD",175770]
[null,"Iraq","FS7","USD",208142]
[null,"Iraq","G1","USD",21638]
[null,"Iraq","G2","USD",25963]
[null,"Iraq","G3","USD",31156]
[null,"Iraq","G4","USD",37387]
[null,"Iraq","G5","USD",44867]
[null,"Iraq","G6","USD",52943]
[null,"Iraq","G7","USD",61941]
[null,"Iraq","NA","USD",72121]
[null,"Iraq","NB","USD",80052]
[null,"Iraq","NC","USD",88860]
[null,"Iraq","ND","USD",98635]
[null,"Iraq","P1","USD",120125]
[null,"Iraq","P2","USD",152257]
[null,"Iraq","P3","USD",189980]
[null,"Iraq","P4","USD",229899]
[null,"Iraq","P5","USD",265729]
[null,"Ireland","D1","USD",221570]
[null,"Ireland","D2","USD",241474]
[null,"Ireland","FS4","USD",103461]
[null,"Ireland","FS5","USD",128254]
[null,"Ireland","G1","USD",44889]
[null,"Ireland","G2","USD",49828]
[null,"Ireland","G3","USD",55304]
[null,"Ireland","G4","USD",61387]
[null,"Ireland","G5","USD",68753]
[null,"Ireland","G6","USD",77000]
[null,"Ireland","G7","USD",86242]
[null,"Ireland","NA","USD",97115]
[null,"Ireland","NB","USD",112651]
[null,"Ireland","NC","USD",130681]
[null,"Ireland","P1","USD",88830]
[null,"Ireland","P2","USD",112592]
[null,"Ireland","P3","USD",140487]
[null,"Ireland","P4","USD",170006]
[null,"Ireland","P5","USD",196502]
[null,"Israel","D1","USD",255743]
[null,"Israel","D2","USD",278717]
[null,"Israel","FS4","USD",119419]
[null,"Israel","FS5","USD",148035]
[null,"Israel","G1","USD",35270]
[null,"Israel","G2","USD",40913]
[null,"Israel","G3","USD",46641]
[null,"Israel","G4","USD",53171]
[null,"Israel","G5","USD",60081]
[null,"Israel","G6","USD",67293]
[null,"Israel","G7","USD",75367]
[null,"Israel","NA","USD",86244]
[null,"Israel","NB","USD",98317]
[null,"Israel","NC","USD",112082]
[null,"Israel","ND","USD",127772]
[null,"Israel","P1","USD",102531]
[null,"Israel","P2","USD",129957]
[null,"Israel","P3","USD",162155]
[null,"Israel","P4","USD",196227]
[null,"Israel","P5","USD",226809]
[null,"Italy","D1","USD",257978]
[null,"Italy","D2","USD",281153]
[null,"Italy","FS4","USD",120462]
[null,"Italy","FS5","USD",149329]
[null,"Italy","G1","USD",61268]
[null,"Italy","G2","USD",66389]
[null,"Italy","G3","USD",72497]
[null,"Italy","G4","USD",80101]
[null,"Italy","G5","USD",89540]
[null,"Italy","G6","USD",102772]
[null,"Italy","G7","USD",118309]
[null,"Italy","P1","USD",103427]
[null,"Italy","P2","USD",131093]
[null,"Italy","P3","USD",163573]
[null,"Italy","P4","USD",197942]
[null,"Italy","P5","USD",228792]
[null,"Japan","D1","USD",298857]
[null,"Japan","D2","USD",325704]
[null,"Japan","FS4","USD",139550]
[null,"Japan","FS5","USD",172991]
[null,"Japan","G1","USD",60421]
[null,"Japan","G2","USD",69181]
[null,"Japan","G3","USD",79222]
[null,"Japan","G4","USD",90546]
[null,"Japan","G5","USD",103401]
[null,"Japan","G6","USD",117869]
[null,"Japan","G7","USD",134371]
[null,"Japan","NA","USD",134887]
[null,"Japan","NB","USD",149051]
[null,"Japan","NC","USD",164694]
[null,"Japan","ND","USD",181989]
[null,"Japan","P1","USD",119816]
[null,"Japan","P2","USD",151866]
[null,"Japan","P3","USD",189492]
[null,"Japan","P4","USD",229308]
[null,"Japan","P5","USD",265045]
[null,"Jordan","D1","USD",264022]
[null,"Jordan","D2","USD",287740]
[null,"Jordan","FS4","USD",123284]
[null,"Jordan","FS5","USD",152827]
[null,"Jordan","G1","USD",16990]
[null,"Jordan","G2","USD",20396]
[null,"Jordan","G3","USD",24586]
[null,"Jordan","G4","USD",29736]
[null,"Jordan","G5","USD",35976]
[null,"Jordan","G6","USD",43898]
[null,"Jordan","G7","USD",53986]
[null,"Jordan","NA","USD",57284]
[null,"Jordan","NB","USD",69873]
[null,"Jordan","NC","USD",88049]
[null,"Jordan","ND","USD",110941]
[null,"Jordan","P1","USD",105850]
[null,"Jordan","P2","USD",134164]
[null,"Jordan","P3","USD",167404]
[null,"Jordan","P4","USD",202579]
[null,"Jordan","P5","USD",234151]
[null,"Kazakhstan","D1","USD",246166]
[null,"Kazakhstan","D2","USD",268280]
[null,"Kazakhstan","FS4","USD",114947]
[null,"Kazakhstan","FS5","USD",142491]
[null,"Kazakhstan","G1","USD",17471]
[null,"Kazakhstan","G2","USD",20270]
[null,"Kazakhstan","G3","USD",23514]
[null,"Kazakhstan","G4","USD",27756]
[null,"Kazakhstan","G5","USD",33584]
[null,"Kazakhstan","G6","USD",40973]
[null,"Kazakhstan","G7","USD",49987]
[null,"Kazakhstan","NA","USD",62518]
[null,"Kazakhstan","NB","USD",80023]
[null,"Kazakhstan","NC","USD",102429]
[null,"Kazakhstan","ND","USD",122915]
[null,"Kazakhstan","P1","USD",98692]
[null,"Kazakhstan","P2","USD",125091]
[null,"Kazakhstan","P3","USD",156083]
[null,"Kazakhstan","P4","USD",188879]
[null,"Kazakhstan","P5","USD",218316]
[null,"Kenya","D1","USD",266271]
[null,"Kenya","D2","USD",290191]
[null,"Kenya","FS4","USD",124335]
[null,"Kenya","FS5","USD",154129]
[null,"Kenya","G1","USD",12510]
[null,"Kenya","G2","USD",16889]
[null,"Kenya","G3","USD",22800]
[null,"Kenya","G4","USD",30780]
[null,"Kenya","G5","USD",38167]
[null,"Kenya","G6","USD",47327]
[null,"Kenya","G7","USD",58686]
[null,"Kenya","NA","USD",81034]
[null,"Kenya","NB","USD",102994]
[null,"Kenya","NC","USD",130905]
[null,"Kenya","ND","USD",166381]
[null,"Kenya","P1","USD",106752]
[null,"Kenya","P2","USD",135307]
[null,"Kenya","P3","USD",168831]
[null,"Kenya","P4","USD",204305]
[null,"Kenya","P5","USD",236146]
[null,"Kosovo","D1","USD",257791]
[null,"Kosovo","D2","USD",280949]
[null,"Kosovo","FS4","USD",120375]
[null,"Kosovo","FS5","USD",149220]
[null,"Kosovo","G1","USD",20475]
[null,"Kosovo","G2","USD",23959]
[null,"Kosovo","G3","USD",27793]
[null,"Kosovo","G4","USD",32248]
[null,"Kosovo","G5","USD",37398]
[null,"Kosovo","G6","USD",43011]
[null,"Kosovo","G7","USD",49465]
[null,"Kosovo","NA","USD",51156]
[null,"Kosovo","NB","USD",58320]
[null,"Kosovo","NC","USD",67069]
[null,"Kosovo","ND","USD",77123]
[null,"Kosovo","P1","USD",103352]
[null,"Kosovo","P2","USD",130998]
[null,"Kosovo","P3","USD",163454]
[null,"Kosovo","P4","USD",197798]
[null,"Kosovo","P5","USD",228625]
[null,"Kuwait","D1","USD",234571]
[null,"Kuwait","D2","USD",255643]
[null,"Kuwait","FS4","USD",109532]
[null,"Kuwait","FS5","USD",135779]
[null,"Kuwait","G1","USD",32072]
[null,"Kuwait","G2","USD",37842]
[null,"Kuwait","G3","USD",44667]
[null,"Kuwait","G4","USD",53163]
[null,"Kuwait","G5","USD",63278]
[null,"Kuwait","G6","USD",75935]
[null,"Kuwait","G7","USD",91862]
[null,"Kuwait","NA","USD",120924]
[null,"Kuwait","NB","USD",141509]
[null,"Kuwait","NC","USD",166941]
[null,"Kuwait","ND","USD",197015]
[null,"Kuwait","P1","USD",94043]
[null,"Kuwait","P2","USD",119198]
[null,"Kuwait","P3","USD",148731]
[null,"Kuwait","P4","USD",179982]
[null,"Kuwait","P5","USD",208032]
[null,"Kyrgyzstan","D1","USD",252389]
[null,"Kyrgyzstan","D2","USD",275062]
[null,"Kyrgyzstan","FS4","USD",117852]
[null,"Kyrgyzstan","FS5","USD",146093]
[null,"Kyrgyzstan","G1","USD",12795]
[null,"Kyrgyzstan","G2","USD",14715]
[null,"Kyrgyzstan","G3","USD",16925]
[null,"Kyrgyzstan","G4","USD",19465]
[null,"Kyrgyzstan","G5","USD",22684]
[null,"Kyrgyzstan","G6","USD",26417]
[null,"Kyrgyzstan","G7","USD",30789]
[null,"Kyrgyzstan","NA","USD",38247]
[null,"Kyrgyzstan","NB","USD",44368]
[null,"Kyrgyzstan","NC","USD",51463]
[null,"Kyrgyzstan","ND","USD",59184]
[null,"Kyrgyzstan","P1","USD",101186]
[null,"Kyrgyzstan","P2","USD",128253]
[null,"Kyrgyzstan","P3","USD",160029]
[null,"Kyrgyzstan","P4","USD",193654]
[null,"Kyrgyzstan","P5","USD",223835]
[null,"Lebanon","D1","USD",278350]
[null,"Lebanon","D2","USD",303355]
[null,"Lebanon","FS4","USD",129975]
[null,"Lebanon","FS5","USD",161121]
[null,"Lebanon","G1","USD",39111]
[null,"Lebanon","G2","USD",45952]
[null,"Lebanon","G3","USD",53993]
[null,"Lebanon","G4","USD",63445]
[null,"Lebanon","G5","USD",74546]
[null,"Lebanon","G6","USD",87967]
[null,"Lebanon","G7","USD",103800]
[null,"Lebanon","NA","USD",117426]
[null,"Lebanon","NB","USD",138560]
[null,"Lebanon","NC","USD",164886]
[null,"Lebanon","ND","USD",197863]
[null,"Lebanon","P1","USD",111595]
[null,"Lebanon","P2","USD",141445]
[null,"Lebanon","P3","USD",176489]
[null,"Lebanon","P4","USD",213573]
[null,"Lebanon","P5","USD",246859]
[null,"Liberia","D1","USD",302608]
[null,"Liberia","D2","USD",329792]
[null,"Liberia","FS4","USD",141302]
[null,"Liberia","FS5","USD",175162]
[null,"Liberia","G1","USD",10484]
[null,"Liberia","G2","USD",13313]
[null,"Liberia","G3","USD",16777]
[null,"Liberia","G4","USD",21146]
[null,"Liberia","G5","USD",26423]
[null,"Liberia","G6","USD",33303]
[null,"Liberia","G7","USD",41949]
[null,"Liberia","NA","USD",51331]
[null,"Liberia","NB","USD",61339]
[null,"Liberia","NC","USD",75459]
[null,"Liberia","ND","USD",92818]
[null,"Liberia","P1","USD",121320]
[null,"Liberia","P2","USD",153772]
[null,"Liberia","P3","USD",191870]
[null,"Liberia","P4","USD",232186]
[null,"Liberia","P5","USD",268372]
[null,"Libya Arab Jamahiriya","D1","USD",266610]
[null,"Libya Arab Jamahiriya","D2","USD",290560]
[null,"Libya Arab Jamahiriya","FS4","USD",124493]
[null,"Libya Arab Jamahiriya","FS5","USD",154325]
[null,"Libya Arab Jamahiriya","G1","USD",22763]
[null,"Libya Arab Jamahiriya","G2","USD",26398]
[null,"Libya Arab Jamahiriya","G3","USD",30625]
[null,"Libya Arab Jamahiriya","G4","USD",35523]
[null,"Libya Arab Jamahiriya","G5","USD",41565]
[null,"Libya Arab Jamahiriya","G6","USD",48632]
[null,"Libya Arab Jamahiriya","G7","USD",56897]
[null,"Libya Arab Jamahiriya","NA","USD",63420]
[null,"Libya Arab Jamahiriya","NB","USD",70388]
[null,"Libya Arab Jamahiriya","NC","USD",78132]
[null,"Libya Arab Jamahiriya","ND","USD",86733]
[null,"Libya Arab Jamahiriya","P1","USD",106888]
[null,"Libya Arab Jamahiriya","P2","USD",135479]
[null,"Libya Arab Jamahiriya","P3","USD",169045]
[null,"Libya Arab Jamahiriya","P4","USD",204565]
[null,"Libya Arab Jamahiriya","P5","USD",236446]
[null,"Malawi","D1","USD",253318]
[null,"Malawi","D2","USD",276075]
[null,"Malawi","FS4","USD",118286]
[null,"Malawi","FS5","USD",146631]
[null,"Malawi","G1","USD",6870]
[null,"Malawi","G2","USD",8416]
[null,"Malawi","G3","USD",10726]
[null,"Malawi","G4","USD",13634]
[null,"Malawi","G5","USD",17949]
[null,"Malawi","G6","USD",23730]
[null,"Malawi","G7","USD",31492]
[null,"Malawi","NA","USD",46401]
[null,"Malawi","NB","USD",63613]
[null,"Malawi","NC","USD",84656]
[null,"Malawi","ND","USD",106595]
[null,"Malawi","P1","USD",101559]
[null,"Malawi","P2","USD",128725]
[null,"Malawi","P3","USD",160618]
[null,"Malawi","P4","USD",194367]
[null,"Malawi","P5","USD",224659]
[null,"Malaysia","D1","USD",233998]
[null,"Malaysia","D2","USD",255018]
[null,"Malaysia","FS4","USD",109265]
[null,"Malaysia","FS5","USD",135448]
[null,"Malaysia","G1","USD",8252]
[null,"Malaysia","G2","USD",11624]
[null,"Malaysia","G3","USD",15574]
[null,"Malaysia","G4","USD",20709]
[null,"Malaysia","G5","USD",27337]
[null,"Malaysia","G6","USD",35272]
[null,"Malaysia","G7","USD",44799]
[null,"Malaysia","NA","USD",46997]
[null,"Malaysia","NB","USD",59684]
[null,"Malaysia","NC","USD",75777]
[null,"Malaysia","ND","USD",96278]
[null,"Malaysia","P1","USD",93813]
[null,"Malaysia","P2","USD",118907]
[null,"Malaysia","P3","USD",148367]
[null,"Malaysia","P4","USD",179542]
[null,"Malaysia","P5","USD",207524]
[null,"Mali","D1","USD",337408]
[null,"Mali","D2","USD",367718]
[null,"Mali","FS4","USD",157552]
[null,"Mali","FS5","USD",195306]
[null,"Mali","G1","USD",8707]
[null,"Mali","G2","USD",11740]
[null,"Mali","G3","USD",15867]
[null,"Mali","G4","USD",21407]
[null,"Mali","G5","USD",28689]
[null,"Mali","G6","USD",38451]
[null,"Mali","G7","USD",51511]
[null,"Mali","NA","USD",56694]
[null,"Mali","NB","USD",65192]
[null,"Mali","NC","USD",74971]
[null,"Mali","ND","USD",86213]
[null,"Mali","P1","USD",135272]
[null,"Mali","P2","USD",171455]
[null,"Mali","P3","USD",213935]
[null,"Mali","P4","USD",258887]
[null,"Mali","P5","USD",299235]
[null,"Malta","D1","USD",232400]
[null,"Malta","D2","USD",253277]
[null,"Malta","FS4","USD",108519]
[null,"Malta","FS5","USD",134523]
[null,"Malta","G1","USD",24590]
[null,"Malta","G2","USD",26800]
[null,"Malta","G3","USD",29223]
[null,"Malta","G4","USD",31846]
[null,"Malta","G5","USD",34565]
[null,"Malta","G6","USD",37493]
[null,"Malta","G7","USD",40685]
[null,"Malta","NA","USD",44455]
[null,"Malta","NB","USD",48903]
[null,"Malta","NC","USD",53793]
[null,"Malta","ND","USD",59167]
[null,"Malta","P1","USD",93172]
[null,"Malta","P2","USD",118095]
[null,"Malta","P3","USD",147354]
[null,"Malta","P4","USD",178316]
[null,"Malta","P5","USD",206107]
[null,"Mauritania","D1","USD",276311]
[null,"Mauritania","D2","USD",301133]
[null,"Mauritania","FS4","USD",129023]
[null,"Mauritania","FS5","USD",159940]
[null,"Mauritania","G1","USD",8569]
[null,"Mauritania","G2","USD",10784]
[null,"Mauritania","G3","USD",13577]
[null,"Mauritania","G4","USD",17235]
[null,"Mauritania","G5","USD",21926]
[null,"Mauritania","G6","USD",27846]
[null,"Mauritania","G7","USD",35359]
[null,"Mauritania","NA","USD",47430]
[null,"Mauritania","NB","USD",59697]
[null,"Mauritania","NC","USD",76482]
[null,"Mauritania","ND","USD",98657]
[null,"Mauritania","P1","USD",110777]
[null,"Mauritania","P2","USD",140409]
[null,"Mauritania","P3","USD",175196]
[null,"Mauritania","P4","USD",212009]
[null,"Mauritania","P5","USD",245050]
[null,"Mexico","D1","USD",266257]
[null,"Mexico","D2","USD",290175]
[null,"Mexico","FS4","USD",124328]
[null,"Mexico","FS5","USD",154121]
[null,"Mexico","G1","USD",28188]
[null,"Mexico","G2","USD",32416]
[null,"Mexico","G3","USD",37279]
[null,"Mexico","G4","USD",42870]
[null,"Mexico","G5","USD",52302]
[null,"Mexico","G6","USD",63808]
[null,"Mexico","G7","USD",79122]
[null,"Mexico","NA","USD",102900]
[null,"Mexico","NB","USD",128555]
[null,"Mexico","NC","USD",154345]
[null,"Mexico","ND","USD",177499]
[null,"Mexico","P1","USD",106746]
[null,"Mexico","P2","USD",135300]
[null,"Mexico","P3","USD",168822]
[null,"Mexico","P4","USD",204294]
[null,"Mexico","P5","USD",236133]
[null,"Moldova","D1","USD",196478]
[null,"Moldova","D2","USD",214128]
[null,"Moldova","G1","USD",7382]
[null,"Moldova","G2","USD",9153]
[null,"Moldova","G3","USD",11076]
[null,"Moldova","G4","USD",13401]
[null,"Moldova","G5","USD",15947]
[null,"Moldova","G6","USD",18977]
[null,"Moldova","G7","USD",22583]
[null,"Moldova","NA","USD",29685]
[null,"Moldova","NB","USD",36542]
[null,"Moldova","NC","USD",45276]
[null,"Moldova","P1","USD",78771]
[null,"Moldova","P2","USD",99841]
[null,"Moldova","P3","USD",124578]
[null,"Moldova","P4","USD",150754]
[null,"Moldova","P5","USD",174249]
[null,"Montenegro","D1","USD",242758]
[null,"Montenegro","D2","USD",264565]
[null,"Montenegro","FS4","USD",113355]
[null,"Montenegro","FS5","USD",140518]
[null,"Montenegro","G1","USD",26765]
[null,"Montenegro","G2","USD",30512]
[null,"Montenegro","G3","USD",34788]
[null,"Montenegro","G4","USD",39667]
[null,"Montenegro","G5","USD",45208]
[null,"Montenegro","G6","USD",51545]
[null,"Montenegro","G7","USD",58760]
[null,"Montenegro","NA","USD",64083]
[null,"Montenegro","NB","USD",73772]
[null,"Montenegro","NC","USD",84904]
[null,"Montenegro","P1","USD",97325]
[null,"Montenegro","P2","USD",123359]
[null,"Montenegro","P3","USD",153922]
[null,"Montenegro","P4","USD",186264]
[null,"Montenegro","P5","USD",215293]
[null,"Morocco","D1","USD",210687]
[null,"Morocco","D2","USD",229613]
[null,"Morocco","FS4","USD",98380]
[null,"Morocco","FS5","USD",121954]
[null,"Morocco","G1","USD",13936]
[null,"Morocco","G2","USD",21084]
[null,"Morocco","G3","USD",25935]
[null,"Morocco","G4","USD",31900]
[null,"Morocco","G5","USD",38917]
[null,"Morocco","G6","USD",47482]
[null,"Morocco","G7","USD",56026]
[null,"Morocco","NA","USD",79828]
[null,"Morocco","NB","USD",98946]
[null,"Morocco","NC","USD",126693]
[null,"Morocco","ND","USD",162094]
[null,"Morocco","P1","USD",84467]
[null,"Morocco","P2","USD",107061]
[null,"Morocco","P3","USD",133587]
[null,"Morocco","P4","USD",161656]
[null,"Morocco","P5","USD",186850]
[null,"Mozambique","D1","USD",278894]
[null,"Mozambique","D2","USD",303948]
[null,"Mozambique","FS4","USD",130229]
[null,"Mozambique","FS5","USD",161435]
[null,"Mozambique","G1","USD",20563]
[null,"Mozambique","G2","USD",23129]
[null,"Mozambique","G3","USD",28680]
[null,"Mozambique","G4","USD",35567]
[null,"Mozambique","G5","USD",44100]
[null,"Mozambique","G6","USD",55570]
[null,"Mozambique","G7","USD",70574]
[null,"Mozambique","NA","USD",82215]
[null,"Mozambique","NB","USD",100306]
[null,"Mozambique","NC","USD",124386]
[null,"Mozambique","ND","USD",154237]
[null,"Mozambique","P1","USD",111813]
[null,"Mozambique","P2","USD",141721]
[null,"Mozambique","P3","USD",176834]
[null,"Mozambique","P4","USD",213990]
[null,"Mozambique","P5","USD",247341]
[null,"Myanmar","D1","USD",297433]
[null,"Myanmar","D2","USD",324152]
[null,"Myanmar","FS4","USD",138886]
[null,"Myanmar","FS5","USD",172167]
[null,"Myanmar","G1","USD",10245]
[null,"Myanmar","G2","USD",17051]
[null,"Myanmar","G3","USD",19607]
[null,"Myanmar","G4","USD",21933]
[null,"Myanmar","G5","USD",24578]
[null,"Myanmar","G6","USD",27518]
[null,"Myanmar","G7","USD",30797]
[null,"Myanmar","NA","USD",35258]
[null,"Myanmar","NB","USD",39834]
[null,"Myanmar","NC","USD",43428]
[null,"Myanmar","ND","USD",46905]
[null,"Myanmar","P1","USD",119245]
[null,"Myanmar","P2","USD",151142]
[null,"Myanmar","P3","USD",188589]
[null,"Myanmar","P4","USD",228215]
[null,"Myanmar","P5","USD",263783]
[null,"Namibia","D1","USD",235347]
[null,"Namibia","D2","USD",256488]
[null,"Namibia","FS4","USD",109894]
[null,"Namibia","FS5","USD",136228]
[null,"Namibia","G1","USD",15868]
[null,"Namibia","G2","USD",19042]
[null,"Namibia","G3","USD",22851]
[null,"Namibia","G4","USD",27421]
[null,"Namibia","G5","USD",33454]
[null,"Namibia","G6","USD",41148]
[null,"Namibia","G7","USD",50612]
[null,"Namibia","NA","USD",62944]
[null,"Namibia","NB","USD",78681]
[null,"Namibia","NC","USD",94417]
[null,"Namibia","ND","USD",108570]
[null,"Namibia","P1","USD",94354]
[null,"Namibia","P2","USD",119593]
[null,"Namibia","P3","USD",149223]
[null,"Namibia","P4","USD",180577]
[null,"Namibia","P5","USD",208720]
[null,"Nepal","D1","USD",248432]
[null,"Nepal","D2","USD",270750]
[null,"Nepal","FS4","USD",116005]
[null,"Nepal","FS5","USD",143803]
[null,"Nepal","G1","USD",9023]
[null,"Nepal","G2","USD",10647]
[null,"Nepal","G3","USD",12670]
[null,"Nepal","G4","USD",15078]
[null,"Nepal","G5","USD",18093]
[null,"Nepal","G6","USD",21893]
[null,"Nepal","G7","USD",26490]
[null,"Nepal","NA","USD",35710]
[null,"Nepal","NB","USD",45709]
[null,"Nepal","NC","USD",55765]
[null,"Nepal","ND","USD",68033]
[null,"Nepal","P1","USD",99600]
[null,"Nepal","P2","USD",126242]
[null,"Nepal","P3","USD",157520]
[null,"Nepal","P4","USD",190618]
[null,"Nepal","P5","USD",220326]
[null,"Netherlands","D1","USD",225100]
[null,"Netherlands","D2","USD",245321]
[null,"Netherlands","FS4","USD",105110]
[null,"Netherlands","FS5","USD",130297]
[null,"Netherlands","G1","USD",51962]
[null,"Netherlands","G2","USD",58203]
[null,"Netherlands","G3","USD",65188]
[null,"Netherlands","G4","USD",73013]
[null,"Netherlands","G5","USD",81767]
[null,"Netherlands","G6","USD",91586]
[null,"Netherlands","G7","USD",102577]
[null,"Netherlands","NA","USD",109135]
[null,"Netherlands","NB","USD",118124]
[null,"Netherlands","NC","USD",132053]
[null,"Netherlands","ND","USD",145253]
[null,"Netherlands","P1","USD",90246]
[null,"Netherlands","P2","USD",114386]
[null,"Netherlands","P3","USD",142726]
[null,"Netherlands","P4","USD",172715]
[null,"Netherlands","P5","USD",199633]
[null,"Nicaragua","D1","USD",221861]
[null,"Nicaragua","D2","USD",241791]
[null,"Nicaragua","FS4","USD",103597]
[null,"Nicaragua","FS5","USD",128422]
[null,"Nicaragua","G1","USD",10056]
[null,"Nicaragua","G2","USD",11565]
[null,"Nicaragua","G3","USD",13295]
[null,"Nicaragua","G4","USD",15683]
[null,"Nicaragua","G5","USD",20085]
[null,"Nicaragua","G6","USD",25910]
[null,"Nicaragua","G7","USD",33419]
[null,"Nicaragua","NA","USD",41002]
[null,"Nicaragua","NB","USD",48792]
[null,"Nicaragua","NC","USD",60000]
[null,"Nicaragua","ND","USD",73804]
[null,"Nicaragua","P1","USD",88947]
[null,"Nicaragua","P2","USD",112740]
[null,"Nicaragua","P3","USD",140672]
[null,"Nicaragua","P4","USD",170230]
[null,"Nicaragua","P5","USD",196760]
[null,"Niger","D1","USD",263985]
[null,"Niger","D2","USD",287699]
[null,"Niger","FS4","USD",123267]
[null,"Niger","FS5","USD",152805]
[null,"Niger","G1","USD",10833]
[null,"Niger","G2","USD",14186]
[null,"Niger","G3","USD",18604]
[null,"Niger","G4","USD",24351]
[null,"Niger","G5","USD",31905]
[null,"Niger","G6","USD",41812]
[null,"Niger","G7","USD",52262]
[null,"Niger","NA","USD",47079]
[null,"Niger","NB","USD",55100]
[null,"Niger","NC","USD",65013]
[null,"Niger","ND","USD",76711]
[null,"Niger","P1","USD",105835]
[null,"Niger","P2","USD",134145]
[null,"Niger","P3","USD",167381]
[null,"Niger","P4","USD",202551]
[null,"Niger","P5","USD",234119]
[null,"Nigeria","D1","USD",284293]
[null,"Nigeria","D2","USD",309832]
[null,"Nigeria","FS4","USD",132750]
[null,"Nigeria","FS5","USD",164561]
[null,"Nigeria","G1","USD",20497]
[null,"Nigeria","G2","USD",27672]
[null,"Nigeria","G3","USD",37357]
[null,"Nigeria","G4","USD",49311]
[null,"Nigeria","G5","USD",60159]
[null,"Nigeria","G6","USD",73395]
[null,"Nigeria","G7","USD",88807]
[null,"Nigeria","NA","USD",100219]
[null,"Nigeria","NB","USD",132289]
[null,"Nigeria","NC","USD",171976]
[null,"Nigeria","ND","USD",220130]
[null,"Nigeria","P1","USD",113977]
[null,"Nigeria","P2","USD",144465]
[null,"Nigeria","P3","USD",180258]
[null,"Nigeria","P4","USD",218133]
[null,"Nigeria","P5","USD",252129]
[null,"Pakistan","D1","USD",249515]
[null,"Pakistan","D2","USD",271930]
[null,"Pakistan","FS4","USD",116511]
[null,"Pakistan","FS5","USD",144430]
[null,"Pakistan","G1","USD",5164]
[null,"Pakistan","G2","USD",10085]
[null,"Pakistan","G3","USD",12808]
[null,"Pakistan","G4","USD",16394]
[null,"Pakistan","G5","USD",20984]
[null,"Pakistan","G6","USD",27069]
[null,"Pakistan","G7","USD",35190]
[null,"Pakistan","NA","USD",36886]
[null,"Pakistan","NB","USD",52010]
[null,"Pakistan","NC","USD",74374]
[null,"Pakistan","ND","USD",96666]
[null,"Pakistan","P1","USD",100034]
[null,"Pakistan","P2","USD",126792]
[null,"Pakistan","P3","USD",158206]
[null,"Pakistan","P4","USD",191449]
[null,"Pakistan","P5","USD",221286]
[null,"Panama","D1","USD",224534]
[null,"Panama","D2","USD",244705]
[null,"Panama","FS4","USD",104846]
[null,"Panama","FS5","USD",129970]
[null,"Panama","G1","USD",17239]
[null,"Panama","G2","USD",20490]
[null,"Panama","G3","USD",24397]
[null,"Panama","G4","USD",30015]
[null,"Panama","G5","USD",36917]
[null,"Panama","G6","USD",45757]
[null,"Panama","G7","USD",56751]
[null,"Panama","NA","USD",75929]
[null,"Panama","NB","USD",88805]
[null,"Panama","NC","USD",103036]
[null,"Panama","ND","USD",118507]
[null,"Panama","P1","USD",90019]
[null,"Panama","P2","USD",114098]
[null,"Panama","P3","USD",142367]
[null,"Panama","P4","USD",172281]
[null,"Panama","P5","USD",199131]
[null,"Philippines","D1","USD",241109]
[null,"Philippines","D2","USD",262768]
[null,"Philippines","FS4","USD",112585]
[null,"Philippines","FS5","USD",139564]
[null,"Philippines","G1","USD",10680]
[null,"Philippines","G2","USD",12762]
[null,"Philippines","G3","USD",15251]
[null,"Philippines","G4","USD",18148]
[null,"Philippines","G5","USD",21415]
[null,"Philippines","G6","USD",25056]
[null,"Philippines","G7","USD",29315]
[null,"Philippines","NA","USD",37806]
[null,"Philippines","NB","USD",49904]
[null,"Philippines","NC","USD",68867]
[null,"Philippines","ND","USD",96414]
[null,"Philippines","P1","USD",96664]
[null,"Philippines","P2","USD",122521]
[null,"Philippines","P3","USD",152876]
[null,"Philippines","P4","USD",184999]
[null,"Philippines","P5","USD",213831]
[null,"Poland","D1","USD",212617]
[null,"Poland","D2","USD",231716]
[null,"Poland","FS4","USD",99281]
[null,"Poland","FS5","USD",123071]
[null,"Poland","G1","USD",23820]
[null,"Poland","G2","USD",27155]
[null,"Poland","G3","USD",30955]
[null,"Poland","G4","USD",35287]
[null,"Poland","G5","USD",42346]
[null,"Poland","G6","USD",51239]
[null,"Poland","G7","USD",63024]
[null,"Poland","NA","USD",73946]
[null,"Poland","NB","USD",96871]
[null,"Poland","NC","USD",126900]
[null,"Poland","ND","USD",148473]
[null,"Poland","P1","USD",85241]
[null,"Poland","P2","USD",108042]
[null,"Poland","P3","USD",134811]
[null,"Poland","P4","USD",163137]
[null,"Poland","P5","USD",188562]
[null,"Republic of Korea","D1","USD",299426]
[null,"Republic of Korea","D2","USD",326324]
[null,"Republic of Korea","FS4","USD",139816]
[null,"Republic of Korea","FS5","USD",173320]
[null,"Republic of Korea","G1","USD",34821]
[null,"Republic of Korea","G2","USD",42846]
[null,"Republic of Korea","G3","USD",51003]
[null,"Republic of Korea","G4","USD",60665]
[null,"Republic of Korea","G5","USD",72214]
[null,"Republic of Korea","G6","USD",85908]
[null,"Republic of Korea","G7","USD",99645]
[null,"Republic of Korea","NA","USD",94620]
[null,"Republic of Korea","NB","USD",95998]
[null,"Republic of Korea","NC","USD",97449]
[null,"Republic of Korea","ND","USD",101415]
[null,"Republic of Korea","P1","USD",120044]
[null,"Republic of Korea","P2","USD",152155]
[null,"Republic of Korea","P3","USD",189852]
[null,"Republic of Korea","P4","USD",229744]
[null,"Republic of Korea","P5","USD",265550]
[null,"Republic of South Africa","D1","USD",227582]
[null,"Republic of South Africa","D2","USD",248026]
[null,"Republic of South Africa","FS4","USD",106269]
[null,"Republic of South Africa","FS5","USD",131734]
[null,"Republic of South Africa","G1","USD",19966]
[null,"Republic of South Africa","G2","USD",23559]
[null,"Republic of South Africa","G3","USD",27799]
[null,"Republic of South Africa","G4","USD",32804]
[null,"Republic of South Africa","G5","USD",39364]
[null,"Republic of South Africa","G6","USD",47237]
[null,"Republic of South Africa","G7","USD",57629]
[null,"Republic of South Africa","NA","USD",74976]
[null,"Republic of South Africa","NB","USD",90721]
[null,"Republic of South Africa","NC","USD",113402]
[null,"Republic of South Africa","ND","USD",141752]
[null,"Republic of South Africa","P1","USD",91241]
[null,"Republic of South Africa","P2","USD",115647]
[null,"Republic of South Africa","P3","USD",144299]
[null,"Republic of South Africa","P4","USD",174619]
[null,"Republic of South Africa","P5","USD",201834]
[null,"Romania","D1","USD",202015]
[null,"Romania","D2","USD",220162]
[null,"Romania","FS4","USD",94330]
[null,"Romania","FS5","USD",116935]
[null,"Romania","G1","USD",14841]
[null,"Romania","G2","USD",17659]
[null,"Romania","G3","USD",21016]
[null,"Romania","G4","USD",25008]
[null,"Romania","G5","USD",30008]
[null,"Romania","G6","USD",36310]
[null,"Romania","G7","USD",45024]
[null,"Romania","NA","USD",55778]
[null,"Romania","NB","USD",70838]
[null,"Romania","NC","USD",88549]
[null,"Romania","ND","USD",110687]
[null,"Romania","P1","USD",80991]
[null,"Romania","P2","USD",102655]
[null,"Romania","P3","USD",128089]
[null,"Romania","P4","USD",155002]
[null,"Romania","P5","USD",179160]
[null,"Russian Federation","D1","USD",284891]
[null,"Russian Federation","D2","USD",310484]
[null,"Russian Federation","FS4","USD",133029]
[null,"Russian Federation","FS5","USD",164907]
[null,"Russian Federation","G1","USD",19498]
[null,"Russian Federation","G2","USD",22423]
[null,"Russian Federation","G3","USD",25786]
[null,"Russian Federation","G4","USD",29654]
[null,"Russian Federation","G5","USD",34103]
[null,"Russian Federation","G6","USD",41605]
[null,"Russian Federation","G7","USD",50758]
[null,"Russian Federation","NA","USD",69046]
[null,"Russian Federation","NB","USD",93212]
[null,"Russian Federation","NC","USD",125836]
[null,"Russian Federation","ND","USD",169879]
[null,"Russian Federation","P1","USD",114217]
[null,"Russian Federation","P2","USD",144769]
[null,"Russian Federation","P3","USD",180637]
[null,"Russian Federation","P4","USD",218592]
[null,"Russian Federation","P5","USD",252660]
[null,"Rwanda","D1","USD",266779]
[null,"Rwanda","D2","USD",290744]
[null,"Rwanda","FS4","USD",124572]
[null,"Rwanda","FS5","USD",154423]
[null,"Rwanda","G1","USD",10373]
[null,"Rwanda","G2","USD",13278]
[null,"Rwanda","G3","USD",16993]
[null,"Rwanda","G4","USD",21579]
[null,"Rwanda","G5","USD",26327]
[null,"Rwanda","G6","USD",31869]
[null,"Rwanda","G7","USD",38223]
[null,"Rwanda","NA","USD",48986]
[null,"Rwanda","NB","USD",62218]
[null,"Rwanda","NC","USD",83998]
[null,"Rwanda","ND","USD",113384]
[null,"Rwanda","P1","USD",106955]
[null,"Rwanda","P2","USD",135565]
[null,"Rwanda","P3","USD",169152]
[null,"Rwanda","P4","USD",204695]
[null,"Rwanda","P5","USD",236596]
[null,"Saudi Arabia","D1","USD",260870]
[null,"Saudi Arabia","D2","USD",284305]
[null,"Saudi Arabia","FS4","USD",121813]
[null,"Saudi Arabia","FS5","USD",151003]
[null,"Saudi Arabia","G1","USD",38359]
[null,"Saudi Arabia","G2","USD",44878]
[null,"Saudi Arabia","G3","USD",52509]
[null,"Saudi Arabia","G4","USD",61434]
[null,"Saudi Arabia","G5","USD",73106]
[null,"Saudi Arabia","G6","USD",86996]
[null,"Saudi Arabia","G7","USD",104397]
[null,"Saudi Arabia","NA","USD",113672]
[null,"Saudi Arabia","NB","USD",136405]
[null,"Saudi Arabia","NC","USD",170506]
[null,"Saudi Arabia","P1","USD",104587]
[null,"Saudi Arabia","P2","USD",132563]
[null,"Saudi Arabia","P3","USD",165406]
[null,"Saudi Arabia","P4","USD",200161]
[null,"Saudi Arabia","P5","USD",231356]
[null,"Senegal","D1","USD",273749]
[null,"Senegal","D2","USD",298340]
[null,"Senegal","FS4","USD",127826]
[null,"Senegal","FS5","USD",158457]
[null,"Senegal","G1","USD",15461]
[null,"Senegal","G2","USD",19003]
[null,"Senegal","G3","USD",23367]
[null,"Senegal","G4","USD",28512]
[null,"Senegal","G5","USD",34781]
[null,"Senegal","G6","USD",41741]
[null,"Senegal","G7","USD",50085]
[null,"Senegal","NA","USD",58051]
[null,"Senegal","NB","USD",75460]
[null,"Senegal","NC","USD",98108]
[null,"Senegal","ND","USD",127534]
[null,"Senegal","P1","USD",109750]
[null,"Senegal","P2","USD",139107]
[null,"Senegal","P3","USD",173572]
[null,"Senegal","P4","USD",210042]
[null,"Senegal","P5","USD",242778]
[null,"Serbia","D1","USD",243010]
[null,"Serbia","D2","USD",264840]
[null,"Serbia","FS4","USD",113473]
[null,"Serbia","FS5","USD",140664]
[null,"Serbia","G1","USD",30259]
[null,"Serbia","G2","USD",34494]
[null,"Serbia","G3","USD",39332]
[null,"Serbia","G4","USD",44836]
[null,"Serbia","G5","USD",51564]
[null,"Serbia","G6","USD",59296]
[null,"Serbia","G7","USD",68191]
[null,"Serbia","NA","USD",72786]
[null,"Serbia","NB","USD",83564]
[null,"Serbia","NC","USD",98274]
[null,"Serbia","P1","USD",97426]
[null,"Serbia","P2","USD",123487]
[null,"Serbia","P3","USD",154082]
[null,"Serbia","P4","USD",186457]
[null,"Serbia","P5","USD",215517]
[null,"Sierra Leone","D1","USD",284655]
[null,"Sierra Leone","D2","USD",310226]
[null,"Sierra Leone","FS4","USD",132919]
[null,"Sierra Leone","FS5","USD",164770]
[null,"Sierra Leone","G1","USD",6395]
[null,"Sierra Leone","G2","USD",7738]
[null,"Sierra Leone","G3","USD",9364]
[null,"Sierra Leone","G4","USD",11329]
[null,"Sierra Leone","G5","USD",13597]
[null,"Sierra Leone","G6","USD",16314]
[null,"Sierra Leone","G7","USD",19577]
[null,"Sierra Leone","NA","USD",28319]
[null,"Sierra Leone","NB","USD",35966]
[null,"Sierra Leone","NC","USD",46397]
[null,"Sierra Leone","ND","USD",61244]
[null,"Sierra Leone","P1","USD",114122]
[null,"Sierra Leone","P2","USD",144649]
[null,"Sierra Leone","P3","USD",180487]
[null,"Sierra Leone","P4","USD",218411]
[null,"Sierra Leone","P5","USD",252450]
[null,"Slovakia","D1","USD",236001]
[null,"Slovakia","D2","USD",257202]
[null,"Slovakia","FS4","USD",110200]
[null,"Slovakia","FS5","USD",136607]
[null,"Slovakia","G1","USD",15558]
[null,"Slovakia","G2","USD",22555]
[null,"Slovakia","G3","USD",28079]
[null,"Slovakia","G4","USD",34108]
[null,"Slovakia","G5","USD",41451]
[null,"Slovakia","G6","USD",50350]
[null,"Slovakia","G7","USD",61199]
[null,"Slovakia","NA","USD",90513]
[null,"Slovakia","NB","USD",116846]
[null,"Slovakia","NC","USD",157779]
[null,"Slovakia","ND","USD",212937]
[null,"Slovakia","P1","USD",94616]
[null,"Slovakia","P2","USD",119925]
[null,"Slovakia","P3","USD",149638]
[null,"Slovakia","P4","USD",181080]
[null,"Slovakia","P5","USD",209301]
[null,"Somalia","D1","USD",292438]
[null,"Somalia","D2","USD",318708]
[null,"Somalia","FS4","USD",136553]
[null,"Somalia","FS5","USD",169275]
[null,"Somalia","G1A","USD",5848]
[null,"Somalia","G2","USD",10186]
[null,"Somalia","G3","USD",13451]
[null,"Somalia","G4","USD",17755]
[null,"Somalia","G5","USD",21126]
[null,"Somalia","G6","USD",25202]
[null,"Somalia","G7","USD",29914]
[null,"Somalia","NA","USD",32909]
[null,"Somalia","NB","USD",37844]
[null,"Somalia","NC","USD",43523]
[null,"Somalia","ND","USD",50053]
[null,"Somalia","P1","USD",117243]
[null,"Somalia","P2","USD",148604]
[null,"Somalia","P3","USD",185422]
[null,"Somalia","P4","USD",224383]
[null,"Somalia","P5","USD",259353]
[null,"South Sudan","D1","USD",338007]
[null,"South Sudan","D2","USD",368371]
[null,"South Sudan","FS4","USD",157832]
[null,"South Sudan","FS5","USD",195653]
[null,"South Sudan","G1","USD",18992]
[null,"South Sudan","G2","USD",23356]
[null,"South Sudan","G3","USD",28729]
[null,"South Sudan","G4","USD",35623]
[null,"South Sudan","G5","USD",44529]
[null,"South Sudan","G6","USD",55663]
[null,"South Sudan","G7","USD",69580]
[null,"South Sudan","NA","USD",72772]
[null,"South Sudan","NB","USD",95368]
[null,"South Sudan","NC","USD",123965]
[null,"South Sudan","ND","USD",161160]
[null,"South Sudan","P1","USD",135512]
[null,"South Sudan","P2","USD",171760]
[null,"South Sudan","P3","USD",214315]
[null,"South Sudan","P4","USD",259347]
[null,"South Sudan","P5","USD",299766]
[null,"Spain","D1","USD",254002]
[null,"Spain","D2","USD",276820]
[null,"Spain","FS4","USD",118606]
[null,"Spain","FS5","USD",147027]
[null,"Spain","G1","USD",49253]
[null,"Spain","G2","USD",55626]
[null,"Spain","G3","USD",62871]
[null,"Spain","G4","USD",71067]
[null,"Spain","G5","USD",80101]
[null,"Spain","G6","USD",90240]
[null,"Spain","G7","USD",101712]
[null,"Spain","NA","USD",103166]
[null,"Spain","NB","USD",111421]
[null,"Spain","NC","USD",120333]
[null,"Spain","ND","USD",129186]
[null,"Spain","P1","USD",101833]
[null,"Spain","P2","USD",129072]
[null,"Spain","P3","USD",161051]
[null,"Spain","P4","USD",194891]
[null,"Spain","P5","USD",225265]
[null,"Sri Lanka","D1","USD",269731]
[null,"Sri Lanka","D2","USD",293961]
[null,"Sri Lanka","FS4","USD",125950]
[null,"Sri Lanka","FS5","USD",156131]
[null,"Sri Lanka","G1","USD",5464]
[null,"Sri Lanka","G2","USD",8486]
[null,"Sri Lanka","G3","USD",10181]
[null,"Sri Lanka","G4","USD",13135]
[null,"Sri Lanka","G5","USD",17332]
[null,"Sri Lanka","G6","USD",23053]
[null,"Sri Lanka","G7","USD",30661]
[null,"Sri Lanka","NA","USD",38370]
[null,"Sri Lanka","NB","USD",49892]
[null,"Sri Lanka","NC","USD",65841]
[null,"Sri Lanka","ND","USD",88214]
[null,"Sri Lanka","P1","USD",108139]
[null,"Sri Lanka","P2","USD",137065]
[null,"Sri Lanka","P3","USD",171024]
[null,"Sri Lanka","P4","USD",206960]
[null,"Sri Lanka","P5","USD",239214]
[null,"Sudan","D1","USD",292794]
[null,"Sudan","D2","USD",319097]
[null,"Sudan","FS4","USD",136720]
[null,"Sudan","FS5","USD",169482]
[null,"Sudan","G1","USD",11430]
[null,"Sudan","G2","USD",13827]
[null,"Sudan","G3","USD",17159]
[null,"Sudan","G4","USD",21431]
[null,"Sudan","G5","USD",26802]
[null,"Sudan","G6","USD",33769]
[null,"Sudan","G7","USD",42553]
[null,"Sudan","NA","USD",53748]
[null,"Sudan","NB","USD",70394]
[null,"Sudan","NC","USD",91515]
[null,"Sudan","ND","USD",118976]
[null,"Sudan","P1","USD",117386]
[null,"Sudan","P2","USD",148785]
[null,"Sudan","P3","USD",185648]
[null,"Sudan","P4","USD",224656]
[null,"Sudan","P5","USD",259669]
[null,"Sweden","D1","USD",258350]
[null,"Sweden","D2","USD",281558]
[null,"Sweden","FS4","USD",120636]
[null,"Sweden","FS5","USD",149544]
[null,"Sweden","G1","USD",42082]
[null,"Sweden","G2","USD",47361]
[null,"Sweden","G3","USD",53307]
[null,"Sweden","G4","USD",59984]
[null,"Sweden","G5","USD",67486]
[null,"Sweden","G6","USD",75944]
[null,"Sweden","G7","USD",85430]
[null,"Sweden","NA","USD",87317]
[null,"Sweden","NB","USD",98665]
[null,"Sweden","NC","USD",111496]
[null,"Sweden","P1","USD",103576]
[null,"Sweden","P2","USD",131282]
[null,"Sweden","P3","USD",163808]
[null,"Sweden","P4","USD",198228]
[null,"Sweden","P5","USD",229121]
[null,"Switzerland","ASG","USD",390942]
[null,"Switzerland","D1","USD",323625]
[null,"Switzerland","D2","USD",352697]
[null,"Switzerland","FS4","USD",151116]
[null,"Switzerland","FS5","USD",187328]
[null,"Switzerland","FS6","USD",189848]
[null,"Switzerland","FS7","USD",224813]
[null,"Switzerland","G1","USD",94448]
[null,"Switzerland","G2","USD",102953]
[null,"Switzerland","G3","USD",112173]
[null,"Switzerland","G4","USD",122377]
[null,"Switzerland","G5","USD",133902]
[null,"Switzerland","G6","USD",146642]
[null,"Switzerland","G7","USD",160575]
[null,"Switzerland","NA","USD",151727]
[null,"Switzerland","NB","USD",156151]
[null,"Switzerland","NC","USD",164999]
[null,"Switzerland","ND","USD",164999]
[null,"Switzerland","P1","USD",129746]
[null,"Switzerland","P2","USD",164452]
[null,"Switzerland","P3","USD",205196]
[null,"Switzerland","P4","USD",248312]
[null,"Switzerland","P5","USD",287012]
[null,"Switzerland","USG","USD",426237]
[null,"Syrian Arab Republic","D1","USD",341979]
[null,"Syrian Arab Republic","D2","USD",372700]
[null,"Syrian Arab Republic","FS4","USD",159686]
[null,"Syrian Arab Republic","FS5","USD",197952]
[null,"Syrian Arab Republic","G2","USD",24766]
[null,"Syrian Arab Republic","G3","USD",28977]
[null,"Syrian Arab Republic","G4","USD",34192]
[null,"Syrian Arab Republic","G5","USD",40688]
[null,"Syrian Arab Republic","G6","USD",48625]
[null,"Syrian Arab Republic","G7","USD",58592]
[null,"Syrian Arab Republic","NA","USD",62392]
[null,"Syrian Arab Republic","NB","USD",69256]
[null,"Syrian Arab Republic","NC","USD",78260]
[null,"Syrian Arab Republic","ND","USD",89997]
[null,"Syrian Arab Republic","P1","USD",137104]
[null,"Syrian Arab Republic","P2","USD",173778]
[null,"Syrian Arab Republic","P3","USD",216833]
[null,"Syrian Arab Republic","P4","USD",262394]
[null,"Syrian Arab Republic","P5","USD",303289]
[null,"Tajikistan","D1","USD",253105]
[null,"Tajikistan","D2","USD",275842]
[null,"Tajikistan","FS4","USD",118187]
[null,"Tajikistan","FS5","USD",146508]
[null,"Tajikistan","G1","USD",11772]
[null,"Tajikistan","G2","USD",14005]
[null,"Tajikistan","G3","USD",16655]
[null,"Tajikistan","G4","USD",19819]
[null,"Tajikistan","G5","USD",23591]
[null,"Tajikistan","G6","USD",28072]
[null,"Tajikistan","G7","USD",32572]
[null,"Tajikistan","NA","USD",36605]
[null,"Tajikistan","NB","USD",43926]
[null,"Tajikistan","NC","USD",53146]
[null,"Tajikistan","ND","USD",64303]
[null,"Tajikistan","P1","USD",101473]
[null,"Tajikistan","P2","USD",128616]
[null,"Tajikistan","P3","USD",160482]
[null,"Tajikistan","P4","USD",194203]
[null,"Tajikistan","P5","USD",224469]
[null,"Tanzania","D1","USD",268908]
[null,"Tanzania","D2","USD",293065]
[null,"Tanzania","FS4","USD",125566]
[null,"Tanzania","FS5","USD",155655]
[null,"Tanzania","G1","USD",12158]
[null,"Tanzania","G2","USD",16647]
[null,"Tanzania","G3","USD",19476]
[null,"Tanzania","G4","USD",22986]
[null,"Tanzania","G5","USD",27126]
[null,"Tanzania","G6","USD",32268]
[null,"Tanzania","G7","USD",38406]
[null,"Tanzania","NA","USD",56279]
[null,"Tanzania","NB","USD",75977]
[null,"Tanzania","NC","USD",102575]
[null,"Tanzania","ND","USD",123085]
[null,"Tanzania","P1","USD",107809]
[null,"Tanzania","P2","USD",136647]
[null,"Tanzania","P3","USD",170503]
[null,"Tanzania","P4","USD",206329]
[null,"Tanzania","P5","USD",238485]
[null,"Thailand","D1","USD",237148]
[null,"Thailand","D2","USD",258451]
[null,"Thailand","FS4","USD",110736]
[null,"Thailand","FS5","USD",137271]
[null,"Thailand","G1","USD",16758]
[null,"Thailand","G2","USD",26560]
[null,"Thailand","G3","USD",34529]
[null,"Thailand","G4","USD",44714]
[null,"Thailand","G5","USD",56339]
[null,"Thailand","G6","USD",70256]
[null,"Thailand","G7","USD",87328]
[null,"Thailand","NA","USD",97991]
[null,"Thailand","NB","USD",126212]
[null,"Thailand","NC","USD",162561]
[null,"Thailand","ND","USD",209375]
[null,"Thailand","P1","USD",95076]
[null,"Thailand","P2","USD",120508]
[null,"Thailand","P3","USD",150365]
[null,"Thailand","P4","USD",181959]
[null,"Thailand","P5","USD",210318]
[null,"The former Yug. Rep. of Macedonia","D1","USD",202845]
[null,"The former Yug. Rep. of Macedonia","D2","USD",221067]
[null,"The former Yug. Rep. of Macedonia","FS4","USD",94718]
[null,"The former Yug. Rep. of Macedonia","FS5","USD",117415]
[null,"The former Yug. Rep. of Macedonia","G1","USD",23991]
[null,"The former Yug. Rep. of Macedonia","G2","USD",28317]
[null,"The former Yug. Rep. of Macedonia","G3","USD",33128]
[null,"The former Yug. Rep. of Macedonia","G4","USD",38426]
[null,"The former Yug. Rep. of Macedonia","G5","USD",44189]
[null,"The former Yug. Rep. of Macedonia","G6","USD",50826]
[null,"The former Yug. Rep. of Macedonia","G7","USD",58449]
[null,"The former Yug. Rep. of Macedonia","NA","USD",58963]
[null,"The former Yug. Rep. of Macedonia","NB","USD",66029]
[null,"The former Yug. Rep. of Macedonia","NC","USD",75277]
[null,"The former Yug. Rep. of Macedonia","ND","USD",86567]
[null,"The former Yug. Rep. of Macedonia","P1","USD",81323]
[null,"The former Yug. Rep. of Macedonia","P2","USD",103077]
[null,"The former Yug. Rep. of Macedonia","P3","USD",128615]
[null,"The former Yug. Rep. of Macedonia","P4","USD",155639]
[null,"The former Yug. Rep. of Macedonia","P5","USD",179896]
[null,"Togo","D1","USD",290031]
[null,"Togo","D2","USD",316085]
[null,"Togo","FS4","USD",135429]
[null,"Togo","FS5","USD",167882]
[null,"Togo","G1","USD",13013]
[null,"Togo","G2","USD",16419]
[null,"Togo","G3","USD",20841]
[null,"Togo","G4","USD",26671]
[null,"Togo","G5","USD",34152]
[null,"Togo","G6","USD",43704]
[null,"Togo","G7","USD",55945]
[null,"Togo","NA","USD",55958]
[null,"Togo","NB","USD",70516]
[null,"Togo","NC","USD",89555]
[null,"Togo","ND","USD",115515]
[null,"Togo","P1","USD",116278]
[null,"Togo","P2","USD",147381]
[null,"Togo","P3","USD",183895]
[null,"Togo","P4","USD",222535]
[null,"Togo","P5","USD",257218]
[null,"Trinidad and  Tobago","D1","USD",245700]
[null,"Trinidad and  Tobago","D2","USD",267772]
[null,"Trinidad and  Tobago","G1","USD",28141]
[null,"Trinidad and  Tobago","G2","USD",31518]
[null,"Trinidad and  Tobago","G3","USD",35299]
[null,"Trinidad and  Tobago","G4","USD",40241]
[null,"Trinidad and  Tobago","G5","USD",47082]
[null,"Trinidad and  Tobago","G6","USD",55087]
[null,"Trinidad and  Tobago","G7","USD",65002]
[null,"Trinidad and  Tobago","NA","USD",63246]
[null,"Trinidad and  Tobago","NB","USD",79324]
[null,"Trinidad and  Tobago","NC","USD",96422]
[null,"Trinidad and  Tobago","ND","USD",113742]
[null,"Trinidad and  Tobago","P1","USD",98505]
[null,"Trinidad and  Tobago","P2","USD",124854]
[null,"Trinidad and  Tobago","P3","USD",155787]
[null,"Trinidad and  Tobago","P4","USD",188521]
[null,"Trinidad and  Tobago","P5","USD",217902]
[null,"Tunisia","D1","USD",212233]
[null,"Tunisia","D2","USD",231298]
[null,"Tunisia","FS4","USD",99102]
[null,"Tunisia","FS5","USD",122849]
[null,"Tunisia","G1","USD",11173]
[null,"Tunisia","G2","USD",13305]
[null,"Tunisia","G3","USD",15825]
[null,"Tunisia","G4","USD",18828]
[null,"Tunisia","G5","USD",22702]
[null,"Tunisia","G6","USD",27351]
[null,"Tunisia","G7","USD",32954]
[null,"Tunisia","NA","USD",35180]
[null,"Tunisia","NB","USD",41515]
[null,"Tunisia","NC","USD",51061]
[null,"Tunisia","ND","USD",62808]
[null,"Tunisia","P1","USD",85087]
[null,"Tunisia","P2","USD",107847]
[null,"Tunisia","P3","USD",134567]
[null,"Tunisia","P4","USD",162842]
[null,"Tunisia","P5","USD",188222]
[null,"Turkey","D1","USD",231880]
[null,"Turkey","D2","USD",252711]
[null,"Turkey","FS4","USD",108276]
[null,"Turkey","FS5","USD",134222]
[null,"Turkey","G1","USD",27008]
[null,"Turkey","G2","USD",29977]
[null,"Turkey","G3","USD",33276]
[null,"Turkey","G4","USD",37267]
[null,"Turkey","G5","USD",43603]
[null,"Turkey","G6","USD",51455]
[null,"Turkey","G7","USD",61231]
[null,"Turkey","NA","USD",71918]
[null,"Turkey","NB","USD",94181]
[null,"Turkey","NC","USD",123425]
[null,"Turkey","ND","USD",159247]
[null,"Turkey","P1","USD",92964]
[null,"Turkey","P2","USD",117831]
[null,"Turkey","P3","USD",147025]
[null,"Turkey","P4","USD",177918]
[null,"Turkey","P5","USD",205646]
[null,"Turkmenistan","D1","USD",236305]
[null,"Turkmenistan","D2","USD",257532]
[null,"Turkmenistan","FS4","USD",110342]
[null,"Turkmenistan","FS5","USD",136783]
[null,"Turkmenistan","G1","USD",10809]
[null,"Turkmenistan","G2","USD",13949]
[null,"Turkmenistan","G3","USD",17433]
[null,"Turkmenistan","G4","USD",20745]
[null,"Turkmenistan","G5","USD",24483]
[null,"Turkmenistan","G6","USD",28886]
[null,"Turkmenistan","G7","USD",34083]
[null,"Turkmenistan","NA","USD",45986]
[null,"Turkmenistan","NB","USD",54714]
[null,"Turkmenistan","NC","USD",65117]
[null,"Turkmenistan","P1","USD",94738]
[null,"Turkmenistan","P2","USD",120079]
[null,"Turkmenistan","P3","USD",149830]
[null,"Turkmenistan","P4","USD",181312]
[null,"Turkmenistan","P5","USD",209570]
[null,"Uganda","D1","USD",236386]
[null,"Uganda","D2","USD",257621]
[null,"Uganda","FS4","USD",110380]
[null,"Uganda","FS5","USD",136830]
[null,"Uganda","G1","USD",12011]
[null,"Uganda","G2","USD",14416]
[null,"Uganda","G3","USD",17297]
[null,"Uganda","G4","USD",21104]
[null,"Uganda","G5","USD",25747]
[null,"Uganda","G6","USD",32182]
[null,"Uganda","G7","USD",40227]
[null,"Uganda","NA","USD",60573]
[null,"Uganda","NB","USD",75720]
[null,"Uganda","NC","USD",102221]
[null,"Uganda","ND","USD",138000]
[null,"Uganda","P1","USD",94771]
[null,"Uganda","P2","USD",120121]
[null,"Uganda","P3","USD",149882]
[null,"Uganda","P4","USD",181375]
[null,"Uganda","P5","USD",209642]
[null,"Ukraine","D1","USD",231462]
[null,"Ukraine","D2","USD",252255]
[null,"Ukraine","FS4","USD",108081]
[null,"Ukraine","FS5","USD",133980]
[null,"Ukraine","G1","USD",13454]
[null,"Ukraine","G2","USD",15876]
[null,"Ukraine","G3","USD",18732]
[null,"Ukraine","G4","USD",22113]
[null,"Ukraine","G5","USD",26084]
[null,"Ukraine","G6","USD",31040]
[null,"Ukraine","G7","USD",37558]
[null,"Ukraine","NA","USD",42568]
[null,"Ukraine","NB","USD",52358]
[null,"Ukraine","NC","USD",65972]
[null,"Ukraine","ND","USD",83124]
[null,"Ukraine","P1","USD",92797]
[null,"Ukraine","P2","USD",117619]
[null,"Ukraine","P3","USD",146760]
[null,"Ukraine","P4","USD",177597]
[null,"Ukraine","P5","USD",205275]
[null,"United Arab Emirates","D1","USD",285531]
[null,"United Arab Emirates","D2","USD",311181]
[null,"United Arab Emirates","FS4","USD",133328]
[null,"United Arab Emirates","FS5","USD",165277]
[null,"United Arab Emirates","G1","USD",63137]
[null,"United Arab Emirates","G2","USD",72609]
[null,"United Arab Emirates","G3","USD",83500]
[null,"United Arab Emirates","G4","USD",96026]
[null,"United Arab Emirates","G5","USD",110429]
[null,"United Arab Emirates","G6","USD",126992]
[null,"United Arab Emirates","G7","USD",146042]
[null,"United Arab Emirates","NA","USD",188048]
[null,"United Arab Emirates","NB","USD",216256]
[null,"United Arab Emirates","NC","USD",248697]
[null,"United Arab Emirates","P1","USD",114474]
[null,"United Arab Emirates","P2","USD",145094]
[null,"United Arab Emirates","P3","USD",181043]
[null,"United Arab Emirates","P4","USD",219083]
[null,"United Arab Emirates","P5","USD",253227]
[null,"United Kingdom","D1","USD",332225]
[null,"United Kingdom","D2","USD",362070]
[null,"United Kingdom","FS4","USD",155132]
[null,"United Kingdom","FS5","USD",192306]
[null,"United Kingdom","G1","USD",52127]
[null,"United Kingdom","G2","USD",58321]
[null,"United Kingdom","G3","USD",65305]
[null,"United Kingdom","G4","USD",73113]
[null,"United Kingdom","G5","USD",81925]
[null,"United Kingdom","G6","USD",91776]
[null,"United Kingdom","G7","USD",102769]
[null,"United Kingdom","P1","USD",133194]
[null,"United Kingdom","P2","USD",168822]
[null,"United Kingdom","P3","USD",210649]
[null,"United Kingdom","P4","USD",254910]
[null,"United Kingdom","P5","USD",294638]
[null,"United States (Washington)","D1","USD",291536]
[null,"United States (Washington)","D2","USD",317725]
[null,"United States (Washington)","FS4","USD",136132]
[null,"United States (Washington)","FS5","USD",168753]
[null,"United States (Washington)","G1","USD",60036]
[null,"United States (Washington)","G2","USD",67842]
[null,"United States (Washington)","G3","USD",76658]
[null,"United States (Washington)","G4","USD",86622]
[null,"United States (Washington)","G5","USD",98755]
[null,"United States (Washington)","G6","USD",112581]
[null,"United States (Washington)","G7","USD",131719]
[null,"United States (Washington)","NA","USD",143651]
[null,"United States (Washington)","NB","USD",173822]
[null,"United States (Washington)","NC","USD",205105]
[null,"United States (Washington)","ND","USD",242021]
[null,"United States (Washington)","P1","USD",116881]
[null,"United States (Washington)","P2","USD",148145]
[null,"United States (Washington)","P3","USD",184850]
[null,"United States (Washington)","P4","USD",223690]
[null,"United States (Washington)","P5","USD",258553]
[null,"USA ( NY)","D1","USD",309451]
[null,"USA ( NY)","D2","USD",337249]
[null,"USA ( NY)","FS4","USD",144497]
[null,"USA ( NY)","FS5","USD",179123]
[null,"USA ( NY)","G1","USD",61264]
[null,"USA ( NY)","G2","USD",67701]
[null,"USA ( NY)","G3","USD",74794]
[null,"USA ( NY)","G4","USD",82643]
[null,"USA ( NY)","G5","USD",91296]
[null,"USA ( NY)","G6","USD",100916]
[null,"USA ( NY)","G7","USD",111534]
[null,"USA ( NY)","P1","USD",124063]
[null,"USA ( NY)","P2","USD",157249]
[null,"USA ( NY)","P3","USD",196209]
[null,"USA ( NY)","P4","USD",237436]
[null,"USA ( NY)","P5","USD",274440]
[null,"Uzbekistan","D1","USD",253584]
[null,"Uzbekistan","D2","USD",276364]
[null,"Uzbekistan","FS4","USD",118410]
[null,"Uzbekistan","FS5","USD",146785]
[null,"Uzbekistan","G1","USD",9355]
[null,"Uzbekistan","G2","USD",11692]
[null,"Uzbekistan","G3","USD",14263]
[null,"Uzbekistan","G4","USD",17261]
[null,"Uzbekistan","G5","USD",20702]
[null,"Uzbekistan","G6","USD",24234]
[null,"Uzbekistan","G7","USD",28344]
[null,"Uzbekistan","NA","USD",36874]
[null,"Uzbekistan","NB","USD",47939]
[null,"Uzbekistan","NC","USD",62319]
[null,"Uzbekistan","ND","USD",81015]
[null,"Uzbekistan","P1","USD",101665]
[null,"Uzbekistan","P2","USD",128860]
[null,"Uzbekistan","P3","USD",160786]
[null,"Uzbekistan","P4","USD",194570]
[null,"Uzbekistan","P5","USD",224894]
[null,"Venezuela","D1","USD",350591]
[null,"Venezuela","D2","USD",382086]
[null,"Venezuela","FS4","USD",163708]
[null,"Venezuela","FS5","USD",202937]
[null,"Venezuela","G1","USD",23955]
[null,"Venezuela","G2","USD",29466]
[null,"Venezuela","G3","USD",36241]
[null,"Venezuela","G4","USD",44576]
[null,"Venezuela","G5","USD",55095]
[null,"Venezuela","G6","USD",68100]
[null,"Venezuela","G7","USD",81787]
[null,"Venezuela","NA","USD",91481]
[null,"Venezuela","NB","USD",112521]
[null,"Venezuela","NC","USD",144588]
[null,"Venezuela","ND","USD",185799]
[null,"Venezuela","P1","USD",140557]
[null,"Venezuela","P2","USD",178155]
[null,"Venezuela","P3","USD",222294]
[null,"Venezuela","P4","USD",269002]
[null,"Venezuela","P5","USD",310927]
[null,"Western Sahara","D1","USD",245515]
[null,"Western Sahara","D2","USD",267570]
[null,"Western Sahara","FS4","USD",114643]
[null,"Western Sahara","FS5","USD",142114]
[null,"Western Sahara","G1","USD",16961]
[null,"Western Sahara","G2","USD",24623]
[null,"Western Sahara","G3","USD",30287]
[null,"Western Sahara","G4","USD",37253]
[null,"Western Sahara","G5","USD",45448]
[null,"Western Sahara","G6","USD",55451]
[null,"Western Sahara","G7","USD",65429]
[null,"Western Sahara","NA","USD",93226]
[null,"Western Sahara","NB","USD",115552]
[null,"Western Sahara","NC","USD",147957]
[null,"Western Sahara","ND","USD",189299]
[null,"Western Sahara","P1","USD",98431]
[null,"Western Sahara","P2","USD",124760]
[null,"Western Sahara","P3","USD",155670]
[null,"Western Sahara","P4","USD",188379]
[null,"Western Sahara","P5","USD",217739]
[null,"Yemen","D1","USD",294460]
[null,"Yemen","D2","USD",320912]
[null,"Yemen","FS4","USD",137497]
[null,"Yemen","FS5","USD",170446]
[null,"Yemen","G1","USD",19954]
[null,"Yemen","G2","USD",23741]
[null,"Yemen","G3","USD",28259]
[null,"Yemen","G4","USD",33634]
[null,"Yemen","G5","USD",40704]
[null,"Yemen","G6","USD",49237]
[null,"Yemen","G7","USD",59594]
[null,"Yemen","NA","USD",76555]
[null,"Yemen","NB","USD",95536]
[null,"Yemen","NC","USD",122278]
[null,"Yemen","ND","USD",156528]
[null,"Yemen","P1","USD",118053]
[null,"Yemen","P2","USD",149631]
[null,"Yemen","P3","USD",186704]
[null,"Yemen","P4","USD",225934]
[null,"Yemen","P5","USD",261146]
[null,"Zambia","D1","USD",243364]
[null,"Zambia","D2","USD",265226]
[null,"Zambia","FS4","USD",113638]
[null,"Zambia","FS5","USD",140869]
[null,"Zambia","G1","USD",21711]
[null,"Zambia","G2","USD",26922]
[null,"Zambia","G3","USD",33384]
[null,"Zambia","G4","USD",41395]
[null,"Zambia","G5","USD",50089]
[null,"Zambia","G6","USD",60606]
[null,"Zambia","G7","USD",72121]
[null,"Zambia","NA","USD",75718]
[null,"Zambia","NB","USD",103204]
[null,"Zambia","NC","USD",132100]
[null,"Zambia","ND","USD",162483]
[null,"Zambia","P1","USD",97568]
[null,"Zambia","P2","USD",123667]
[null,"Zambia","P3","USD",154306]
[null,"Zambia","P4","USD",186729]
[null,"Zambia","P5","USD",215831]
[null,"Zimbabwe","D1","USD",280359]
[null,"Zimbabwe","D2","USD",305545]
[null,"Zimbabwe","FS4","USD",130913]
[null,"Zimbabwe","FS5","USD",162284]
[null,"Zimbabwe","G1","USD",21574]
[null,"Zimbabwe","G2","USD",26521]
[null,"Zimbabwe","G3","USD",32631]
[null,"Zimbabwe","G4","USD",39810]
[null,"Zimbabwe","G5","USD",47771]
[null,"Zimbabwe","G6","USD",57322]
[null,"Zimbabwe","G7","USD",67065]
[null,"Zimbabwe","NA","USD",72871]
[null,"Zimbabwe","NB","USD",96916]
[null,"Zimbabwe","NC","USD",126964]
[null,"Zimbabwe","ND","USD",166321]
[null,"Zimbabwe","P1","USD",112400]
[null,"Zimbabwe","P2","USD",142466]
[null,"Zimbabwe","P3","USD",177763]
[null,"Zimbabwe","P4","USD",215115]
[null,"Zimbabwe","P5","USD",248641]

{"sheet":"C.ABOD","index":4,"n_rows":28,"n_cols":3,"rows_kept":28,"cut":false,"hidden":false,"merged":[]}
["Annex II.C: Administrative Budget - ABOD"]
[]
[]
["Emergency in:",null,{"$f":"'Emergency Parameters'!E10","v":0}]
[]
["Cost Center:"]
["Account","Chapter of Expenditure","Amount"]
[620300,"Temporary Assistance (calculated based on staffing)*",{"$f":"B.Staff!G29","v":0}]
[620500,"Overtime",0]
[622000,"Travel on Official Business",0]
[623000,"Contractual Services",0]
[624000,"General Operating Expenses",0]
[676100,"Staff/Guest Accommodations",0]
[624100,"Rental and Maintenance of Premises",0]
[624200,"Utilities",0]
[624300,"Rental of Equipment and Vehicles"]
[624400,"Communications",0]
[624500,"Hospitality",0]
[624600,"Maintenance of Furniture, Equip & Vehicles",0]
[624900,"Miscellaneous Services",0]
[601000,"Materials and Office Supplies",0]
[606000,"Petrol, diesel and other lubricants",0]
[605000,"Non-expendable Property",0]
[627000,"Improvements to Premises",0]
[628000,"Seminars - Other group activities",0]
[629000,"Joint UN Activities",0]
[null,"TOTAL",{"$f":"SUM(C8:C26)","v":0}]
["* Based on Emergency Parameters section III for TA only"]

{"sheet":"D.Appeal (DER)","index":5,"n_rows":32,"n_cols":6,"rows_kept":32,"cut":false,"hidden":false,"merged":[]}
["Annex II.D: Draft Appeal Budget (Based on Emergency Parameters)"]
["Emergency in:",{"$f":"'Emergency Parameters'!E10","v":0}]
[]
["Rights Group","Objectives","Operations","ABOD (Apportioned)","Staffing\n(over 6 months) (Apportioned)","Amount (USD)"]
["Basic Needs and Essential Services",null,{"$f":"SUM(C6,C7,C8,C9,C10,C11,C12,C13,C14,C15)","v":10516488.800000001},{"$f":"'2.Ops Staging for Appeal'!L5","v":0},{"$f":"'2.Ops Staging for Appeal'!N5","v":0},{"$f":"SUM(C5:D5)","v":10516488.800000001}]
[null,"Shelter and infrastructure established, improved and maintained",{"$f":"A.Ops!I6","v":3588525},{"$f":"'2.Ops Staging for Appeal'!L6","v":0},{"$f":"'2.Ops Staging for Appeal'!N6","v":0},3588525]
[null,"Population has sufficient basic and domestic items",{"$f":"A.Ops!I10","v":605272},{"$f":"'2.Ops Staging for Appeal'!L10","v":0},{"$f":"'2.Ops Staging for Appeal'!N10","v":0},605272]
[null,"Health status of the population improved",{"$f":"A.Ops!I13","v":686095},{"$f":"'2.Ops Staging for Appeal'!L13","v":0},{"$f":"'2.Ops Staging for Appeal'!N13","v":0},686095]
[null,"Population lives in satisfactory conditions of sanitation and hygiene",{"$f":"A.Ops!I20","v":1200000},{"$f":"'2.Ops Staging for Appeal'!L20","v":0},{"$f":"'2.Ops Staging for Appeal'!N20","v":0},1200000]
[null,"Population has optimal access to education",{"$f":"A.Ops!I24","v":624276.80000000005},{"$f":"'2.Ops Staging for Appeal'!L24","v":0},{"$f":"'2.Ops Staging for Appeal'!N24","v":0},624276.80000000005]
[null,"Supply of potable water increased or maintained",{"$f":"A.Ops!I29","v":2428000},{"$f":"'2.Ops Staging for Appeal'!L29","v":0},{"$f":"'2.Ops Staging for Appeal'!N29","v":0},2428000]
[null,"Services for persons with specific needs strengthened",{"$f":"A.Ops!I33","v":200000},{"$f":"'2.Ops Staging for Appeal'!L33","v":0},{"$f":"'2.Ops Staging for Appeal'!N33","v":0},200000]
[null,"Food security improved",{"$f":"A.Ops!I36","v":750000},{"$f":"'2.Ops Staging for Appeal'!L36","v":0},{"$f":"'2.Ops Staging for Appeal'!N36","v":0},750000]
[null,"Population has sufficient access to energy",{"$f":"A.Ops!I39","v":300000},{"$f":"'2.Ops Staging for Appeal'!L39","v":0},{"$f":"'2.Ops Staging for Appeal'!N39","v":0},300000]
[null,"Nutritional well-being improved",{"$f":"A.Ops!I42","v":134320},{"$f":"'2.Ops Staging for Appeal'!L42","v":0},{"$f":"'2.Ops Staging for Appeal'!N42","v":0},134320]
["Logistics and Operations Support",null,{"$f":"SUM(C17,C18)","v":1269892.8296000001},{"$f":"'2.Ops Staging for Appeal'!L47","v":0},{"$f":"'2.Ops Staging for Appeal'!N47","v":0},1269892.8296000001]
[null,"Logistics and supply optimized to serve operational needs",{"$f":"A.Ops!I48","v":293123.82},{"$f":"'2.Ops Staging for Appeal'!L48","v":0},{"$f":"'2.Ops Staging for Appeal'!N48","v":0},293123.82]
[null,"Operations management, coordination and support strengthened and optimized",{"$f":"A.Ops!I51","v":976769.00960000011},{"$f":"'2.Ops Staging for Appeal'!L51","v":0},{"$f":"'2.Ops Staging for Appeal'!N51","v":0},976769.00960000011]
["Security from Violence and Exploitation",null,{"$f":"SUM(C20,C21,C22)","v":730000},{"$f":"'2.Ops Staging for Appeal'!L54","v":0},{"$f":"'2.Ops Staging for Appeal'!N54","v":0},730000]
[null,"Risk of SGBV is reduced and quality of response improved",{"$f":"A.Ops!I55","v":10000},{"$f":"'2.Ops Staging for Appeal'!L55","v":0},{"$f":"'2.Ops Staging for Appeal'!N55","v":0},10000]
[null,"Protection from effects of armed conflict strengthened",{"$f":"A.Ops!I58","v":600000},{"$f":"'2.Ops Staging for Appeal'!L58","v":0},{"$f":"'2.Ops Staging for Appeal'!N58","v":0},600000]
[null,"Protection of children strengthened",{"$f":"A.Ops!I61","v":120000},{"$f":"'2.Ops Staging for Appeal'!L61","v":0},{"$f":"'2.Ops Staging for Appeal'!N61","v":0},120000]
["Fair Protection Processes and Documentation",null,{"$f":"SUM(C24,C25)","v":280000},{"$f":"'2.Ops Staging for Appeal'!L65","v":0},{"$f":"'2.Ops Staging for Appeal'!N65","v":0},280000]
[null,"Reception conditions improved",{"$f":"A.Ops!I66","v":160000},{"$f":"'2.Ops Staging for Appeal'!L66","v":0},{"$f":"'2.Ops Staging for Appeal'!N66","v":0},160000]
[null,"Level of individual documentation increased",{"$f":"A.Ops!I69","v":120000},{"$f":"'2.Ops Staging for Appeal'!L69","v":0},{"$f":"'2.Ops Staging for Appeal'!N69","v":0},120000]
["Leadership, Coordination and Partnerships",null,{"$f":"SUM(C27,C28)","v":30000},{"$f":"'2.Ops Staging for Appeal'!L72","v":0},{"$f":"'2.Ops Staging for Appeal'!N72","v":0},30000]
[null,"Camp management and coordination refined and improved",{"$f":"A.Ops!I73","v":20000},{"$f":"'2.Ops Staging for Appeal'!L73","v":0},{"$f":"'2.Ops Staging for Appeal'!N73","v":0},20000]
[null,"Emergency management strengthened",{"$f":"A.Ops!I77","v":10000},{"$f":"'2.Ops Staging for Appeal'!L77","v":0},{"$f":"'2.Ops Staging for Appeal'!N77","v":0},10000]
["Favourable Protection Environment",null,{"$f":"SUM(C30,C31)","v":360000},{"$f":"'2.Ops Staging for Appeal'!L80","v":0},{"$f":"'2.Ops Staging for Appeal'!N80","v":0},360000]
[null,"Access to legal assistance and legal remedies improved",{"$f":"A.Ops!I81","v":240000},{"$f":"'2.Ops Staging for Appeal'!L81","v":0},{"$f":"'2.Ops Staging for Appeal'!N81","v":0},240000]
[null,"Access to the territory improved and risk of refoulement reduced",{"$f":"A.Ops!I84","v":120000},{"$f":"'2.Ops Staging for Appeal'!L84","v":0},{"$f":"'2.Ops Staging for Appeal'!N84","v":0},120000]
["Grand Total",null,{"$f":"SUM(C5,C16,C19,C23,C26,C29,)","v":13186381.629600001},{"$f":"'C.ABOD'!C27","v":0},{"$f":"'C.ABOD'!E27","v":0},13186381.629600001]

{"sheet":"E. Positions (optional)","index":6,"n_rows":32,"n_cols":10,"rows_kept":32,"cut":false,"hidden":false,"merged":[[3,0,5,0],[3,1,5,1],[3,7,5,7],[1,1,1,2],[23,1,23,2],[3,8,3,9],[4,8,4,9],[3,2,5,2],[3,3,5,3],[3,4,5,4],[3,5,5,5],[3,6,5,6],[31,2,31,3],[26,2,26,3],[27,2,27,3],[28,2,28,3],[29,2,29,3],[30,2,30,3],[26,6,26,9],[27,6,27,9],[28,6,28,9],[29,6,29,9],[30,6,30,9],[31,6,31,9]]}
["Annex II.E: Position Requirements beyond 6 months - Budget Changes"]
["Emergency in:",{"$f":"'Emergency Parameters'!E10","v":0}]
[]
["MSRP Cost Centre","MSRP\nPosition No.","Chartfield Codes\n(to be completed by ARBAS)","Post Title","Supervisor\nPosition No.","Grade","Reason Code\n (see table below)","Effective\nDates/Comments","Estimated costs (US dollars)"]
[null,null,null,null,null,null,null,null,2015]
[null,null,null,null,null,null,null,null,"increase","(decrease)"]
["CC….","NEW","N/A","Field Coordinator",10003458,"P4","NEW","01/05/2020 - 31/12/2020","(annual cost/12*8)"]
[]
[]
[]
[]
[]
[]
[]
[]
[]
[]
[]
[]
[null,null,null,null,null,null,null,"Total:",{"$f":"SUM(I7:I19)","v":0},{"$f":"SUM(J7:J19)","v":0}]
[null,null,null,null,null,null,null,null,"Net Change:",{"$f":"I20+J20","v":0}]
[]
["Requested by:",null,null,null,null,null,"Date: "]
[null,"Director/Represnative "]
[]
[null,"Reason Code "]
[null,"NEW","New position (Standard)",null,null,"INA","Position proposed for discontinuation"]
[null,"NSS","New position (Standard Specific)",null,null,"JRD","Reclassification Downgrade"]
[null,"NJP","New position (JPO)",null,null,"JRU","Reclassification Upgrade"]
[null,"NEX","New position (Expert)",null,null,"MOV","Move from one office to another office, within the same cost centre"]
[null,"TTL","Title change",null,null,"XFR","Transfer from one cost centre to another cost centre within the same operation."]
[null,"UPD","No Change to position data"]

{"sheet":"Summary","index":7,"n_rows":8,"n_cols":2,"rows_kept":8,"cut":false,"hidden":false,"merged":[[0,0,0,1]]}
["Resource Requirements Summary"]
["Emergency in:",{"$f":"'Emergency Parameters'!E10","v":0}]
[]
["Budget Component","Amount (USD)"]
["Operations",{"$f":"A.Ops!I87","v":13186381.629600001}]
["ABOD",{"$f":"'C.ABOD'!C27","v":0}]
["Staffing (beyond 6 months)",{"$f":"'E. Positions (optional)'!J21","v":0}]
["TOTAL",{"$f":"SUM(B5:B7)","v":13186381.629600001}]

{"sheet":"Emergency Standards","index":8,"n_rows":38,"n_cols":6,"rows_kept":38,"cut":false,"hidden":false,"merged":[[28,2,28,3],[28,4,28,5],[28,0,28,1],[1,0,1,1],[1,2,1,3],[1,4,1,5],[13,2,13,5]]}
["Modular (Site) Planning"]
["Module",null,"Consisting of",null,"Approximately"]
[1,"family**",1,"family",4,"persons"]
[1,"community",16,"families",80,"persons"]
[1,"block",16,"communities",1250,"persons"]
[1,"sector",4,"blocks",5000,"persons"]
[1,"camp module***",2,"sectors",10000,"persons"]
["* Emergency Handbook, 3rd edition, page 216."]
["** Average family size has been modified from 5 to 3."]
["** Camp module consists of 4 sectors of 20,000 -> reduced to 2 sectors of 10,000 (by DESS template)"]
[]
[]
["Site Planning Figures"]
[null,"Resource","Need"]
[null,"Land",45,"m2 per pax"]
[null,"Shelter space",3.5,"m2 per pax"]
[null,"Roads and walkways",25,"% ","of entire site"]
[null,"Open space and public facilities",20,"%","of entire site"]
[null,"Environmental sanitation",1,"latrine",20,"person"]
[null,"Water",20,"litre",1,"person/day"]
[null,"Tap stands",1,"tap",200,"person"]
[null,"Warehouse space",1.2,"m2",1,"ton"]
[null,"Food",2100,"kcal",1,"person/day"]
[null,null,36,"ton",10000,"person/week"]
[null,"* Emergency Handbook, 3rd edition, page 549."]
[]
[]
["Typical Services and Infrastructure Requirements for Refugee Camps*"]
["Infrastructure/ Services",null,"Per",null,"Equivalent "]
[1,"latrine",1,"family",5,"persons"]
[1,"water tap",1,"community",80,"persons"]
[1,"health centre",1,"camp",20000,"persons"]
[1,"hospital",200000,"persons",200000,"persons"]
[1,"school",1,"sector",5000,"persons"]
[4,"commodity distribution sites",1,"camp module",20000,"persons"]
[1,"market",1,"camp module",20000,"persons"]
[2,"refuse drums",1,"community",80,"persons"]
["* Emergency Handbook, 3rd edition, page 553."]

{"sheet":"Unit Costs","index":9,"n_rows":87,"n_cols":9,"rows_kept":87,"cut":false,"hidden":false,"merged":[[86,0,86,5],[2,0,2,5],[27,0,27,3],[9,0,9,4],[24,0,24,4]]}
["Tables and information on this sheet are extracted and adapted from the Modular Budget templated prepared by DESS."]
[]
["Unit Costings"]
["Shelter"]
["Details","Amounts per person","Unit Cost","Qty","Time","Package Cost"]
["Family Tent","1/family",419.83,1,null,{"$f":"C6*D6","v":419.83}]
["Tent ridge double fold (4x4m)","1/family",257.39999999999998,1,null,{"$f":"C7*D7","v":257.39999999999998}]
["Plastic sheeting","1/family",16.38,1,null,{"$f":"C8*D8","v":16.38}]
["Plastic rolls (1/200 persons)","1/family",4.0949999999999998,1,null,{"$f":"C9*D9","v":4.0949999999999998}]
["Emergency shelter provided (tent/materials/kit)",null,null,null,null,{"$f":"SUM(F6:F9)","v":697.70500000000004}]
[]
[]
["NFI"]
["Details","Amounts per person","Unit Cost","Qty","Time","Package Cost"]
["Blankets ","1/person",5.952,{"$f":"'Emergency Standards'!E3","v":4},null,{"$f":"C15*D15","v":23.808}]
["Cooking stove","1/family",10,1,null,10]
["Heating stove","1/family",20,1,null,20]
["Plastic bucket (10L)","2/family",2.52,2,null,5.04]
["Jerry cans - Water (10L)","2/family",1.86,2,null,3.72]
["Kitchen sets","1/family",16.2,1,null,16.2]
["Kerosene lamps ","1/family",5,1,null,5]
["Sleeping mats","2/family",1.8480000000000001,2,null,3.6960000000000002]
["Mosquito nets","2/family",4.7952000000000004,2,null,9.5904000000000007]
["Soap","0.25kg/person/month",1,{"$f":"'Emergency Standards'!E3","v":4},{"$f":"'Emergency Parameters'!F17","v":6},{"$f":"C24*D24*E24","v":24}]
["Household goods provided",null,null,null,null,{"$f":"SUM(F15:F24)","v":121.0544}]
[]
[]
["Other Useful References"]
["Equipment and Non-expandable Properties"]
["Assets","Unit\nPrice*","Qty","Amount"]
["Vehicle Landcruiser type 4x4",24000,null,{"$f":"$B31*C31","v":0}]
["Desktop",1500,null,{"$f":"$B32*C32","v":0}]
["Laptop",2500,null,0]
["Photocopier",8000,null,0]
["Printer",1250,null,0]
["Airconditioner/Heater",1500,null,0]
["UPS",500,null,0]
["Generator (120 Kva)",8000,null,0]
["GPS",280,null,0]
["Security Kit ",6630,null,0]
["Office Kit",1500,null,0]
["Field Kit",1680,null,0]
["Personnel Kit",313,null,0]
["Mini-M",2200,null,0]
["Thuraya Base",1176,null,0]
["Thuraya  ",811,null,0]
["VHF Repeater and Access",5000,null,0]
["VHF Handset",385,null,0]
["VHF Base",800,null,0]
["Mobile VHF",385,null,0]
["HF Base Voice",3575,null,0]
["HF Base Data",6250,null,0]
["Mobile HF",3315,null,0]
["Solar Panel (Kit)",1900,null,0]
["Battery Charger (vehicle)",250,null,0]
["Mobile Phone",300,null,0]
["Fax Machine",900,null,0]
["M-4",7000,null,0]
["Scanner",300,null,0]
["It Accessories (Lumpsum)",10000,null,0]
["Total",null,null,{"$f":"SUM(D31:D60)","v":0}]
["* Not updated. Reference only."]
[]
[]
[]
["Typical Posts in Emergency and Related Costs (without Salary)"]
["Title","Function","Grade","Person","Month","DSA","Total DSA","Int'l Travels","Amount"]
["Team Leader","Administration","P4",1,{"$f":"'Emergency Parameters'!F$17","v":6},3500,{"$f":"D68*E68*F68","v":21000},5000,{"$f":"G68+H68","v":26000}]
["Admin/Finance Officer","Administration","P3",1,{"$f":"'Emergency Parameters'!F$17","v":6},3500,{"$f":"D69*E69*F69","v":21000},5000,{"$f":"G69+H69","v":26000}]
["Protection Officer","Protection","P3",1,{"$f":"'Emergency Parameters'!F$17","v":6},3500,21000,5000,26000]
["Registration Officer","Protection","P3",1,{"$f":"'Emergency Parameters'!F$17","v":6},3500,21000,5000,26000]
["Reporting Officer","External Relations","P3",1,{"$f":"'Emergency Parameters'!F$17","v":6},3500,21000,5000,26000]
["Supply/Logistics Officer","Supply","P3",1,{"$f":"'Emergency Parameters'!F$17","v":6},3500,21000,5000,26000]
["IT/Telecomms Officer","Information Technology","P3",1,{"$f":"'Emergency Parameters'!F$17","v":6},3500,21000,5000,26000]
["Shelter and Site Planner","IPR Clearance Not Required","Consultant",1,{"$f":"'Emergency Parameters'!F$17","v":6},3500,21000,5000,26000]
["WATSAN Expert (On mission for couple weeks)",null,null,1,1,3500,3500,5000,8500]
["Health and Nutrition Expert) (On Mission for couple weeks)",null,null,1,1,3500,3500,5000,8500]
["Programme Officer","Programme","P3",1,{"$f":"'Emergency Parameters'!F$17","v":6},3500,21000,5000,26000]
["PI/External Relations Officer","Public Information","P3",1,{"$f":"'Emergency Parameters'!F$17","v":6},3500,21000,5000,26000]
["FSA/Security Associate","Safety","G6",1,{"$f":"'Emergency Parameters'!F$17","v":6},3500,21000,null,21000]
["Admin/Finance Associate","Administration","G6",1,{"$f":"'Emergency Parameters'!F$17","v":6},3500,{"$f":"D81*E81*F81","v":21000},null,21000]
["Community Serices Associate","Community Services","G6",1,{"$f":"'Emergency Parameters'!F$17","v":6},3500,21000,null,21000]
["Protection/Field Associate","Protection","G6",1,{"$f":"'Emergency Parameters'!F$17","v":6},3500,21000,null,21000]
["Technician/Electrician","Administration","G6",1,{"$f":"'Emergency Parameters'!F$17","v":6},3500,21000,null,21000]
["Data Entry Assistant","Information Technology","G4",1,{"$f":"'Emergency Parameters'!F$17","v":6},3500,21000,null,21000]
["Drivers","Administration","G2",1,{"$f":"'Emergency Parameters'!F$17","v":6},3500,21000,null,21000]
[null,null,null,null,null,null,{"$f":"SUM(G68:G86)","v":364000},{"$f":"SUM(H68:H86)","v":60000},{"$f":"SUM(I68:I86)","v":424000}]

{"sheet":"2.Ops Staging for Appeal","index":10,"n_rows":88,"n_cols":14,"rows_kept":88,"cut":false,"hidden":true,"merged":[[0,0,0,8]]}
["Annex 2.A: Operations Budget"]
["Emergency in:",null,{"$f":"'Emergency Parameters'!E10","v":0}]
[]
["Rights Group","Objectives","Outputs / Budget Lines",null,"Qty (Target)","Unit","Unit Cost","Time","Amount (USD)","Output Total",null,"ABOD Apportioned",null,"Staff Costs (non-TA)\nApportioned"]
["Basic Needs and Essential Services",null,null,null,null,null,null,null,{"$f":"A.Ops!I5","v":10516488.800000001},null,null,{"$f":"SUM(L6,L10,L13,L20,L24,L29,L33,L36,L39,L42)","v":0},null,{"$f":"SUM(N6,N10,N13,N20,N24,N29,N33,N36,N39,N42)","v":0}]
[null,"Shelter and infrastructure established, improved and maintained",null,null,{"$f":"A.Ops!E6","v":0},null,{"$f":"A.Ops!G6","v":0},{"$f":"A.Ops!H6","v":0},{"$f":"A.Ops!I6","v":3588525},null,null,{"$f":"SUM(L7:L9)","v":0},null,{"$f":"SUM(N7:N9)","v":0}]
[null,null,"Emergency shelter provided","tent/materials/kit",{"$f":"A.Ops!E7","v":5000},"shelter",{"$f":"A.Ops!G7","v":697.70500000000004},{"$f":"A.Ops!H7","v":1},{"$f":"A.Ops!I7","v":3488525}]
[null,null,"Emergency shelter provided","site preparation",{"$f":"A.Ops!E8","v":2},"camp",{"$f":"A.Ops!G8","v":50000},{"$f":"A.Ops!H8","v":1},{"$f":"A.Ops!I8","v":100000},{"$f":"SUM(I7:I8)","v":3588525},{"$f":"IF(J8>0, 1, \"\")","v":1},{"$f":"IF(K8=1, ($L$87/$K$87), 0)","v":0},{"$f":"IF(L8>0, 1, \"\")","v":""},{"$f":"IF(K8=1, ($N$87/$M$87), 0)","v":0}]
[null,null,"Unspecified output - Shelter and Infrastructure","other - define",{"$f":"A.Ops!E9","v":1},"lumpsum",{"$f":"A.Ops!G9","v":0},{"$f":"A.Ops!H9","v":1},{"$f":"A.Ops!I9","v":0},{"$f":"SUM(I9)","v":0},{"$f":"IF(J9>0, 1, \"\")","v":""},{"$f":"IF(K9=1, ($L$87/$K$87), 0)","v":0},{"$f":"IF(L9>0, 1, \"\")","v":""},{"$f":"IF(K9=1, ($N$87/$M$87), 0)","v":0}]
[null,"Population has sufficient basic and domestic items",null,null,{"$f":"A.Ops!E10","v":0},null,{"$f":"A.Ops!G10","v":0},{"$f":"A.Ops!H10","v":0},{"$f":"A.Ops!I10","v":605272},null,"",{"$f":"SUM(L11:L12)","v":0},"",{"$f":"SUM(N11:N12)","v":0}]
[null,null,"Household goods provided",null,{"$f":"A.Ops!E11","v":5000},"family",{"$f":"A.Ops!G11","v":121.0544},{"$f":"A.Ops!H11","v":1},{"$f":"A.Ops!I11","v":605272},{"$f":"I11","v":605272},1,{"$f":"IF(K11=1, ($L$87/$K$87), 0)","v":0},"",{"$f":"IF(K11=1, ($N$87/$M$87), 0)","v":0}]
[null,null,"Unspecified output - Basic and Domestic Items",null,{"$f":"A.Ops!E12","v":1},"lumpsum",{"$f":"A.Ops!G12","v":0},{"$f":"A.Ops!H12","v":1},{"$f":"A.Ops!I12","v":0},{"$f":"I12","v":0},"",0,"",{"$f":"IF(K12=1, ($N$87/$M$87), 0)","v":0}]
[null,"Health status of the population improved",null,null,{"$f":"A.Ops!E13","v":0},null,{"$f":"A.Ops!G13","v":0},{"$f":"A.Ops!H13","v":0},{"$f":"A.Ops!I13","v":686095},null,"",{"$f":"SUM(L14:L19)","v":0},"",{"$f":"SUM(N14:N19)","v":0}]
[null,null,"Access to primary health care services provided or supported",null,{"$f":"A.Ops!E14","v":20000},"person",{"$f":"A.Ops!G14","v":5},{"$f":"A.Ops!H14","v":6},{"$f":"A.Ops!I14","v":600000},{"$f":"SUM(I14:I16)","v":643745},1,0,"",{"$f":"IF(K14=1, ($N$87/$M$87), 0)","v":0}]
[null,null,"Access to primary health care services provided or supported","(hospital tent)",{"$f":"A.Ops!E15","v":1},"centre",{"$f":"A.Ops!G15","v":2145},{"$f":"A.Ops!H15","v":1},{"$f":"A.Ops!I15","v":2145},null,"",0,"",0]
[null,null,"Access to primary health care services provided or supported","(ambulance)",{"$f":"A.Ops!E16","v":1},"ambulance",{"$f":"A.Ops!G16","v":41600},{"$f":"A.Ops!H16","v":1},{"$f":"A.Ops!I16","v":41600},null,"",0,"",0]
[null,null,"Access to essential drugs provided","(interagency reproductive health kit)",{"$f":"A.Ops!E17","v":1},"kit",{"$f":"A.Ops!G17","v":7350},{"$f":"A.Ops!H17","v":1},{"$f":"A.Ops!I17","v":7350},{"$f":"SUM(I17:I18)","v":42350},1,0,"",0]
[null,null,"Access to essential drugs provided","(interagency emergency and diarrea kits)",{"$f":"A.Ops!E18","v":1},"kit",{"$f":"A.Ops!G18","v":35000},{"$f":"A.Ops!H18","v":1},{"$f":"A.Ops!I18","v":35000},null,"",0,"",0]
[null,null,"Unspecified output - Health",null,{"$f":"A.Ops!E19","v":1},"lumpsum",{"$f":"A.Ops!G19","v":0},{"$f":"A.Ops!H19","v":1},{"$f":"A.Ops!I19","v":0},{"$f":"I19","v":0},"",0,"",0]
[null,"Population lives in satisfactory conditions of sanitation and hygiene",null,null,{"$f":"A.Ops!E20","v":0},null,{"$f":"A.Ops!G20","v":0},{"$f":"A.Ops!H20","v":0},{"$f":"A.Ops!I20","v":1200000},null,"",{"$f":"SUM(L21:L23)","v":0},"",{"$f":"SUM(N21:N23)","v":0}]
[null,null,"Community sanitary facilities/ latrines constructed",null,{"$f":"A.Ops!E21","v":1000},"latrine",{"$f":"A.Ops!G21","v":300},{"$f":"A.Ops!H21","v":1},{"$f":"A.Ops!I21","v":300000},{"$f":"I21","v":300000},1,0,"",{"$f":"IF(K21=1, ($N$87/$M$87), 0)","v":0}]
[null,null,"Household sanitary facilities / latrines constructed",null,{"$f":"A.Ops!E22","v":5000},"latrine",{"$f":"A.Ops!G22","v":180},{"$f":"A.Ops!H22","v":1},{"$f":"A.Ops!I22","v":900000},{"$f":"I22","v":900000},1,0,"",{"$f":"IF(K22=1, ($N$87/$M$87), 0)","v":0}]
[null,null,"Unspecified output - Sanitation and Hygiene",null,{"$f":"A.Ops!E23","v":1},"lumpsum",{"$f":"A.Ops!G23","v":0},{"$f":"A.Ops!H23","v":1},{"$f":"A.Ops!I23","v":0},{"$f":"I23","v":0},"",0,"",{"$f":"IF(K23=1, ($N$87/$M$87), 0)","v":0}]
[null,"Population has optimal access to education",null,null,{"$f":"A.Ops!E24","v":0},null,{"$f":"A.Ops!G24","v":0},{"$f":"A.Ops!H24","v":0},{"$f":"A.Ops!I24","v":624276.80000000005},null,"",{"$f":"SUM(L25:L28)","v":0},"",{"$f":"SUM(N25:N28)","v":0}]
[null,null,"Primary education provided","(misc.)",{"$f":"A.Ops!E25","v":4000},"students",{"$f":"A.Ops!G25","v":25},{"$f":"A.Ops!H25","v":6},{"$f":"A.Ops!I25","v":600000},{"$f":"SUM(I25:I27)","v":624276.80000000005},1,0,"",{"$f":"IF(K25=1, ($N$87/$M$87), 0)","v":0}]
[null,null,"Primary education provided","(School block - tent)",{"$f":"A.Ops!E26","v":4},"schools",{"$f":"A.Ops!G26","v":1069.2},{"$f":"A.Ops!H26","v":1},{"$f":"A.Ops!I26","v":4276.8},null,"",0,"",{"$f":"IF(K26=1, ($N$87/$M$87), 0)","v":0}]
[null,null,"Primary education provided","(Child-friendly spaces)",{"$f":"A.Ops!E27","v":4000},"students",{"$f":"A.Ops!G27","v":5},{"$f":"A.Ops!H27","v":1},{"$f":"A.Ops!I27","v":20000},null,"",0,"",{"$f":"IF(K27=1, ($N$87/$M$87), 0)","v":0}]
[null,null,"Unspecified output - Education",null,{"$f":"A.Ops!E28","v":1},"lumpsum",{"$f":"A.Ops!G28","v":0},{"$f":"A.Ops!H28","v":1},{"$f":"A.Ops!I28","v":0},{"$f":"I28","v":0},"",0,"",{"$f":"IF(K28=1, ($N$87/$M$87), 0)","v":0}]
[null,"Supply of potable water increased or maintained",null,null,{"$f":"A.Ops!E29","v":0},null,{"$f":"A.Ops!G29","v":0},{"$f":"A.Ops!H29","v":0},{"$f":"A.Ops!I29","v":2428000},null,"",{"$f":"SUM(L30:L32)","v":0},"",{"$f":"SUM(N30:N32)","v":0}]
[null,null,"Water system constructed, expanded and/or upgraded","(Boreholes)",{"$f":"A.Ops!E30","v":100},"borehole",{"$f":"A.Ops!G30","v":7000},{"$f":"A.Ops!H30","v":1},{"$f":"A.Ops!I30","v":700000},{"$f":"SUM(I30:I31)","v":2428000},1,0,"",{"$f":"IF(K30=1, ($N$87/$M$87), 0)","v":0}]
[null,null,"Water system constructed, expanded and/or upgraded","(Trucking)",{"$f":"A.Ops!E31","v":400000},"litre",{"$f":"A.Ops!G31","v":2.4E-2},{"$f":"A.Ops!H31","v":180},{"$f":"A.Ops!I31","v":1728000},null,"",0,"",{"$f":"IF(K31=1, ($N$87/$M$87), 0)","v":0}]
[null,null,"Unspecified output - Water",null,{"$f":"A.Ops!E32","v":1},"lumpsum",{"$f":"A.Ops!G32","v":0},{"$f":"A.Ops!H32","v":1},{"$f":"A.Ops!I32","v":0},{"$f":"I32","v":0},"",0,"",{"$f":"IF(K32=1, ($N$87/$M$87), 0)","v":0}]
[null,"Services for persons with specific needs strengthened",null,null,{"$f":"A.Ops!E33","v":0},null,{"$f":"A.Ops!G33","v":0},{"$f":"A.Ops!H33","v":0},{"$f":"A.Ops!I33","v":200000},null,"",{"$f":"SUM(L34:L35)","v":0},"",{"$f":"SUM(N34:N35)","v":0}]
[null,null,"Support to persons with specific needs provided",null,{"$f":"A.Ops!E34","v":4000},"person",{"$f":"A.Ops!G34","v":50},{"$f":"A.Ops!H34","v":1},{"$f":"A.Ops!I34","v":200000},{"$f":"I34","v":200000},1,0,"",{"$f":"IF(K34=1, ($N$87/$M$87), 0)","v":0}]
[null,null,"Unspecified output - Servs for PoC w Specific Needs",null,{"$f":"A.Ops!E35","v":1},"lumpsum",{"$f":"A.Ops!G35","v":0},{"$f":"A.Ops!H35","v":1},{"$f":"A.Ops!I35","v":0},{"$f":"I35","v":0},"",0,"",{"$f":"IF(K35=1, ($N$87/$M$87), 0)","v":0}]
[null,"Food security improved",null,null,{"$f":"A.Ops!E36","v":0},null,{"$f":"A.Ops!G36","v":0},{"$f":"A.Ops!H36","v":0},{"$f":"A.Ops!I36","v":750000},null,"",{"$f":"SUM(L37:L38)","v":0},"",{"$f":"SUM(N37:N38)","v":0}]
[null,null,"Adequate quantity and quality of food aid provided (<5,000 refugees)",null,{"$f":"A.Ops!E37","v":1250},"family",{"$f":"A.Ops!G37","v":100},{"$f":"A.Ops!H37","v":6},{"$f":"A.Ops!I37","v":750000},{"$f":"I37","v":750000},1,0,"",{"$f":"IF(K37=1, ($N$87/$M$87), 0)","v":0}]
[null,null,"Unspecified output - Food Security",null,{"$f":"A.Ops!E38","v":1},"lumpsum",{"$f":"A.Ops!G38","v":0},{"$f":"A.Ops!H38","v":1},{"$f":"A.Ops!I38","v":0},{"$f":"I38","v":0},"",0,"",{"$f":"IF(K38=1, ($N$87/$M$87), 0)","v":0}]
[null,"Population has sufficient access to energy",null,null,{"$f":"A.Ops!E39","v":0},null,{"$f":"A.Ops!G39","v":0},{"$f":"A.Ops!H39","v":0},{"$f":"A.Ops!I39","v":300000},null,"",{"$f":"SUM(L40:L41)","v":0},"",{"$f":"SUM(N40:N41)","v":0}]
[null,null,"Domestic fuel provided",null,{"$f":"A.Ops!E40","v":5000},"family",{"$f":"A.Ops!G40","v":10},{"$f":"A.Ops!H40","v":6},{"$f":"A.Ops!I40","v":300000},{"$f":"I40","v":300000},1,0,"",{"$f":"IF(K40=1, ($N$87/$M$87), 0)","v":0}]
[null,null,"Unspecified output - Energy",null,{"$f":"A.Ops!E41","v":1},"lumpsum",{"$f":"A.Ops!G41","v":0},{"$f":"A.Ops!H41","v":1},{"$f":"A.Ops!I41","v":0},{"$f":"I41","v":0},"",0,"",{"$f":"IF(K41=1, ($N$87/$M$87), 0)","v":0}]
[null,"Nutritional well-being improved",null,null,{"$f":"A.Ops!E42","v":0},null,{"$f":"A.Ops!G42","v":0},{"$f":"A.Ops!H42","v":0},{"$f":"A.Ops!I42","v":134320},null,"",{"$f":"SUM(L43:L46)","v":0},"",{"$f":"SUM(N43:N46)","v":0}]
[null,null,"Complementary food supplements provided and monitored","(feeding centre)",{"$f":"A.Ops!E43","v":1},"centre",{"$f":"A.Ops!G43","v":10000},{"$f":"A.Ops!H43","v":1},{"$f":"A.Ops!I43","v":10000},{"$f":"SUM(I43:I45)","v":134320},1,0,"",{"$f":"IF(K43=1, ($N$87/$M$87), 0)","v":0}]
[null,null,"Complementary food supplements provided and monitored","(Plumpynut)",{"$f":"A.Ops!E44","v":80},"box",{"$f":"A.Ops!G44","v":54},{"$f":"A.Ops!H44","v":1},{"$f":"A.Ops!I44","v":4320},null,"",0,"",{"$f":"IF(K44=1, ($N$87/$M$87), 0)","v":0}]
[null,null,"Complementary food supplements provided and monitored (>5,000 refugees)",null,{"$f":"A.Ops!E45","v":4000},"<5/month",{"$f":"A.Ops!G45","v":5},{"$f":"A.Ops!H45","v":6},{"$f":"A.Ops!I45","v":120000},null,"",0,"",{"$f":"IF(K45=1, ($N$87/$M$87), 0)","v":0}]
[null,null,"Unspecified output - Nutrition",null,{"$f":"A.Ops!E46","v":1},"lumpsum",{"$f":"A.Ops!G46","v":0},{"$f":"A.Ops!H46","v":1},{"$f":"A.Ops!I46","v":0},{"$f":"SUM(I46)","v":0},"",0,"",{"$f":"IF(K46=1, ($N$87/$M$87), 0)","v":0}]
["Logistics and Operations Support",null,null,null,{"$f":"A.Ops!E47","v":0},null,{"$f":"A.Ops!G47","v":0},{"$f":"A.Ops!H47","v":0},{"$f":"A.Ops!I47","v":1269892.8296000001},null,"",{"$f":"SUM(L48,L51)","v":0},"",{"$f":"SUM(N48,N51)","v":0}]
[null,"Logistics and supply optimized to serve operational needs",null,null,{"$f":"A.Ops!E48","v":0},null,{"$f":"A.Ops!G48","v":0},{"$f":"A.Ops!H48","v":0},{"$f":"A.Ops!I48","v":293123.82},null,"",{"$f":"SUM(L49:L50)","v":0},"",{"$f":"SUM(N49:N50)","v":0}]
[null,null,"Distribution of goods provided (6% of total procurement costs)",null,{"$f":"A.Ops!E49","v":1},"lumpsum",{"$f":"A.Ops!G49","v":293123.82},{"$f":"A.Ops!H49","v":1},{"$f":"A.Ops!I49","v":293123.82},{"$f":"I49","v":293123.82},1,0,"",{"$f":"IF(K49=1, ($N$87/$M$87), 0)","v":0}]
[null,null,"Unspecified output - Supply Chain/ Logistics",null,{"$f":"A.Ops!E50","v":1},"lumpsum",{"$f":"A.Ops!G50","v":0},{"$f":"A.Ops!H50","v":1},{"$f":"A.Ops!I50","v":0},{"$f":"I50","v":0},"",0,"",{"$f":"IF(K50=1, ($N$87/$M$87), 0)","v":0}]
[null,"Operations management, coordination and support strengthened and optimized",null,null,{"$f":"A.Ops!E51","v":0},null,{"$f":"A.Ops!G51","v":0},{"$f":"A.Ops!H51","v":0},{"$f":"A.Ops!I51","v":976769.00960000011},null,"",{"$f":"SUM(L52:L53)","v":0},"",{"$f":"SUM(N52:N53)","v":0}]
[null,null,"General project management services provided (8% of total ops)",null,{"$f":"A.Ops!E52","v":1},"lumpsum",{"$f":"A.Ops!G52","v":976769.00960000011},{"$f":"A.Ops!H52","v":1},{"$f":"A.Ops!I52","v":976769.00960000011},{"$f":"I52","v":976769.00960000011},1,0,"",{"$f":"IF(K52=1, ($N$87/$M$87), 0)","v":0}]
[null,null,"Unspecified output - Operations Management",null,{"$f":"A.Ops!E53","v":1},"lumpsum",{"$f":"A.Ops!G53","v":0},{"$f":"A.Ops!H53","v":1},{"$f":"A.Ops!I53","v":0},{"$f":"I53","v":0},"",0,"",{"$f":"IF(K53=1, ($N$87/$M$87), 0)","v":0}]
["Security from Violence and Exploitation",null,null,null,{"$f":"A.Ops!E54","v":0},null,{"$f":"A.Ops!G54","v":0},{"$f":"A.Ops!H54","v":0},{"$f":"A.Ops!I54","v":730000},null,"",{"$f":"SUM(L55,L58,L61)","v":0},"",{"$f":"SUM(N55,N58,N61)","v":0}]
[null,"Risk of SGBV is reduced and quality of response improved",null,null,{"$f":"A.Ops!E55","v":0},null,{"$f":"A.Ops!G55","v":0},{"$f":"A.Ops!H55","v":0},{"$f":"A.Ops!I55","v":10000},null,"",{"$f":"SUM(L56:L57)","v":0},"",{"$f":"SUM(N56:N57)","v":0}]
[null,null,"Assessment and analysis undertaken",null,{"$f":"A.Ops!E56","v":2},"camp",{"$f":"A.Ops!G56","v":5000},{"$f":"A.Ops!H56","v":1},{"$f":"A.Ops!I56","v":10000},{"$f":"I56","v":10000},1,0,"",{"$f":"IF(K56=1, ($N$87/$M$87), 0)","v":0}]
[null,null,"Unspecified output - SGBV Prevention and Response",null,{"$f":"A.Ops!E57","v":1},"lumpsum",{"$f":"A.Ops!G57","v":0},{"$f":"A.Ops!H57","v":1},{"$f":"A.Ops!I57","v":0},{"$f":"I57","v":0},"",0,"",{"$f":"IF(K57=1, ($N$87/$M$87), 0)","v":0}]
[null,"Protection from effects of armed conflict strengthened",null,null,{"$f":"A.Ops!E58","v":0},null,{"$f":"A.Ops!G58","v":0},{"$f":"A.Ops!H58","v":0},{"$f":"A.Ops!I58","v":600000},null,"",{"$f":"SUM(L59:L60)","v":0},"",{"$f":"SUM(N59:N60)","v":0}]
[null,null,"Protection by presence provided",null,{"$f":"A.Ops!E59","v":20000},"person",{"$f":"A.Ops!G59","v":5},{"$f":"A.Ops!H59","v":6},{"$f":"A.Ops!I59","v":600000},{"$f":"I59","v":600000},1,0,"",{"$f":"IF(K59=1, ($N$87/$M$87), 0)","v":0}]
[null,null,"Unspecified output - Effects of Armed Conflict",null,{"$f":"A.Ops!E60","v":1},"lumpsum",{"$f":"A.Ops!G60","v":0},{"$f":"A.Ops!H60","v":1},{"$f":"A.Ops!I60","v":0},{"$f":"I60","v":0},"",0,"",{"$f":"IF(K60=1, ($N$87/$M$87), 0)","v":0}]
[null,"Protection of children strengthened",null,null,{"$f":"A.Ops!E61","v":0},null,{"$f":"A.Ops!G61","v":0},{"$f":"A.Ops!H61","v":0},{"$f":"A.Ops!I61","v":120000},null,"",{"$f":"SUM(L62:L64)","v":0},"",{"$f":"SUM(N62:N64)","v":0}]
[null,null,"Measures to assist children w mental/physical disabilities established/sustained",null,{"$f":"A.Ops!E62","v":6000},"children",{"$f":"A.Ops!G62","v":10},{"$f":"A.Ops!H62","v":1},{"$f":"A.Ops!I62","v":60000},{"$f":"I62","v":60000},1,0,"",{"$f":"IF(K62=1, ($N$87/$M$87), 0)","v":0}]
[null,null,"Special arrangements for protection and care of UASC established",null,{"$f":"A.Ops!E63","v":6000},"children",{"$f":"A.Ops!G63","v":10},{"$f":"A.Ops!H63","v":1},{"$f":"A.Ops!I63","v":60000},{"$f":"I63","v":60000},1,0,"",{"$f":"IF(K63=1, ($N$87/$M$87), 0)","v":0}]
[null,null,"Unspecified output - Protection of Children",null,{"$f":"A.Ops!E64","v":1},"lumpsum",{"$f":"A.Ops!G64","v":0},{"$f":"A.Ops!H64","v":1},{"$f":"A.Ops!I64","v":0},{"$f":"I64","v":0},"",0,"",{"$f":"IF(K64=1, ($N$87/$M$87), 0)","v":0}]
["Fair Protection Processes and Documentation",null,null,null,{"$f":"A.Ops!E65","v":0},null,{"$f":"A.Ops!G65","v":0},{"$f":"A.Ops!H65","v":0},{"$f":"A.Ops!I65","v":280000},null,"",{"$f":"SUM(L66,L69)","v":0},"",{"$f":"SUM(N66,N69)","v":0}]
[null,"Reception conditions improved",null,null,{"$f":"A.Ops!E66","v":0},null,{"$f":"A.Ops!G66","v":0},{"$f":"A.Ops!H66","v":0},{"$f":"A.Ops!I66","v":160000},null,"",{"$f":"SUM(L67:L68)","v":0},"",{"$f":"SUM(N67:N68)","v":0}]
[null,null,"Reception/transit centre infrastructure established and maintained",null,{"$f":"A.Ops!E67","v":20000},"person",{"$f":"A.Ops!G67","v":8},{"$f":"A.Ops!H67","v":1},{"$f":"A.Ops!I67","v":160000},{"$f":"I67","v":160000},1,0,"",{"$f":"IF(K67=1, ($N$87/$M$87), 0)","v":0}]
[null,null,"Unspecified output - Reception Conditions",null,{"$f":"A.Ops!E68","v":1},"lumpsum",{"$f":"A.Ops!G68","v":0},{"$f":"A.Ops!H68","v":1},{"$f":"A.Ops!I68","v":0},{"$f":"I68","v":0},"",0,"",{"$f":"IF(K68=1, ($N$87/$M$87), 0)","v":0}]
[null,"Level of individual documentation increased",null,null,{"$f":"A.Ops!E69","v":0},null,{"$f":"A.Ops!G69","v":0},{"$f":"A.Ops!H69","v":0},{"$f":"A.Ops!I69","v":120000},null,"",{"$f":"SUM(L70:L71)","v":0},"",{"$f":"SUM(N70:N71)","v":0}]
[null,null,"Issuance of ID & travel documents to persons of concern supported",null,{"$f":"A.Ops!E70","v":20000},"person",{"$f":"A.Ops!G70","v":6},{"$f":"A.Ops!H70","v":1},{"$f":"A.Ops!I70","v":120000},{"$f":"I70","v":120000},1,0,"",{"$f":"IF(K70=1, ($N$87/$M$87), 0)","v":0}]
[null,null,"Unspecified output - Individual Documentation",null,{"$f":"A.Ops!E71","v":1},"lumpsum",{"$f":"A.Ops!G71","v":0},{"$f":"A.Ops!H71","v":1},{"$f":"A.Ops!I71","v":0},{"$f":"I71","v":0},"",0,"",{"$f":"IF(K71=1, ($N$87/$M$87), 0)","v":0}]
["Leadership, Coordination and Partnerships",null,null,null,{"$f":"A.Ops!E72","v":0},null,{"$f":"A.Ops!G72","v":0},{"$f":"A.Ops!H72","v":0},{"$f":"A.Ops!I72","v":30000},null,"",{"$f":"SUM(L73,L77)","v":0},"",{"$f":"SUM(N73,N77)","v":0}]
[null,"Camp management and coordination refined and improved",null,null,{"$f":"A.Ops!E73","v":0},null,{"$f":"A.Ops!G73","v":0},{"$f":"A.Ops!H73","v":0},{"$f":"A.Ops!I73","v":20000},null,{"$f":"IF(J73>0, 1, \"\")","v":""},{"$f":"SUM(L74:L76)","v":0},{"$f":"IF(L73>0, 1, \"\")","v":""},{"$f":"SUM(N74:N76)","v":0}]
[null,null,"Assessment of site planning conducted against safety & humanitarian standards",null,{"$f":"A.Ops!E74","v":2},"camp",{"$f":"A.Ops!G74","v":5000},{"$f":"A.Ops!H74","v":1},{"$f":"A.Ops!I74","v":10000},{"$f":"I74","v":10000},1,{"$f":"IF(K74=1, ($L$87/$K$87), 0)","v":0},"",{"$f":"IF(K74=1, ($N$87/$M$87), 0)","v":0}]
[null,null,"Roles and responsibilities for camp managers defined and agreed",null,{"$f":"A.Ops!E75","v":2},"camp",{"$f":"A.Ops!G75","v":5000},{"$f":"A.Ops!H75","v":1},{"$f":"A.Ops!I75","v":10000},{"$f":"I75","v":10000},1,0,"",{"$f":"IF(K75=1, ($N$87/$M$87), 0)","v":0}]
[null,null,"Unspecified output - Camp Mgmt. & Coordination",null,{"$f":"A.Ops!E76","v":1},"lumpsum",{"$f":"A.Ops!G76","v":0},{"$f":"A.Ops!H76","v":1},{"$f":"A.Ops!I76","v":0},{"$f":"I76","v":0},"",0,"",{"$f":"IF(K76=1, ($N$87/$M$87), 0)","v":0}]
[null,"Emergency management strengthened",null,null,{"$f":"A.Ops!E77","v":0},null,{"$f":"A.Ops!G77","v":0},{"$f":"A.Ops!H77","v":0},{"$f":"A.Ops!I77","v":10000},null,"",{"$f":"SUM(L78:L79)","v":0},"",{"$f":"SUM(N78:N79)","v":0}]
[null,null,"Advocacy conducted",null,{"$f":"A.Ops!E78","v":20000},"person",{"$f":"A.Ops!G78","v":0.5},{"$f":"A.Ops!H78","v":1},{"$f":"A.Ops!I78","v":10000},{"$f":"I78","v":10000},1,0,"",{"$f":"IF(K78=1, ($N$87/$M$87), 0)","v":0}]
[null,null,"Unspecified output - Emergency Management",null,{"$f":"A.Ops!E79","v":1},"lumpsum",{"$f":"A.Ops!G79","v":0},{"$f":"A.Ops!H79","v":1},{"$f":"A.Ops!I79","v":0},{"$f":"I79","v":0},"",0,"",{"$f":"IF(K79=1, ($N$87/$M$87), 0)","v":0}]
["Favourable Protection Environment",null,null,null,{"$f":"A.Ops!E80","v":0},null,{"$f":"A.Ops!G80","v":0},{"$f":"A.Ops!H80","v":0},{"$f":"A.Ops!I80","v":360000},null,"",{"$f":"SUM(L81,L84)","v":0},"",{"$f":"SUM(N81,N84)","v":0}]
[null,"Access to legal assistance and legal remedies improved",null,null,{"$f":"A.Ops!E81","v":0},null,{"$f":"A.Ops!G81","v":0},{"$f":"A.Ops!H81","v":0},{"$f":"A.Ops!I81","v":240000},null,"",{"$f":"SUM(L82:L83)","v":0},"",{"$f":"SUM(N82:N83)","v":0}]
[null,null,"Legal services and clinics established or provided",null,{"$f":"A.Ops!E82","v":20000},"person",{"$f":"A.Ops!G82","v":2},{"$f":"A.Ops!H82","v":6},{"$f":"A.Ops!I82","v":240000},{"$f":"I82","v":240000},1,0,"",{"$f":"IF(K82=1, ($N$87/$M$87), 0)","v":0}]
[null,null,"Unspecified output - Legal Remedies & Assistance",null,{"$f":"A.Ops!E83","v":1},"lumpsum",{"$f":"A.Ops!G83","v":0},{"$f":"A.Ops!H83","v":1},{"$f":"A.Ops!I83","v":0},{"$f":"I83","v":0},"",0,"",{"$f":"IF(K83=1, ($N$87/$M$87), 0)","v":0}]
[null,"Access to the territory improved and risk of refoulement reduced",null,null,{"$f":"A.Ops!E84","v":0},null,{"$f":"A.Ops!G84","v":0},{"$f":"A.Ops!H84","v":0},{"$f":"A.Ops!I84","v":120000},null,"",{"$f":"SUM(L85:L86)","v":0},"",{"$f":"SUM(N85:N86)","v":0}]
[null,null,"Systematic and independent border monitoring established or conducted",null,{"$f":"A.Ops!E85","v":20000},"person",{"$f":"A.Ops!G85","v":1},{"$f":"A.Ops!H85","v":6},{"$f":"A.Ops!I85","v":120000},{"$f":"I85","v":120000},1,0,"",{"$f":"IF(K85=1, ($N$87/$M$87), 0)","v":0}]
[null,null,"Unspecified output - Access & Non Refoulement",null,{"$f":"A.Ops!E86","v":1},"lumpsum",{"$f":"A.Ops!G86","v":0},{"$f":"A.Ops!H86","v":1},{"$f":"A.Ops!I86","v":0},{"$f":"I86","v":0},"",0,"",{"$f":"IF(K86=1, ($N$87/$M$87), 0)","v":0}]
["Grand Total",null,null,null,null,null,null,null,{"$f":"A.Ops!I87","v":13186381.629600001},{"$f":"SUM(J5:J86)","v":13186381.629600001},{"$f":"SUM(K5:K86)","v":25},{"$f":"'C.ABOD'!C27","v":0},{"$f":"K87","v":25},{"$f":"'E. Positions (optional)'!J21","v":0}]
[null,null,null,null,null,null,null,null,null,null,"check",{"$f":"SUM(L80,L72,L65,L54,L47,L5)","v":0},"check",{"$f":"SUM(N80,N72,N65,N54,N47,N5)","v":0}]